Unique Reference Number,Vendor Name,Subject Mapping 1 (higher level),Subj Mapping 2 (Lower Level),Subjective  Desc,Net amount,Capital/Revenue,GL Posting Date,Directorate
WC43-0001,1ST HAND CARE LTD,Third Party Payments,Private Contractor Fees,73372-DOMICILIARY CARE,"11,570.21",Revenue,02/04/2014,Social Care & Inclusion
WC43-0002,1ST HAND CARE LTD,Third Party Payments,Private Contractor Fees,73372-DOMICILIARY CARE,424.40,Revenue,04/04/2014,Social Care & Inclusion
WC43-0003,1ST HAND CARE LTD,Third Party Payments,Private Contractor Fees,73372-DOMICILIARY CARE,"1,835.53",Revenue,15/04/2014,Social Care & Inclusion
WC43-0004,1ST HAND CARE LTD,Third Party Payments,Private Contractor Fees,73372-DOMICILIARY CARE,"12,808.92",Revenue,28/04/2014,Social Care & Inclusion
WC43-0005,2BM LIMITED,Supplies & Services,Communications & Computing,63800-COMPUTER EQUIPMENT AND SUPPLIES,500.00,Revenue,08/04/2014,Resources
WC43-0006,39 ESSEX STREET LLP PFA,Supplies & Services,Other Supplies & Services,63116-EXTERNAL BARRISTERS-SERVICES-FEES,"3,112.00",Revenue,14/04/2014,Regeneration
WC43-0007,A 2 Z TAXIS (A2Z CARS),Transport,Hire,52000-WITH DRIVER-HIRE OF VEHICLES,"1,305.36",Revenue,23/04/2014,Childrens
WC43-0008,A 2 Z TAXIS (A2Z CARS),Transport,Hire,52000-WITH DRIVER-HIRE OF VEHICLES,630.00,Revenue,23/04/2014,Childrens
WC43-0009,A 2 Z TAXIS (A2Z CARS),Transport,Hire,52000-WITH DRIVER-HIRE OF VEHICLES,840.00,Revenue,23/04/2014,Childrens
WC43-0010,A 2 Z TAXIS (A2Z CARS),Transport,Hire,52000-WITH DRIVER-HIRE OF VEHICLES,336.00,Revenue,23/04/2014,Childrens
WC43-0011,A 2 Z TAXIS (A2Z CARS),Transport,Hire,52000-WITH DRIVER-HIRE OF VEHICLES,266.00,Revenue,23/04/2014,Childrens
WC43-0012,A 2 Z TAXIS (A2Z CARS),Transport,Hire,52000-WITH DRIVER-HIRE OF VEHICLES,336.00,Revenue,23/04/2014,Childrens
WC43-0013,A 2 Z TAXIS (A2Z CARS),Transport,Hire,52000-WITH DRIVER-HIRE OF VEHICLES,504.00,Revenue,23/04/2014,Childrens
WC43-0014,A 2 Z TAXIS (A2Z CARS),Transport,Hire,52000-WITH DRIVER-HIRE OF VEHICLES,"1,015.98",Revenue,23/04/2014,Childrens
WC43-0015,A 2 Z TAXIS (A2Z CARS),Transport,Hire,52000-WITH DRIVER-HIRE OF VEHICLES,336.00,Revenue,23/04/2014,Childrens
WC43-0016,A 2 Z TAXIS (A2Z CARS),Transport,Hire,52000-WITH DRIVER-HIRE OF VEHICLES,840.00,Revenue,23/04/2014,Childrens
WC43-0017,A 2 Z TAXIS (A2Z CARS),Transport,Hire,52000-WITH DRIVER-HIRE OF VEHICLES,588.00,Revenue,23/04/2014,Childrens
WC43-0018,A 2 Z TAXIS (A2Z CARS),Transport,Hire,52000-WITH DRIVER-HIRE OF VEHICLES,372.33,Revenue,23/04/2014,Childrens
WC43-0019,A D T FIRE AND SECURITY PLC,Premises,Premises-Repairs & Maintenance,40023-FIRE FIGHTING EQUIPMENT-OP MTCE,693.63,Revenue,02/04/2014,Social Care & Inclusion
WC43-0020,A D T FIRE AND SECURITY PLC,Third Party Payments,Private Contractor Fees,73025-PROFESSIONAL SERVICES-PRIV CONTRACTOR & OTHER AGENCIES,976.44,Revenue,22/04/2014,Regeneration
WC43-0021,A F BLAKEMORE & SON LTD,Supplies & Services,Provisions,61016-FOOD AND BEVERAGES-PROVISIONS,350.29,Revenue,01/04/2014,Social Care & Inclusion
WC43-0022,A F BLAKEMORE & SON LTD,Supplies & Services,Provisions,61006-FRUIT & VEGETABLES OTHER-PROVISIONS,678.35,Revenue,04/04/2014,Social Care & Inclusion
WC43-0023,A F BLAKEMORE & SON LTD,Supplies & Services,Provisions,61008-CONFECTIONERY/SNACKS-PROVISIONS,320.86,Revenue,08/04/2014,Neighbourhood Services
WC43-0024,A F BLAKEMORE & SON LTD,Supplies & Services,Provisions,61305-CATERING,272.82,Revenue,08/04/2014,Neighbourhood Services
WC43-0025,A F BLAKEMORE & SON LTD,Supplies & Services,Provisions,61305-CATERING,248.03,Revenue,08/04/2014,Neighbourhood Services
WC43-0026,A F BLAKEMORE & SON LTD,Supplies & Services,Provisions,61305-CATERING,78.29,Revenue,08/04/2014,Neighbourhood Services
WC43-0027,A F BLAKEMORE & SON LTD,Supplies & Services,Provisions,61016-FOOD AND BEVERAGES-PROVISIONS,519.39,Revenue,14/04/2014,Neighbourhood Services
WC43-0028,A F BLAKEMORE & SON LTD,Supplies & Services,Provisions,61006-FRUIT & VEGETABLES OTHER-PROVISIONS,274.16,Revenue,15/04/2014,Social Care & Inclusion
WC43-0029,A F BLAKEMORE & SON LTD,Supplies & Services,"Equip,Furniture & Materials",60006-NEW-FURNITURE & EQUIPMENT,274.42,Revenue,17/04/2014,Neighbourhood Services
WC43-0030,A F BLAKEMORE & SON LTD,Supplies & Services,Provisions,61018-DRINKS-PROVISIONS,296.23,Revenue,17/04/2014,Neighbourhood Services
WC43-0031,A F BLAKEMORE & SON LTD,Supplies & Services,Provisions,61305-CATERING,479.23,Revenue,17/04/2014,Social Care & Inclusion
WC43-0032,REDACTED,Third Party Payments,Private Contractor Fees,74006-HOLIDAY/CHRISTMAS ALLOWANCE-FOSTER CARERS-OTH AGENCY PROVISION,330.76,Revenue,14/04/2014,Childrens
WC43-0033,REDACTED,Third Party Payments,Private Contractor Fees,74006-HOLIDAY/CHRISTMAS ALLOWANCE-FOSTER CARERS-OTH AGENCY PROVISION,414.88,Revenue,14/04/2014,Childrens
WC43-0034,REDACTED,Third Party Payments,Private Contractor Fees,74006-HOLIDAY/CHRISTMAS ALLOWANCE-FOSTER CARERS-OTH AGENCY PROVISION,973.55,Revenue,01/04/2014,Childrens
WC43-0035,REDACTED,Supplies & Services,Other Supplies & Services,62515-MISCELLANEOUS SUPPLIES,896.24,Revenue,28/04/2014,Childrens
WC43-0036,REDACTED,Third Party Payments,Private Contractor Fees,74006-HOLIDAY/CHRISTMAS ALLOWANCE-FOSTER CARERS-OTH AGENCY PROVISION,968.32,Revenue,28/04/2014,Childrens
WC43-0037,A Q DATA SERVICES,Supplies & Services,Communications & Computing,63800-COMPUTER EQUIPMENT AND SUPPLIES,350.00,Revenue,14/04/2014,Neighbourhood Services
WC43-0038,A1 ABLEWELL TAXIS,Transport,Hire,52000-WITH DRIVER-HIRE OF VEHICLES,480.00,Revenue,01/04/2014,Childrens
WC43-0039,A1 ABLEWELL TAXIS,Transport,Hire,52000-WITH DRIVER-HIRE OF VEHICLES,460.00,Revenue,01/04/2014,Childrens
WC43-0040,A1 ABLEWELL TAXIS,Transport,Hire,52000-WITH DRIVER-HIRE OF VEHICLES,580.00,Revenue,01/04/2014,Childrens
WC43-0041,A1 ABLEWELL TAXIS,Transport,Hire,52000-WITH DRIVER-HIRE OF VEHICLES,480.00,Revenue,09/04/2014,Childrens
WC43-0042,A1 ABLEWELL TAXIS,Transport,Hire,52000-WITH DRIVER-HIRE OF VEHICLES,460.00,Revenue,09/04/2014,Childrens
WC43-0043,A1 ABLEWELL TAXIS,Transport,Hire,52000-WITH DRIVER-HIRE OF VEHICLES,580.00,Revenue,09/04/2014,Childrens
WC43-0044,A1 ABLEWELL TAXIS,Transport,Hire,52000-WITH DRIVER-HIRE OF VEHICLES,290.00,Revenue,28/04/2014,Childrens
WC43-0045,A1 EXPRESS TAXIS,Transport,Hire,52000-WITH DRIVER-HIRE OF VEHICLES,"1,200.00",Revenue,14/04/2014,Childrens
WC43-0046,A1 PINFOLD TAXIS & ABA CARS,Transport,Hire,52000-WITH DRIVER-HIRE OF VEHICLES,448.00,Revenue,01/04/2014,Childrens
WC43-0047,A1 PINFOLD TAXIS & ABA CARS,Transport,Hire,52000-WITH DRIVER-HIRE OF VEHICLES,312.00,Revenue,01/04/2014,Childrens
WC43-0048,A1 PINFOLD TAXIS & ABA CARS,Transport,Hire,52000-WITH DRIVER-HIRE OF VEHICLES,288.00,Revenue,01/04/2014,Childrens
WC43-0049,AA CARS,Transport,Hire,52000-WITH DRIVER-HIRE OF VEHICLES,510.84,Revenue,14/04/2014,Childrens
WC43-0050,AAA BEE JAY TRAVEL,Transport,Hire,52000-WITH DRIVER-HIRE OF VEHICLES,410.00,Revenue,02/04/2014,Childrens
WC43-0051,AAA BEE JAY TRAVEL,Transport,Hire,52000-WITH DRIVER-HIRE OF VEHICLES,360.00,Revenue,02/04/2014,Childrens
WC43-0052,AAA BEE JAY TRAVEL,Transport,Hire,52000-WITH DRIVER-HIRE OF VEHICLES,290.00,Revenue,02/04/2014,Childrens
WC43-0053,AAA BEE JAY TRAVEL,Transport,Hire,52000-WITH DRIVER-HIRE OF VEHICLES,250.00,Revenue,02/04/2014,Childrens
WC43-0054,AAA BEE JAY TRAVEL,Transport,Hire,52000-WITH DRIVER-HIRE OF VEHICLES,410.00,Revenue,02/04/2014,Childrens
WC43-0055,AAA BEE JAY TRAVEL,Transport,Hire,52000-WITH DRIVER-HIRE OF VEHICLES,360.00,Revenue,02/04/2014,Childrens
WC43-0056,AAA BEE JAY TRAVEL,Transport,Hire,52000-WITH DRIVER-HIRE OF VEHICLES,290.00,Revenue,02/04/2014,Childrens
WC43-0057,AAA BEE JAY TRAVEL,Transport,Hire,52000-WITH DRIVER-HIRE OF VEHICLES,250.00,Revenue,02/04/2014,Childrens
WC43-0058,AAA BEE JAY TRAVEL,Transport,Hire,52000-WITH DRIVER-HIRE OF VEHICLES,410.00,Revenue,02/04/2014,Childrens
WC43-0059,AAA BEE JAY TRAVEL,Transport,Hire,52000-WITH DRIVER-HIRE OF VEHICLES,360.00,Revenue,02/04/2014,Childrens
WC43-0060,AAA BEE JAY TRAVEL,Transport,Hire,52000-WITH DRIVER-HIRE OF VEHICLES,290.00,Revenue,02/04/2014,Childrens
WC43-0061,AAA BEE JAY TRAVEL,Transport,Hire,52000-WITH DRIVER-HIRE OF VEHICLES,250.00,Revenue,02/04/2014,Childrens
WC43-0062,AAA BEE JAY TRAVEL,Transport,Hire,52000-WITH DRIVER-HIRE OF VEHICLES,410.00,Revenue,07/04/2014,Childrens
WC43-0063,AAA BEE JAY TRAVEL,Transport,Hire,52000-WITH DRIVER-HIRE OF VEHICLES,360.00,Revenue,07/04/2014,Childrens
WC43-0064,AAA BEE JAY TRAVEL,Transport,Hire,52000-WITH DRIVER-HIRE OF VEHICLES,290.00,Revenue,07/04/2014,Childrens
WC43-0065,AAA BEE JAY TRAVEL,Transport,Hire,52000-WITH DRIVER-HIRE OF VEHICLES,250.00,Revenue,07/04/2014,Childrens
WC43-0066,AAA BEE JAY TRAVEL,Transport,Hire,52000-WITH DRIVER-HIRE OF VEHICLES,410.00,Revenue,09/04/2014,Childrens
WC43-0067,AAA BEE JAY TRAVEL,Transport,Hire,52000-WITH DRIVER-HIRE OF VEHICLES,360.00,Revenue,09/04/2014,Childrens
WC43-0068,AAA BEE JAY TRAVEL,Transport,Hire,52000-WITH DRIVER-HIRE OF VEHICLES,290.00,Revenue,09/04/2014,Childrens
WC43-0069,AAA BEE JAY TRAVEL,Transport,Hire,52000-WITH DRIVER-HIRE OF VEHICLES,250.00,Revenue,09/04/2014,Childrens
WC43-0070,AAA BEE JAY TRAVEL,Transport,Hire,52000-WITH DRIVER-HIRE OF VEHICLES,360.00,Revenue,28/04/2014,Childrens
WC43-0071,AAA BEE JAY TRAVEL,Transport,Hire,52000-WITH DRIVER-HIRE OF VEHICLES,290.00,Revenue,29/04/2014,Childrens
WC43-0072,AAA BEE JAY TRAVEL,Transport,Hire,52000-WITH DRIVER-HIRE OF VEHICLES,250.00,Revenue,29/04/2014,Childrens
WC43-0073,AAINA ASIAN WOMENS GROUP,Supplies & Services,Other Supplies & Services,62515-MISCELLANEOUS SUPPLIES,"2,240.00",Revenue,14/04/2014,Neighbourhood Services
WC43-0074,ABA CRANES LTD,Supplies & Services,"Equip,Furniture & Materials",60009-LEASING/HIRE/RENTAL-EQUIPMENT,550.00,Revenue,09/04/2014,Neighbourhood Services
WC43-0075,ABACUS FOSTERING LTD,Third Party Payments,Private Contractor Fees,74037-INDEPENDENT FOSTER CARE-OTH AGENCY PROVISION,"3,852.99",Revenue,01/04/2014,Childrens
WC43-0076,REDACTED,Third Party Payments,Private Contractor Fees,74006-HOLIDAY/CHRISTMAS ALLOWANCE-FOSTER CARERS-OTH AGENCY PROVISION,635.29,Revenue,14/04/2014,Childrens
WC43-0077,ABBEVILLE RCH LTD,Third Party Payments,Private Contractor Fees,73373-RESIDENTIAL & NURSING CARE PLACEMENTS,"1,099.44",Revenue,08/04/2014,Social Care & Inclusion
WC43-0078,ABBEY COURT NURSING & RESIDEN,Third Party Payments,Private Contractor Fees,73373-RESIDENTIAL & NURSING CARE PLACEMENTS,"-1,760.78",Revenue,01/04/2014,Social Care & Inclusion
WC43-0079,ABBEY COURT NURSING & RESIDEN,Third Party Payments,Private Contractor Fees,73373-RESIDENTIAL & NURSING CARE PLACEMENTS,"1,440.65",Revenue,08/04/2014,Social Care & Inclusion
WC43-0080,ABBEY COURT NURSING & RESIDEN,Third Party Payments,Private Contractor Fees,73373-RESIDENTIAL & NURSING CARE PLACEMENTS,"1,468.07",Revenue,08/04/2014,Social Care & Inclusion
WC43-0081,ABBEY COURT NURSING & RESIDEN,Third Party Payments,Private Contractor Fees,73373-RESIDENTIAL & NURSING CARE PLACEMENTS,"1,440.65",Revenue,08/04/2014,Social Care & Inclusion
WC43-0082,ABBEY COURT NURSING & RESIDEN,Third Party Payments,Private Contractor Fees,73373-RESIDENTIAL & NURSING CARE PLACEMENTS,"1,440.64",Revenue,08/04/2014,Social Care & Inclusion
WC43-0083,ABBEYMERE CARE CENTRE,Third Party Payments,Private Contractor Fees,73373-RESIDENTIAL & NURSING CARE PLACEMENTS,"1,528.87",Revenue,15/04/2014,Social Care & Inclusion
WC43-0084,ABC DAY NURSERY (WILLENHALL) LIMITED,Supplies & Services,Other Supplies & Services,63120-CRECHE FACILITIES-SERVICES-FEES,362.00,Revenue,08/04/2014,Neighbourhood Services
WC43-0085,ABC DAY NURSERY (WILLENHALL) LIMITED,Supplies & Services,Other Supplies & Services,63120-CRECHE FACILITIES-SERVICES-FEES,362.00,Revenue,08/04/2014,Neighbourhood Services
WC43-0086,ABC DAY NURSERY (WILLENHALL) LIMITED,Third Party Payments,Grants to Other Orgs,66505-OTHER-GRANTS TO OTHER ORGS,"25,014.56",Revenue,15/04/2014,Childrens
WC43-0087,ABC DAY NURSERY (WILLENHALL) LIMITED,Supplies & Services,Other Supplies & Services,63120-CRECHE FACILITIES-SERVICES-FEES,667.00,Revenue,30/04/2014,Neighbourhood Services
WC43-0088,ABC FOSTERING,Third Party Payments,Private Contractor Fees,74037-INDEPENDENT FOSTER CARE-OTH AGENCY PROVISION,"3,135.00",Revenue,08/04/2014,Childrens
WC43-0089,ABC FOSTERING,Third Party Payments,Private Contractor Fees,74037-INDEPENDENT FOSTER CARE-OTH AGENCY PROVISION,"3,300.00",Revenue,08/04/2014,Childrens
WC43-0090,REDACTED,Transfer Payments,Transfer Payments,76422-DIRECT PAYMENTS TO SOCIAL SERVICES CLIENTS,"2,569.00",Revenue,14/04/2014,Social Care & Inclusion
WC43-0091,ABS TAXIS (ALDRIDGE),Transport,Hire,52000-WITH DRIVER-HIRE OF VEHICLES,"1,140.00",Revenue,01/04/2014,Childrens
WC43-0092,ABS TAXIS (ALDRIDGE),Transport,Hire,52000-WITH DRIVER-HIRE OF VEHICLES,"1,140.00",Revenue,01/04/2014,Childrens
WC43-0093,ABS TAXIS (ALDRIDGE),Transport,Hire,52000-WITH DRIVER-HIRE OF VEHICLES,450.00,Revenue,01/04/2014,Childrens
WC43-0094,ABS TAXIS (ALDRIDGE),Transport,Hire,52000-WITH DRIVER-HIRE OF VEHICLES,360.00,Revenue,01/04/2014,Childrens
WC43-0095,ABS TAXIS (ALDRIDGE),Transport,Hire,52000-WITH DRIVER-HIRE OF VEHICLES,"1,292.00",Revenue,28/04/2014,Childrens
WC43-0096,ABS TAXIS (ALDRIDGE),Transport,Hire,52000-WITH DRIVER-HIRE OF VEHICLES,"1,292.00",Revenue,28/04/2014,Childrens
WC43-0097,ABS TAXIS (ALDRIDGE),Transport,Hire,52000-WITH DRIVER-HIRE OF VEHICLES,600.00,Revenue,28/04/2014,Childrens
WC43-0098,ABS TAXIS (ALDRIDGE),Transport,Hire,52000-WITH DRIVER-HIRE OF VEHICLES,408.00,Revenue,28/04/2014,Childrens
WC43-0099,ABU BAKR NURSERY,Third Party Payments,Grants to Other Orgs,66505-OTHER-GRANTS TO OTHER ORGS,"30,745.25",Revenue,15/04/2014,Childrens
WC43-0100,AC COACHING & SPORTS DEVELOPMENT LIMITED,Employees,Other Staff Costs,32000-MISC FEES AND EXPENSES,330.00,Revenue,04/04/2014,Neighbourhood Services
WC43-0101,ACCORD HOUSING ASSOCIATION  LTD,Third Party Payments,Private Contractor Fees,73374-SUPPORTED & OTHER ACCOMMODATION,"6,154.40",Revenue,08/04/2014,Social Care & Inclusion
WC43-0102,ACCORD HOUSING ASSOCIATION  LTD,Third Party Payments,Private Contractor Fees,73367-BLOCK SUBSIDY-SUPPORTING PEOPLE,"26,165.42",Revenue,10/04/2014,Social Care & Inclusion
WC43-0103,ACCORD HOUSING ASSOCIATION  LTD,Third Party Payments,Private Contractor Fees,73373-RESIDENTIAL & NURSING CARE PLACEMENTS,317.96,Revenue,15/04/2014,Social Care & Inclusion
WC43-0104,ACCORD HOUSING ASSOCIATION  LTD,Premises,Rent,43001-RENTS-OTHER,345.56,Revenue,15/04/2014,Resources
WC43-0105,ACCORD HOUSING ASSOCIATION  LTD,Third Party Payments,Private Contractor Fees,73374-SUPPORTED & OTHER ACCOMMODATION,"7,693.00",Revenue,17/04/2014,Social Care & Inclusion
WC43-0106,ACCORD HOUSING ASSOCIATION  LTD,Third Party Payments,Private Contractor Fees,73374-SUPPORTED & OTHER ACCOMMODATION,"14,748.75",Revenue,17/04/2014,Social Care & Inclusion
WC43-0107,ACCORD HOUSING ASSOCIATION  LTD,Third Party Payments,Private Contractor Fees,73374-SUPPORTED & OTHER ACCOMMODATION,"32,556.50",Revenue,17/04/2014,Social Care & Inclusion
WC43-0108,ACCORD HOUSING ASSOCIATION  LTD,Third Party Payments,Private Contractor Fees,73374-SUPPORTED & OTHER ACCOMMODATION,"11,471.25",Revenue,17/04/2014,Social Care & Inclusion
WC43-0109,ACCORD HOUSING ASSOCIATION  LTD,Third Party Payments,Private Contractor Fees,73374-SUPPORTED & OTHER ACCOMMODATION,"7,693.00",Revenue,17/04/2014,Social Care & Inclusion
WC43-0110,ACCORD HOUSING ASSOCIATION  LTD,Third Party Payments,Private Contractor Fees,73373-RESIDENTIAL & NURSING CARE PLACEMENTS,"6,476.61",Revenue,22/04/2014,Social Care & Inclusion
WC43-0111,ACCORD HOUSING ASSOCIATION  LTD,Third Party Payments,Private Contractor Fees,73373-RESIDENTIAL & NURSING CARE PLACEMENTS,"6,476.61",Revenue,22/04/2014,Social Care & Inclusion
WC43-0112,ACCORD HOUSING ASSOCIATION  LTD,Third Party Payments,Private Contractor Fees,73373-RESIDENTIAL & NURSING CARE PLACEMENTS,"4,640.48",Revenue,22/04/2014,Social Care & Inclusion
WC43-0113,ACCORD HOUSING ASSOCIATION  LTD,Third Party Payments,Private Contractor Fees,73374-SUPPORTED & OTHER ACCOMMODATION,569.07,Revenue,22/04/2014,Social Care & Inclusion
WC43-0114,ACCORD HOUSING ASSOCIATION  LTD,Third Party Payments,Private Contractor Fees,73374-SUPPORTED & OTHER ACCOMMODATION,550.71,Revenue,22/04/2014,Social Care & Inclusion
WC43-0115,ACCORD HOUSING ASSOCIATION  LTD,Third Party Payments,Private Contractor Fees,73374-SUPPORTED & OTHER ACCOMMODATION,797.80,Revenue,22/04/2014,Social Care & Inclusion
WC43-0116,ACCORD HOUSING ASSOCIATION  LTD,Third Party Payments,Private Contractor Fees,73374-SUPPORTED & OTHER ACCOMMODATION,797.80,Revenue,22/04/2014,Social Care & Inclusion
WC43-0117,ACCORD HOUSING ASSOCIATION  LTD,Third Party Payments,Private Contractor Fees,73374-SUPPORTED & OTHER ACCOMMODATION,797.80,Revenue,22/04/2014,Social Care & Inclusion
WC43-0118,ACCORD HOUSING ASSOCIATION  LTD,Third Party Payments,Private Contractor Fees,73374-SUPPORTED & OTHER ACCOMMODATION,650.56,Revenue,23/04/2014,Social Care & Inclusion
WC43-0119,ACCORD HOUSING ASSOCIATION  LTD,Third Party Payments,Private Contractor Fees,73374-SUPPORTED & OTHER ACCOMMODATION,514.00,Revenue,23/04/2014,Social Care & Inclusion
WC43-0120,ACCORD HOUSING ASSOCIATION  LTD,Third Party Payments,Private Contractor Fees,73374-SUPPORTED & OTHER ACCOMMODATION,650.56,Revenue,23/04/2014,Social Care & Inclusion
WC43-0121,ACCORD HOUSING ASSOCIATION  LTD,Third Party Payments,Private Contractor Fees,73373-RESIDENTIAL & NURSING CARE PLACEMENTS,"6,476.61",Revenue,29/04/2014,Social Care & Inclusion
WC43-0122,ACE CARE AGENCY,Third Party Payments,Private Contractor Fees,73372-DOMICILIARY CARE,519.40,Revenue,02/04/2014,Social Care & Inclusion
WC43-0123,ACE CARE AGENCY,Third Party Payments,Private Contractor Fees,73372-DOMICILIARY CARE,939.68,Revenue,02/04/2014,Social Care & Inclusion
WC43-0124,ACE CARE AGENCY,Third Party Payments,Private Contractor Fees,73372-DOMICILIARY CARE,283.29,Revenue,02/04/2014,Social Care & Inclusion
WC43-0125,ACE CARE AGENCY,Third Party Payments,Private Contractor Fees,73372-DOMICILIARY CARE,647.52,Revenue,02/04/2014,Social Care & Inclusion
WC43-0126,ACE CARE AGENCY,Third Party Payments,Private Contractor Fees,73372-DOMICILIARY CARE,485.64,Revenue,02/04/2014,Social Care & Inclusion
WC43-0127,ACE CARE AGENCY,Third Party Payments,Private Contractor Fees,73372-DOMICILIARY CARE,364.23,Revenue,22/04/2014,Social Care & Inclusion
WC43-0128,ACE CARE AGENCY,Third Party Payments,Private Contractor Fees,73372-DOMICILIARY CARE,687.99,Revenue,22/04/2014,Social Care & Inclusion
WC43-0129,ACE CARE AGENCY,Third Party Payments,Private Contractor Fees,73372-DOMICILIARY CARE,485.64,Revenue,22/04/2014,Social Care & Inclusion
WC43-0130,ACE CARE AGENCY,Third Party Payments,Private Contractor Fees,73372-DOMICILIARY CARE,526.11,Revenue,22/04/2014,Social Care & Inclusion
WC43-0131,ACE CARE AGENCY,Third Party Payments,Private Contractor Fees,73372-DOMICILIARY CARE,537.95,Revenue,22/04/2014,Social Care & Inclusion
WC43-0132,ACE CARE AGENCY,Third Party Payments,Private Contractor Fees,73372-DOMICILIARY CARE,973.24,Revenue,23/04/2014,Social Care & Inclusion
WC43-0133,ACE RADIO CARS,Transport,Hire,52000-WITH DRIVER-HIRE OF VEHICLES,"1,120.00",Revenue,09/04/2014,Childrens
WC43-0134,ACE RADIO CARS,Transport,Hire,52000-WITH DRIVER-HIRE OF VEHICLES,"1,050.00",Revenue,09/04/2014,Childrens
WC43-0135,ACE RADIO CARS,Transport,Hire,52000-WITH DRIVER-HIRE OF VEHICLES,600.00,Revenue,09/04/2014,Childrens
WC43-0136,ACEPAY LTD (COTTAGE NUR HOME),Third Party Payments,Private Contractor Fees,73373-RESIDENTIAL & NURSING CARE PLACEMENTS,"1,095.30",Revenue,08/04/2014,Social Care & Inclusion
WC43-0137,ACEPAY LTD (COTTAGE NUR HOME),Third Party Payments,Private Contractor Fees,73373-RESIDENTIAL & NURSING CARE PLACEMENTS,483.29,Revenue,08/04/2014,Social Care & Inclusion
WC43-0138,ACEPAY LTD (COTTAGE NUR HOME),Third Party Payments,Private Contractor Fees,73373-RESIDENTIAL & NURSING CARE PLACEMENTS,"1,449.87",Revenue,08/04/2014,Social Care & Inclusion
WC43-0139,ACEPAY LTD (COTTAGE NUR HOME),Third Party Payments,Private Contractor Fees,73373-RESIDENTIAL & NURSING CARE PLACEMENTS,483.29,Revenue,08/04/2014,Social Care & Inclusion
WC43-0140,ACEPAY LTD (COTTAGE NUR HOME),Third Party Payments,Private Contractor Fees,73373-RESIDENTIAL & NURSING CARE PLACEMENTS,"1,449.87",Revenue,08/04/2014,Social Care & Inclusion
WC43-0141,ACEPAY LTD (COTTAGE NUR HOME),Third Party Payments,Private Contractor Fees,73373-RESIDENTIAL & NURSING CARE PLACEMENTS,494.80,Revenue,08/04/2014,Social Care & Inclusion
WC43-0142,ACEPAY LTD (COTTAGE NUR HOME),Third Party Payments,Private Contractor Fees,73373-RESIDENTIAL & NURSING CARE PLACEMENTS,"1,484.40",Revenue,08/04/2014,Social Care & Inclusion
WC43-0143,ACEPAY LTD (COTTAGE NUR HOME),Third Party Payments,Private Contractor Fees,73373-RESIDENTIAL & NURSING CARE PLACEMENTS,483.29,Revenue,08/04/2014,Social Care & Inclusion
WC43-0144,ACEPAY LTD (COTTAGE NUR HOME),Third Party Payments,Private Contractor Fees,73373-RESIDENTIAL & NURSING CARE PLACEMENTS,"1,449.87",Revenue,08/04/2014,Social Care & Inclusion
WC43-0145,ACEPAY LTD (COTTAGE NUR HOME),Third Party Payments,Private Contractor Fees,73373-RESIDENTIAL & NURSING CARE PLACEMENTS,"1,095.30",Revenue,08/04/2014,Social Care & Inclusion
WC43-0146,ACEPAY LTD (COTTAGE NUR HOME),Third Party Payments,Private Contractor Fees,73373-RESIDENTIAL & NURSING CARE PLACEMENTS,483.29,Revenue,08/04/2014,Social Care & Inclusion
WC43-0147,ACEPAY LTD (COTTAGE NUR HOME),Third Party Payments,Private Contractor Fees,73373-RESIDENTIAL & NURSING CARE PLACEMENTS,"1,449.87",Revenue,08/04/2014,Social Care & Inclusion
WC43-0148,ACEPAY LTD (COTTAGE NUR HOME),Third Party Payments,Private Contractor Fees,73373-RESIDENTIAL & NURSING CARE PLACEMENTS,593.08,Revenue,08/04/2014,Social Care & Inclusion
WC43-0149,ACEPAY LTD (COTTAGE NUR HOME),Third Party Payments,Private Contractor Fees,73373-RESIDENTIAL & NURSING CARE PLACEMENTS,"1,779.24",Revenue,08/04/2014,Social Care & Inclusion
WC43-0150,ACEPAY LTD (COTTAGE NUR HOME),Third Party Payments,Private Contractor Fees,73373-RESIDENTIAL & NURSING CARE PLACEMENTS,494.80,Revenue,08/04/2014,Social Care & Inclusion
WC43-0151,ACEPAY LTD (COTTAGE NUR HOME),Third Party Payments,Private Contractor Fees,73373-RESIDENTIAL & NURSING CARE PLACEMENTS,"1,484.40",Revenue,08/04/2014,Social Care & Inclusion
WC43-0152,ACEPAY LTD (COTTAGE NUR HOME),Third Party Payments,Private Contractor Fees,73373-RESIDENTIAL & NURSING CARE PLACEMENTS,483.29,Revenue,08/04/2014,Social Care & Inclusion
WC43-0153,ACEPAY LTD (COTTAGE NUR HOME),Third Party Payments,Private Contractor Fees,73373-RESIDENTIAL & NURSING CARE PLACEMENTS,"1,449.87",Revenue,08/04/2014,Social Care & Inclusion
WC43-0154,ACEPAY LTD (COTTAGE NUR HOME),Third Party Payments,Private Contractor Fees,73373-RESIDENTIAL & NURSING CARE PLACEMENTS,494.80,Revenue,08/04/2014,Social Care & Inclusion
WC43-0155,ACEPAY LTD (COTTAGE NUR HOME),Third Party Payments,Private Contractor Fees,73373-RESIDENTIAL & NURSING CARE PLACEMENTS,"1,484.40",Revenue,08/04/2014,Social Care & Inclusion
WC43-0156,ACORN CARE LTD,Third Party Payments,Private Contractor Fees,73373-RESIDENTIAL & NURSING CARE PLACEMENTS,"14,840.32",Revenue,15/04/2014,Social Care & Inclusion
WC43-0157,ACORN CARE LTD,Third Party Payments,Private Contractor Fees,73373-RESIDENTIAL & NURSING CARE PLACEMENTS,"14,361.60",Revenue,15/04/2014,Social Care & Inclusion
WC43-0158,ACORN HOUSE FOSTERING SERVICES LTD,Third Party Payments,Private Contractor Fees,74037-INDEPENDENT FOSTER CARE-OTH AGENCY PROVISION,"3,454.95",Revenue,01/04/2014,Childrens
WC43-0159,ACORN REST HOME,Third Party Payments,Private Contractor Fees,73373-RESIDENTIAL & NURSING CARE PLACEMENTS,"1,460.40",Revenue,29/04/2014,Social Care & Inclusion
WC43-0160,ACTION FOR CHILDREN,Supplies & Services,Services,63000-PROFESSIONAL FEES AND SERVICES,"1,088.51",Revenue,01/04/2014,Childrens
WC43-0161,ACTION FOR CHILDREN,Transfer Payments,Transfer Payments,74009-ADOPTION ALLOWANCE,825.00,Revenue,01/04/2014,Childrens
WC43-0162,ACTION FOR CHILDREN,Supplies & Services,Services,63000-PROFESSIONAL FEES AND SERVICES,934.91,Revenue,04/04/2014,Childrens
WC43-0163,ACTION FOR CHILDREN,Third Party Payments,Private Contractor Fees,74037-INDEPENDENT FOSTER CARE-OTH AGENCY PROVISION,"3,405.34",Revenue,28/04/2014,Childrens
WC43-0164,ACTION ON HEARING LOSS,Third Party Payments,Private Contractor Fees,73374-SUPPORTED & OTHER ACCOMMODATION,479.28,Revenue,02/04/2014,Social Care & Inclusion
WC43-0165,ACTION ON HEARING LOSS,Supplies & Services,"Equip,Furniture & Materials",60006-NEW-FURNITURE & EQUIPMENT,310.73,Revenue,17/04/2014,Social Care & Inclusion
WC43-0166,ACTION ON HEARING LOSS,Third Party Payments,Private Contractor Fees,73373-RESIDENTIAL & NURSING CARE PLACEMENTS,"4,024.96",Revenue,22/04/2014,Social Care & Inclusion
WC43-0167,ACTION ON HEARING LOSS,Third Party Payments,Private Contractor Fees,73373-RESIDENTIAL & NURSING CARE PLACEMENTS,431.25,Revenue,29/04/2014,Social Care & Inclusion
WC43-0168,REDACTED,Supplies & Services,Services,63000-PROFESSIONAL FEES AND SERVICES,"1,341.00",Revenue,08/04/2014,Neighbourhood Services
WC43-0169,REDACTED,Supplies & Services,Services,63000-PROFESSIONAL FEES AND SERVICES,450.00,Revenue,08/04/2014,Neighbourhood Services
WC43-0170,REDACTED,Transfer Payments,Transfer Payments,76422-DIRECT PAYMENTS TO SOCIAL SERVICES CLIENTS,487.60,Revenue,14/04/2014,Childrens
WC43-0171,REDACTED,Transfer Payments,Transfer Payments,76422-DIRECT PAYMENTS TO SOCIAL SERVICES CLIENTS,384.00,Revenue,14/04/2014,Social Care & Inclusion
WC43-0172,ADEM LIMITED,Supplies & Services,"Equip,Furniture & Materials",60008-MAINTENANCE-FURNITURE & EQUIPMENT,635.12,Revenue,09/04/2014,Neighbourhood Services
WC43-0173,REDACTED,Transfer Payments,Transfer Payments,76422-DIRECT PAYMENTS TO SOCIAL SERVICES CLIENTS,731.00,Revenue,14/04/2014,Social Care & Inclusion
WC43-0174,ADMIRAL SELF STORAGE LTD,Supplies & Services,"Equip,Furniture & Materials",60104-REMOVAL OF FURNITURE,395.00,Revenue,04/04/2014,Childrens
WC43-0175,ADMIRAL SELF STORAGE LTD,Supplies & Services,"Equip,Furniture & Materials",60000-FURNITURE & EQUIPMENT,419.32,Revenue,23/04/2014,Resources
WC43-0176,ADMIRAL SELF STORAGE LTD,Supplies & Services,Services,63000-PROFESSIONAL FEES AND SERVICES,783.90,Revenue,24/04/2014,Social Care & Inclusion
WC43-0177,ADOPTION UK,Supplies & Services,Communications & Computing,68001-PUBLICITY & ADVERTISING (NOT STAFF ADVERTISING),426.75,Revenue,01/04/2014,Childrens
WC43-0178,ADOPTION UK,Supplies & Services,Communications & Computing,68001-PUBLICITY & ADVERTISING (NOT STAFF ADVERTISING),685.13,Revenue,03/04/2014,Childrens
WC43-0179,ADOPTION UK,Supplies & Services,Communications & Computing,68001-PUBLICITY & ADVERTISING (NOT STAFF ADVERTISING),527.75,Revenue,03/04/2014,Childrens
WC43-0180,ADOPTION UK,Supplies & Services,Communications & Computing,68001-PUBLICITY & ADVERTISING (NOT STAFF ADVERTISING),685.13,Revenue,03/04/2014,Childrens
WC43-0181,ADRIAN CARROLL LTD,Supplies & Services,Services,63000-PROFESSIONAL FEES AND SERVICES,534.72,Revenue,02/04/2014,Regeneration
WC43-0182,ADVANCE HEALTH CARE (UK) LTD,Employees,Agency,34305-AGENCY STAFF-EMPLOYEES,"6,276.40",Revenue,02/04/2014,Social Care & Inclusion
WC43-0183,ADVANCE HEALTH CARE (UK) LTD,Employees,Agency,34305-AGENCY STAFF-EMPLOYEES,"1,015.30",Revenue,02/04/2014,Social Care & Inclusion
WC43-0184,ADVANCE HEALTH CARE (UK) LTD,Third Party Payments,Private Contractor Fees,73372-DOMICILIARY CARE,"9,576.99",Revenue,02/04/2014,Social Care & Inclusion
WC43-0185,ADVANCE HEALTH CARE (UK) LTD,Employees,Agency,34305-AGENCY STAFF-EMPLOYEES,"1,526.50",Revenue,07/04/2014,Social Care & Inclusion
WC43-0186,ADVANCE HEALTH CARE (UK) LTD,Employees,Agency,34305-AGENCY STAFF-EMPLOYEES,727.75,Revenue,07/04/2014,Social Care & Inclusion
WC43-0187,ADVANCE HEALTH CARE (UK) LTD,Employees,Agency,34305-AGENCY STAFF-EMPLOYEES,"6,986.40",Revenue,07/04/2014,Social Care & Inclusion
WC43-0188,ADVANCE HEALTH CARE (UK) LTD,Employees,Agency,34305-AGENCY STAFF-EMPLOYEES,"5,694.20",Revenue,16/04/2014,Social Care & Inclusion
WC43-0189,ADVANCE HEALTH CARE (UK) LTD,Employees,Agency,34305-AGENCY STAFF-EMPLOYEES,411.80,Revenue,16/04/2014,Social Care & Inclusion
WC43-0190,ADVANCE HEALTH CARE (UK) LTD,Employees,Agency,34305-AGENCY STAFF-EMPLOYEES,"2,228.00",Revenue,16/04/2014,Social Care & Inclusion
WC43-0191,ADVANCE HEALTH CARE (UK) LTD,Employees,Agency,34305-AGENCY STAFF-EMPLOYEES,"6,077.60",Revenue,16/04/2014,Social Care & Inclusion
WC43-0192,ADVANCE HEALTH CARE (UK) LTD,Employees,Agency,34305-AGENCY STAFF-EMPLOYEES,355.00,Revenue,25/04/2014,Social Care & Inclusion
WC43-0193,ADVANCE HEALTH CARE (UK) LTD,Employees,Agency,34305-AGENCY STAFF-EMPLOYEES,"1,356.10",Revenue,25/04/2014,Social Care & Inclusion
WC43-0194,ADVANCE HEALTH CARE (UK) LTD,Employees,Agency,34305-AGENCY STAFF-EMPLOYEES,"2,243.60",Revenue,25/04/2014,Social Care & Inclusion
WC43-0195,ADVANCE HEALTH CARE (UK) LTD,Employees,Agency,34305-AGENCY STAFF-EMPLOYEES,454.40,Revenue,25/04/2014,Social Care & Inclusion
WC43-0196,ADVANCE HEALTH CARE (UK) LTD,Third Party Payments,Private Contractor Fees,73372-DOMICILIARY CARE,"8,975.44",Revenue,28/04/2014,Social Care & Inclusion
WC43-0197,ADVANCED CHILDCARE LTD,Third Party Payments,Private Contractor Fees,74037-INDEPENDENT FOSTER CARE-OTH AGENCY PROVISION,"3,210.00",Revenue,28/04/2014,Childrens
WC43-0198,ADVANCED CHILDCARE LTD,Third Party Payments,Private Contractor Fees,74037-INDEPENDENT FOSTER CARE-OTH AGENCY PROVISION,"3,049.50",Revenue,28/04/2014,Childrens
WC43-0199,ADVANCED CONTRACTS (MIDLANDS) LTD,Premises,Premises-Repairs & Maintenance,"40000-REPAIRS,ALTERATIONS & MAINTENANCE-PREM",550.00,Revenue,01/04/2014,Regeneration
WC43-0200,ADVANCED CONTRACTS (MIDLANDS) LTD,Premises,Premises-Repairs & Maintenance,"40000-REPAIRS,ALTERATIONS & MAINTENANCE-PREM","1,296.00",Revenue,01/04/2014,Regeneration
WC43-0201,ADVANCED CONTRACTS (MIDLANDS) LTD,Premises,Premises-Repairs & Maintenance,"40000-REPAIRS,ALTERATIONS & MAINTENANCE-PREM",398.80,Revenue,02/04/2014,Regeneration
WC43-0202,ADVANCED CONTRACTS (MIDLANDS) LTD,Capital,Capital,01006-SITE WORKS MAIN CONTRACTORS,550.00,Capital,03/04/2014,Regeneration
WC43-0203,ADVANCED CONTRACTS (MIDLANDS) LTD,Capital,Capital,01006-SITE WORKS MAIN CONTRACTORS,"1,106.00",Capital,03/04/2014,Regeneration
WC43-0204,ADVANCED CONTRACTS (MIDLANDS) LTD,Premises,Premises-Repairs & Maintenance,"40000-REPAIRS,ALTERATIONS & MAINTENANCE-PREM",794.00,Revenue,03/04/2014,Regeneration
WC43-0205,ADVANCED CONTRACTS (MIDLANDS) LTD,Premises,Premises-Repairs & Maintenance,"40000-REPAIRS,ALTERATIONS & MAINTENANCE-PREM",480.00,Revenue,07/04/2014,Regeneration
WC43-0206,ADVANCED CONTRACTS (MIDLANDS) LTD,Premises,Premises-Repairs & Maintenance,"40000-REPAIRS,ALTERATIONS & MAINTENANCE-PREM",250.00,Revenue,10/04/2014,Regeneration
WC43-0207,ADVANCED CONTRACTS (MIDLANDS) LTD,Premises,Premises-Repairs & Maintenance,"40000-REPAIRS,ALTERATIONS & MAINTENANCE-PREM","2,395.00",Revenue,25/04/2014,Regeneration
WC43-0208,ADVANCED CONTRACTS (MIDLANDS) LTD,Premises,Premises-Repairs & Maintenance,"40000-REPAIRS,ALTERATIONS & MAINTENANCE-PREM",-794.00,Revenue,28/04/2014,Regeneration
WC43-0209,ADVENTURE ACTIVITIES LIC AUTH,Supplies & Services,Other Supplies & Services,63114-OTHER FEES & LICENCES-SERVICES-FEES,715.00,Revenue,28/04/2014,Childrens
WC43-0210,ADVENTURELAND DAY NURSERY,Supplies & Services,Other Supplies & Services,63120-CRECHE FACILITIES-SERVICES-FEES,316.80,Revenue,03/04/2014,Neighbourhood Services
WC43-0211,ADVENTURELAND DAY NURSERY,Third Party Payments,Grants to Other Orgs,66505-OTHER-GRANTS TO OTHER ORGS,"6,435.17",Revenue,15/04/2014,Childrens
WC43-0212,ADVENTURELAND DAY NURSERY,Third Party Payments,Grants to Other Orgs,66505-OTHER-GRANTS TO OTHER ORGS,"4,795.62",Revenue,30/04/2014,Childrens
WC43-0213,ADVOCACY MATTERS LIMITED,Third Party Payments,Private Contractor Fees,70000-SOCIAL SERVICES-FEES TO VOLUNTARY BODIES,"8,696.50",Revenue,01/04/2014,Social Care & Inclusion
WC43-0214,AECOM LIMITED,Capital,Capital,01001-OTHER CONSULTANTS FEES,"3,284.29",Capital,01/04/2014,Regeneration
WC43-0215,AECOM LIMITED,Capital,Capital,01001-OTHER CONSULTANTS FEES,327.00,Capital,01/04/2014,Regeneration
WC43-0216,AECOM LIMITED,Capital,Capital,01001-OTHER CONSULTANTS FEES,"1,912.83",Capital,03/04/2014,Regeneration
WC43-0217,AGE UK WALSALL,Transfer Payments,Transfer Payments,76423-DIRECT PAYMENTS SUPPORT,"4,081.00",Revenue,09/04/2014,Social Care & Inclusion
WC43-0218,AGE UK WALSALL,Transfer Payments,Transfer Payments,76423-DIRECT PAYMENTS SUPPORT,"3,124.00",Revenue,29/04/2014,Social Care & Inclusion
WC43-0219,AGGORA EQUIPMENT LTD,Supplies & Services,"Equip,Furniture & Materials",60006-NEW-FURNITURE & EQUIPMENT,699.00,Revenue,03/04/2014,Neighbourhood Services
WC43-0220,AGGORA EQUIPMENT LTD,Supplies & Services,"Equip,Furniture & Materials",60006-NEW-FURNITURE & EQUIPMENT,228.00,Revenue,03/04/2014,Neighbourhood Services
WC43-0221,AGGORA EQUIPMENT LTD,Supplies & Services,"Printing, Stationery & Office Exp",63500-POSTAGES AND COURIER SERVICES,35.00,Revenue,03/04/2014,Neighbourhood Services
WC43-0222,AGGORA EQUIPMENT LTD,Supplies & Services,"Equip,Furniture & Materials",60006-NEW-FURNITURE & EQUIPMENT,"2,721.00",Revenue,10/04/2014,Neighbourhood Services
WC43-0223,AGINCARE UK LTD,Third Party Payments,Private Contractor Fees,73372-DOMICILIARY CARE,308.00,Revenue,23/04/2014,Social Care & Inclusion
WC43-0224,AGINCARE UK LTD,Third Party Payments,Private Contractor Fees,73372-DOMICILIARY CARE,"1,713.60",Revenue,23/04/2014,Social Care & Inclusion
WC43-0225,AGINCARE UK LTD,Third Party Payments,Private Contractor Fees,73372-DOMICILIARY CARE,"1,713.60",Revenue,23/04/2014,Social Care & Inclusion
WC43-0226,AGINCARE UK LTD,Third Party Payments,Private Contractor Fees,73372-DOMICILIARY CARE,308.00,Revenue,23/04/2014,Social Care & Inclusion
WC43-0227,AIM PROJECT,Employees,Training,30030-EXTERNAL TRAINING,"2,325.00",Revenue,03/04/2014,Childrens
WC43-0228,REDACTED,Transfer Payments,Transfer Payments,76422-DIRECT PAYMENTS TO SOCIAL SERVICES CLIENTS,"1,882.00",Revenue,14/04/2014,Social Care & Inclusion
WC43-0229,REDACTED,Transfer Payments,Transfer Payments,76422-DIRECT PAYMENTS TO SOCIAL SERVICES CLIENTS,936.52,Revenue,14/04/2014,Social Care & Inclusion
WC43-0230,AJK TRAVEL,Transport,Hire,52000-WITH DRIVER-HIRE OF VEHICLES,760.00,Revenue,01/04/2014,Childrens
WC43-0231,AJK TRAVEL,Transport,Hire,52000-WITH DRIVER-HIRE OF VEHICLES,710.00,Revenue,01/04/2014,Childrens
WC43-0232,AJK TRAVEL,Transport,Hire,52000-WITH DRIVER-HIRE OF VEHICLES,760.00,Revenue,01/04/2014,Childrens
WC43-0233,AJK TRAVEL,Transport,Hire,52000-WITH DRIVER-HIRE OF VEHICLES,470.00,Revenue,01/04/2014,Childrens
WC43-0234,AJK TRAVEL,Transport,Hire,52000-WITH DRIVER-HIRE OF VEHICLES,450.00,Revenue,03/04/2014,Childrens
WC43-0235,AJK TRAVEL,Transport,Hire,52000-WITH DRIVER-HIRE OF VEHICLES,760.00,Revenue,03/04/2014,Childrens
WC43-0236,AJK TRAVEL,Transport,Hire,52000-WITH DRIVER-HIRE OF VEHICLES,710.00,Revenue,03/04/2014,Childrens
WC43-0237,AJK TRAVEL,Transport,Hire,52000-WITH DRIVER-HIRE OF VEHICLES,760.00,Revenue,03/04/2014,Childrens
WC43-0238,AJK TRAVEL,Transport,Hire,52000-WITH DRIVER-HIRE OF VEHICLES,460.00,Revenue,03/04/2014,Childrens
WC43-0239,AJK TRAVEL,Transport,Hire,52000-WITH DRIVER-HIRE OF VEHICLES,460.00,Revenue,03/04/2014,Childrens
WC43-0240,AJK TRAVEL,Transport,Hire,52000-WITH DRIVER-HIRE OF VEHICLES,470.00,Revenue,03/04/2014,Childrens
WC43-0241,AJK TRAVEL,Transport,Hire,52000-WITH DRIVER-HIRE OF VEHICLES,600.00,Revenue,03/04/2014,Childrens
WC43-0242,AJK TRAVEL,Transport,Hire,52000-WITH DRIVER-HIRE OF VEHICLES,550.00,Revenue,03/04/2014,Childrens
WC43-0243,AJK TRAVEL,Transport,Hire,52000-WITH DRIVER-HIRE OF VEHICLES,450.00,Revenue,09/04/2014,Childrens
WC43-0244,AJK TRAVEL,Transport,Hire,52000-WITH DRIVER-HIRE OF VEHICLES,760.00,Revenue,09/04/2014,Childrens
WC43-0245,AJK TRAVEL,Transport,Hire,52000-WITH DRIVER-HIRE OF VEHICLES,710.00,Revenue,09/04/2014,Childrens
WC43-0246,AJK TRAVEL,Transport,Hire,52000-WITH DRIVER-HIRE OF VEHICLES,760.00,Revenue,09/04/2014,Childrens
WC43-0247,AJK TRAVEL,Transport,Hire,52000-WITH DRIVER-HIRE OF VEHICLES,460.00,Revenue,09/04/2014,Childrens
WC43-0248,AJK TRAVEL,Transport,Hire,52000-WITH DRIVER-HIRE OF VEHICLES,460.00,Revenue,09/04/2014,Childrens
WC43-0249,AJK TRAVEL,Transport,Hire,52000-WITH DRIVER-HIRE OF VEHICLES,470.00,Revenue,09/04/2014,Childrens
WC43-0250,AJK TRAVEL,Transport,Hire,52000-WITH DRIVER-HIRE OF VEHICLES,600.00,Revenue,09/04/2014,Childrens
WC43-0251,AJK TRAVEL,Transport,Hire,52000-WITH DRIVER-HIRE OF VEHICLES,550.00,Revenue,09/04/2014,Childrens
WC43-0252,AJK TRAVEL,Transport,Hire,52000-WITH DRIVER-HIRE OF VEHICLES,360.00,Revenue,28/04/2014,Childrens
WC43-0253,AJK TRAVEL,Transport,Hire,52000-WITH DRIVER-HIRE OF VEHICLES,760.00,Revenue,28/04/2014,Childrens
WC43-0254,AJK TRAVEL,Transport,Hire,52000-WITH DRIVER-HIRE OF VEHICLES,710.00,Revenue,28/04/2014,Childrens
WC43-0255,AJK TRAVEL,Transport,Hire,52000-WITH DRIVER-HIRE OF VEHICLES,760.00,Revenue,28/04/2014,Childrens
WC43-0256,AJK TRAVEL,Transport,Hire,52000-WITH DRIVER-HIRE OF VEHICLES,460.00,Revenue,28/04/2014,Childrens
WC43-0257,AJK TRAVEL,Transport,Hire,52000-WITH DRIVER-HIRE OF VEHICLES,460.00,Revenue,28/04/2014,Childrens
WC43-0258,AJK TRAVEL,Transport,Hire,52000-WITH DRIVER-HIRE OF VEHICLES,470.00,Revenue,28/04/2014,Childrens
WC43-0259,AJK TRAVEL,Transport,Hire,52000-WITH DRIVER-HIRE OF VEHICLES,480.00,Revenue,28/04/2014,Childrens
WC43-0260,AJK TRAVEL,Transport,Hire,52000-WITH DRIVER-HIRE OF VEHICLES,440.00,Revenue,28/04/2014,Childrens
WC43-0261,ALAN GODFREY MAPS,Supplies & Services,Subscriptions,64500-PUBLICATIONS/ORGANISATIONS-SUBSCRIPTIONS,275.00,Revenue,14/04/2014,Neighbourhood Services
WC43-0262,REDACTED,Transfer Payments,Transfer Payments,76422-DIRECT PAYMENTS TO SOCIAL SERVICES CLIENTS,667.80,Revenue,14/04/2014,Social Care & Inclusion
WC43-0263,REDACTED,Transfer Payments,Transfer Payments,76422-DIRECT PAYMENTS TO SOCIAL SERVICES CLIENTS,"2,118.48",Revenue,14/04/2014,Social Care & Inclusion
WC43-0264,ALDERGROVE MANOR CARE HOME,Third Party Payments,Private Contractor Fees,73373-RESIDENTIAL & NURSING CARE PLACEMENTS,382.39,Revenue,08/04/2014,Social Care & Inclusion
WC43-0265,ALDERGROVE MANOR CARE HOME,Third Party Payments,Private Contractor Fees,73373-RESIDENTIAL & NURSING CARE PLACEMENTS,"1,402.09",Revenue,08/04/2014,Social Care & Inclusion
WC43-0266,ALDRIDGE & BARONS LIMITED,Transport,Hire,52000-WITH DRIVER-HIRE OF VEHICLES,680.00,Revenue,28/04/2014,Childrens
WC43-0267,ALDRIDGE & BARONS LIMITED,Transport,Hire,52000-WITH DRIVER-HIRE OF VEHICLES,"4,200.00",Revenue,28/04/2014,Childrens
WC43-0268,ALDRIDGE & BARONS LIMITED,Transport,Hire,52000-WITH DRIVER-HIRE OF VEHICLES,"1,428.00",Revenue,28/04/2014,Childrens
WC43-0269,ALDRIDGE & BARONS LIMITED,Transport,Hire,52000-WITH DRIVER-HIRE OF VEHICLES,952.00,Revenue,28/04/2014,Childrens
WC43-0270,ALDRIDGE & BARONS LIMITED,Transport,Hire,52000-WITH DRIVER-HIRE OF VEHICLES,"2,838.00",Revenue,28/04/2014,Childrens
WC43-0271,ALDRIDGE & BARONS LIMITED,Transport,Hire,52000-WITH DRIVER-HIRE OF VEHICLES,"4,420.00",Revenue,28/04/2014,Childrens
WC43-0272,ALDRIDGE & BARONS LIMITED,Transport,Hire,52000-WITH DRIVER-HIRE OF VEHICLES,"1,564.00",Revenue,28/04/2014,Childrens
WC43-0273,ALDRIDGE & BARONS LIMITED,Transport,Hire,52000-WITH DRIVER-HIRE OF VEHICLES,"1,104.00",Revenue,28/04/2014,Childrens
WC43-0274,ALDRIDGE & BARONS LIMITED,Transport,Hire,52000-WITH DRIVER-HIRE OF VEHICLES,"2,720.00",Revenue,28/04/2014,Childrens
WC43-0275,ALDRIDGE & BARONS LIMITED,Transport,Hire,52000-WITH DRIVER-HIRE OF VEHICLES,"1,700.00",Revenue,28/04/2014,Childrens
WC43-0276,ALDRIDGE & BARONS LIMITED,Transport,Hire,52000-WITH DRIVER-HIRE OF VEHICLES,"3,196.00",Revenue,28/04/2014,Childrens
WC43-0277,ALDRIDGE & BARONS LIMITED,Transport,Hire,52000-WITH DRIVER-HIRE OF VEHICLES,"3,196.00",Revenue,28/04/2014,Childrens
WC43-0278,ALDRIDGE & BARONS LIMITED,Transport,Hire,52000-WITH DRIVER-HIRE OF VEHICLES,540.00,Revenue,28/04/2014,Childrens
WC43-0279,ALERE LTD,Supplies & Services,Communications & Computing,63809-LICENCES-COMPUTER,710.00,Revenue,09/04/2014,Neighbourhood Services
WC43-0280,REDACTED,Transfer Payments,Transfer Payments,76422-DIRECT PAYMENTS TO SOCIAL SERVICES CLIENTS,335.04,Revenue,14/04/2014,Social Care & Inclusion
WC43-0281,ALEXANDRA HOUSE CARE SERVICES LTD T/A STONEBRIDGE NURSING HOME,Third Party Payments,Private Contractor Fees,73373-RESIDENTIAL & NURSING CARE PLACEMENTS,"4,972.03",Revenue,22/04/2014,Social Care & Inclusion
WC43-0282,ALEXANDRA HOUSE CARE SERVICES LTD T/A STONEBRIDGE NURSING HOME,Third Party Payments,Private Contractor Fees,73373-RESIDENTIAL & NURSING CARE PLACEMENTS,"1,988.81",Revenue,22/04/2014,Social Care & Inclusion
WC43-0283,ALEXANDRA HOUSE CARE SERVICES LTD T/A STONEBRIDGE NURSING HOME,Third Party Payments,Private Contractor Fees,73373-RESIDENTIAL & NURSING CARE PLACEMENTS,"6,960.84",Revenue,22/04/2014,Social Care & Inclusion
WC43-0284,REDACTED,Transfer Payments,Transfer Payments,76422-DIRECT PAYMENTS TO SOCIAL SERVICES CLIENTS,582.67,Revenue,14/04/2014,Childrens
WC43-0285,REDACTED,Transfer Payments,Transfer Payments,76422-DIRECT PAYMENTS TO SOCIAL SERVICES CLIENTS,854.00,Revenue,14/04/2014,Social Care & Inclusion
WC43-0286,REDACTED,Transfer Payments,Transfer Payments,76422-DIRECT PAYMENTS TO SOCIAL SERVICES CLIENTS,328.80,Revenue,14/04/2014,Social Care & Inclusion
WC43-0287,REDACTED,Third Party Payments,Private Contractor Fees,74006-HOLIDAY/CHRISTMAS ALLOWANCE-FOSTER CARERS-OTH AGENCY PROVISION,781.95,Revenue,01/04/2014,Childrens
WC43-0288,REDACTED,Supplies & Services,Other Supplies & Services,62515-MISCELLANEOUS SUPPLIES,"1,428.44",Revenue,28/04/2014,Childrens
WC43-0289,REDACTED,Third Party Payments,Private Contractor Fees,74006-HOLIDAY/CHRISTMAS ALLOWANCE-FOSTER CARERS-OTH AGENCY PROVISION,796.00,Revenue,28/04/2014,Childrens
WC43-0290,REDACTED,Third Party Payments,Private Contractor Fees,74006-HOLIDAY/CHRISTMAS ALLOWANCE-FOSTER CARERS-OTH AGENCY PROVISION,539.14,Revenue,14/04/2014,Childrens
WC43-0291,ALLIANCE HOMECARE SERVICES,Third Party Payments,Private Contractor Fees,73374-SUPPORTED & OTHER ACCOMMODATION,"6,440.00",Revenue,02/04/2014,Social Care & Inclusion
WC43-0292,ALLIANCE HOMECARE SERVICES,Third Party Payments,Private Contractor Fees,73372-DOMICILIARY CARE,"17,101.32",Revenue,02/04/2014,Social Care & Inclusion
WC43-0293,ALLIANCE HOMECARE SERVICES,Third Party Payments,Private Contractor Fees,73374-SUPPORTED & OTHER ACCOMMODATION,"6,440.00",Revenue,02/04/2014,Social Care & Inclusion
WC43-0294,ALLIANCE HOMECARE SERVICES,Third Party Payments,Private Contractor Fees,73372-DOMICILIARY CARE,"17,384.55",Revenue,02/04/2014,Social Care & Inclusion
WC43-0295,ALLSORTS OFFICE SUPPLIES LTD,Supplies & Services,"Equip,Furniture & Materials",60000-FURNITURE & EQUIPMENT,"1,360.00",Revenue,01/04/2014,Regeneration
WC43-0296,ALLSORTS OFFICE SUPPLIES LTD,Supplies & Services,"Equip,Furniture & Materials",60000-FURNITURE & EQUIPMENT,283.44,Revenue,01/04/2014,Regeneration
WC43-0297,ALLSORTS OFFICE SUPPLIES LTD,Supplies & Services,"Equip,Furniture & Materials",60000-FURNITURE & EQUIPMENT,680.00,Revenue,01/04/2014,Regeneration
WC43-0298,ALLSTAR BUSINESS SOLUTIONS LTD,Transport,Other Transport,50301-FUEL-TRANSPORT RUN COSTS,863.73,Revenue,07/04/2014,Neighbourhood Services
WC43-0299,ALLSTAR BUSINESS SOLUTIONS LTD,Transport,Other Transport,50301-FUEL-TRANSPORT RUN COSTS,467.80,Revenue,25/04/2014,Neighbourhood Services
WC43-0300,ALMA COURT,Third Party Payments,Private Contractor Fees,73373-RESIDENTIAL & NURSING CARE PLACEMENTS,"8,391.43",Revenue,08/04/2014,Social Care & Inclusion
WC43-0301,ALMA COURT,Third Party Payments,Private Contractor Fees,73373-RESIDENTIAL & NURSING CARE PLACEMENTS,"5,978.57",Revenue,22/04/2014,Social Care & Inclusion
WC43-0302,ALMOND CARE,Supplies & Services,Services,63000-PROFESSIONAL FEES AND SERVICES,521.95,Revenue,16/04/2014,Childrens
WC43-0303,ALMOND CARE,Supplies & Services,Services,63000-PROFESSIONAL FEES AND SERVICES,481.80,Revenue,16/04/2014,Childrens
WC43-0304,ALMOZENE NURSERY & CHILDRENS CENTRE,Third Party Payments,Grants to Other Orgs,66505-OTHER-GRANTS TO OTHER ORGS,"8,540.35",Revenue,15/04/2014,Childrens
WC43-0305,ALMOZENE NURSERY & CHILDRENS CENTRE,Supplies & Services,Other Supplies & Services,63120-CRECHE FACILITIES-SERVICES-FEES,273.60,Revenue,30/04/2014,Neighbourhood Services
WC43-0306,ALPHA HEALTH CARE LTD,Third Party Payments,Private Contractor Fees,73373-RESIDENTIAL & NURSING CARE PLACEMENTS,"1,375.60",Revenue,15/04/2014,Social Care & Inclusion
WC43-0307,ALPHA HEALTH CARE LTD,Third Party Payments,Private Contractor Fees,73373-RESIDENTIAL & NURSING CARE PLACEMENTS,"1,460.40",Revenue,15/04/2014,Social Care & Inclusion
WC43-0308,ALPHA HEALTH CARE LTD,Third Party Payments,Private Contractor Fees,73373-RESIDENTIAL & NURSING CARE PLACEMENTS,"1,547.36",Revenue,22/04/2014,Social Care & Inclusion
WC43-0309,ALPHA HEALTH CARE LTD,Third Party Payments,Private Contractor Fees,73373-RESIDENTIAL & NURSING CARE PLACEMENTS,966.58,Revenue,22/04/2014,Social Care & Inclusion
WC43-0310,ALPHA HEALTH CARE LTD,Third Party Payments,Private Contractor Fees,73373-RESIDENTIAL & NURSING CARE PLACEMENTS,"1,387.29",Revenue,22/04/2014,Social Care & Inclusion
WC43-0311,ALPHA HEALTH CARE LTD,Third Party Payments,Private Contractor Fees,73373-RESIDENTIAL & NURSING CARE PLACEMENTS,"1,375.60",Revenue,22/04/2014,Social Care & Inclusion
WC43-0312,ALPHA HEALTH CARE LTD,Third Party Payments,Private Contractor Fees,73373-RESIDENTIAL & NURSING CARE PLACEMENTS,"1,375.60",Revenue,22/04/2014,Social Care & Inclusion
WC43-0313,ALPHA HEALTH CARE LTD,Third Party Payments,Private Contractor Fees,73373-RESIDENTIAL & NURSING CARE PLACEMENTS,"1,476.84",Revenue,22/04/2014,Social Care & Inclusion
WC43-0314,ALPHA HEALTH CARE LTD,Third Party Payments,Private Contractor Fees,73373-RESIDENTIAL & NURSING CARE PLACEMENTS,"1,476.84",Revenue,22/04/2014,Social Care & Inclusion
WC43-0315,ALPHA HEALTH CARE LTD,Third Party Payments,Private Contractor Fees,73373-RESIDENTIAL & NURSING CARE PLACEMENTS,"1,494.04",Revenue,22/04/2014,Social Care & Inclusion
WC43-0316,ALPHA HEALTH CARE LTD,Third Party Payments,Private Contractor Fees,73373-RESIDENTIAL & NURSING CARE PLACEMENTS,"1,494.00",Revenue,22/04/2014,Social Care & Inclusion
WC43-0317,ALPHA HEALTH CARE LTD,Third Party Payments,Private Contractor Fees,73373-RESIDENTIAL & NURSING CARE PLACEMENTS,"1,475.00",Revenue,22/04/2014,Social Care & Inclusion
WC43-0318,ALPHA HEALTH CARE LTD,Third Party Payments,Private Contractor Fees,73373-RESIDENTIAL & NURSING CARE PLACEMENTS,"1,387.40",Revenue,22/04/2014,Social Care & Inclusion
WC43-0319,ALPHA HEALTH CARE LTD,Third Party Payments,Private Contractor Fees,73373-RESIDENTIAL & NURSING CARE PLACEMENTS,"1,494.00",Revenue,22/04/2014,Social Care & Inclusion
WC43-0320,ALPHA HEALTH CARE LTD,Third Party Payments,Private Contractor Fees,73373-RESIDENTIAL & NURSING CARE PLACEMENTS,"1,494.00",Revenue,22/04/2014,Social Care & Inclusion
WC43-0321,ALPHA HEALTH CARE LTD,Third Party Payments,Private Contractor Fees,73373-RESIDENTIAL & NURSING CARE PLACEMENTS,"5,431.12",Revenue,22/04/2014,Social Care & Inclusion
WC43-0322,ALPHA HEALTH CARE LTD,Third Party Payments,Private Contractor Fees,73373-RESIDENTIAL & NURSING CARE PLACEMENTS,"1,494.00",Revenue,22/04/2014,Social Care & Inclusion
WC43-0323,ALPHA HEALTH CARE LTD,Third Party Payments,Private Contractor Fees,73373-RESIDENTIAL & NURSING CARE PLACEMENTS,"1,494.00",Revenue,22/04/2014,Social Care & Inclusion
WC43-0324,ALPHA HEALTH CARE LTD,Third Party Payments,Private Contractor Fees,73373-RESIDENTIAL & NURSING CARE PLACEMENTS,"1,494.00",Revenue,22/04/2014,Social Care & Inclusion
WC43-0325,ALPHA HEALTH CARE LTD,Third Party Payments,Private Contractor Fees,73373-RESIDENTIAL & NURSING CARE PLACEMENTS,"1,494.00",Revenue,22/04/2014,Social Care & Inclusion
WC43-0326,ALPHA HEALTH CARE LTD,Third Party Payments,Private Contractor Fees,73373-RESIDENTIAL & NURSING CARE PLACEMENTS,"1,494.00",Revenue,22/04/2014,Social Care & Inclusion
WC43-0327,ALPHA HEALTH CARE LTD,Third Party Payments,Private Contractor Fees,73373-RESIDENTIAL & NURSING CARE PLACEMENTS,"2,113.84",Revenue,22/04/2014,Social Care & Inclusion
WC43-0328,ALPHA HEALTH CARE LTD,Third Party Payments,Private Contractor Fees,73373-RESIDENTIAL & NURSING CARE PLACEMENTS,"1,494.00",Revenue,22/04/2014,Social Care & Inclusion
WC43-0329,ALPHA HEALTH CARE LTD,Third Party Payments,Private Contractor Fees,73373-RESIDENTIAL & NURSING CARE PLACEMENTS,"1,494.00",Revenue,22/04/2014,Social Care & Inclusion
WC43-0330,ALPHA HEALTH CARE LTD,Third Party Payments,Private Contractor Fees,73373-RESIDENTIAL & NURSING CARE PLACEMENTS,"2,012.60",Revenue,22/04/2014,Social Care & Inclusion
WC43-0331,ALPHA HEALTH CARE LTD,Third Party Payments,Private Contractor Fees,73373-RESIDENTIAL & NURSING CARE PLACEMENTS,"1,494.00",Revenue,22/04/2014,Social Care & Inclusion
WC43-0332,ALPHA HEALTH CARE LTD,Third Party Payments,Private Contractor Fees,73373-RESIDENTIAL & NURSING CARE PLACEMENTS,"1,594.72",Revenue,22/04/2014,Social Care & Inclusion
WC43-0333,ALPHA HEALTH CARE LTD,Third Party Payments,Private Contractor Fees,73373-RESIDENTIAL & NURSING CARE PLACEMENTS,"1,476.84",Revenue,22/04/2014,Social Care & Inclusion
WC43-0334,ALPHA HEALTH CARE LTD,Third Party Payments,Private Contractor Fees,73373-RESIDENTIAL & NURSING CARE PLACEMENTS,"1,494.00",Revenue,22/04/2014,Social Care & Inclusion
WC43-0335,ALPHA HEALTH CARE LTD,Third Party Payments,Private Contractor Fees,73373-RESIDENTIAL & NURSING CARE PLACEMENTS,"1,534.12",Revenue,22/04/2014,Social Care & Inclusion
WC43-0336,ALPHA HEALTH CARE LTD,Third Party Payments,Private Contractor Fees,73373-RESIDENTIAL & NURSING CARE PLACEMENTS,"1,534.12",Revenue,22/04/2014,Social Care & Inclusion
WC43-0337,ALPHA HEALTH CARE LTD,Third Party Payments,Private Contractor Fees,73373-RESIDENTIAL & NURSING CARE PLACEMENTS,"1,534.12",Revenue,22/04/2014,Social Care & Inclusion
WC43-0338,ALPHA HEALTH CARE LTD,Third Party Payments,Private Contractor Fees,73373-RESIDENTIAL & NURSING CARE PLACEMENTS,"1,494.00",Revenue,22/04/2014,Social Care & Inclusion
WC43-0339,ALPHA HEALTH CARE LTD,Third Party Payments,Private Contractor Fees,73373-RESIDENTIAL & NURSING CARE PLACEMENTS,"1,494.00",Revenue,22/04/2014,Social Care & Inclusion
WC43-0340,ALPHA HEALTH CARE LTD,Third Party Payments,Private Contractor Fees,73373-RESIDENTIAL & NURSING CARE PLACEMENTS,"1,475.00",Revenue,22/04/2014,Social Care & Inclusion
WC43-0341,ALPHA HEALTH CARE LTD,Third Party Payments,Private Contractor Fees,73373-RESIDENTIAL & NURSING CARE PLACEMENTS,"1,534.28",Revenue,22/04/2014,Social Care & Inclusion
WC43-0342,ALPHA HEALTH CARE LTD,Third Party Payments,Private Contractor Fees,73373-RESIDENTIAL & NURSING CARE PLACEMENTS,"1,382.00",Revenue,22/04/2014,Social Care & Inclusion
WC43-0343,ALPHA HEALTH CARE LTD,Third Party Payments,Private Contractor Fees,73373-RESIDENTIAL & NURSING CARE PLACEMENTS,"1,375.60",Revenue,22/04/2014,Social Care & Inclusion
WC43-0344,ALPHA HEALTH CARE LTD,Third Party Payments,Private Contractor Fees,73373-RESIDENTIAL & NURSING CARE PLACEMENTS,"1,460.40",Revenue,22/04/2014,Social Care & Inclusion
WC43-0345,ALPHA HEALTH CARE LTD,Third Party Payments,Private Contractor Fees,73373-RESIDENTIAL & NURSING CARE PLACEMENTS,"1,534.12",Revenue,22/04/2014,Social Care & Inclusion
WC43-0346,ALPHA HEALTH CARE LTD,Third Party Payments,Private Contractor Fees,73373-RESIDENTIAL & NURSING CARE PLACEMENTS,"1,534.12",Revenue,22/04/2014,Social Care & Inclusion
WC43-0347,ALPHA HEALTH CARE LTD,Third Party Payments,Private Contractor Fees,73373-RESIDENTIAL & NURSING CARE PLACEMENTS,"2,503.54",Revenue,29/04/2014,Social Care & Inclusion
WC43-0348,ALTODIGITAL NETWORKS LTD,Supplies & Services,"Equip,Furniture & Materials",60009-LEASING/HIRE/RENTAL-EQUIPMENT,"1,778.16",Revenue,01/04/2014,Childrens
WC43-0349,ALTODIGITAL NETWORKS LTD,Supplies & Services,"Equip,Furniture & Materials",60006-NEW-FURNITURE & EQUIPMENT,398.40,Revenue,01/04/2014,Resources
WC43-0350,ALTODIGITAL NETWORKS LTD,Supplies & Services,"Equip,Furniture & Materials",60009-LEASING/HIRE/RENTAL-EQUIPMENT,409.34,Revenue,01/04/2014,Resources
WC43-0351,ALTODIGITAL NETWORKS LTD,Supplies & Services,"Equip,Furniture & Materials",60009-LEASING/HIRE/RENTAL-EQUIPMENT,253.47,Revenue,03/04/2014,Resources
WC43-0352,ALTODIGITAL NETWORKS LTD,Supplies & Services,"Equip,Furniture & Materials",60009-LEASING/HIRE/RENTAL-EQUIPMENT,590.62,Revenue,03/04/2014,Resources
WC43-0353,ALTODIGITAL NETWORKS LTD,Supplies & Services,"Equip,Furniture & Materials",60009-LEASING/HIRE/RENTAL-EQUIPMENT,384.52,Revenue,07/04/2014,Resources
WC43-0354,ALTODIGITAL NETWORKS LTD,Supplies & Services,"Equip,Furniture & Materials",60009-LEASING/HIRE/RENTAL-EQUIPMENT,489.89,Revenue,07/04/2014,Resources
WC43-0355,ALTODIGITAL NETWORKS LTD,Supplies & Services,"Equip,Furniture & Materials",60004-PHOTOGRAPHIC DEVELOPMENT/PRINTING-EQUIPMENT,533.62,Revenue,08/04/2014,Social Care & Inclusion
WC43-0356,ALTODIGITAL NETWORKS LTD,Supplies & Services,"Equip,Furniture & Materials",60009-LEASING/HIRE/RENTAL-EQUIPMENT,"3,286.17",Revenue,09/04/2014,Resources
WC43-0357,ALUMWELL DAY CARE,Supplies & Services,Other Supplies & Services,63120-CRECHE FACILITIES-SERVICES-FEES,540.00,Revenue,02/04/2014,Neighbourhood Services
WC43-0358,ALUMWELLIES NURSERY,Employees,Other Staff Costs,32000-MISC FEES AND EXPENSES,"1,260.00",Revenue,03/04/2014,Childrens
WC43-0359,ALUMWELLIES NURSERY,Third Party Payments,Grants to Other Orgs,66505-OTHER-GRANTS TO OTHER ORGS,"15,941.98",Revenue,15/04/2014,Childrens
WC43-0360,REDACTED,Third Party Payments,Private Contractor Fees,74006-HOLIDAY/CHRISTMAS ALLOWANCE-FOSTER CARERS-OTH AGENCY PROVISION,469.36,Revenue,14/04/2014,Childrens
WC43-0361,REDACTED,Third Party Payments,Private Contractor Fees,74006-HOLIDAY/CHRISTMAS ALLOWANCE-FOSTER CARERS-OTH AGENCY PROVISION,"1,790.76",Revenue,14/04/2014,Childrens
WC43-0362,REDACTED,Third Party Payments,Private Contractor Fees,74006-HOLIDAY/CHRISTMAS ALLOWANCE-FOSTER CARERS-OTH AGENCY PROVISION,551.42,Revenue,01/04/2014,Childrens
WC43-0363,REDACTED,Supplies & Services,Other Supplies & Services,62515-MISCELLANEOUS SUPPLIES,350.40,Revenue,28/04/2014,Childrens
WC43-0364,REDACTED,Third Party Payments,Private Contractor Fees,74006-HOLIDAY/CHRISTMAS ALLOWANCE-FOSTER CARERS-OTH AGENCY PROVISION,561.32,Revenue,28/04/2014,Childrens
WC43-0365,REDACTED,Transfer Payments,Transfer Payments,76422-DIRECT PAYMENTS TO SOCIAL SERVICES CLIENTS,"13,543.72",Revenue,14/04/2014,Social Care & Inclusion
WC43-0366,REDACTED,Transfer Payments,Transfer Payments,76422-DIRECT PAYMENTS TO SOCIAL SERVICES CLIENTS,654.51,Revenue,14/04/2014,Social Care & Inclusion
WC43-0367,AMBASSADOR BUSINESS SERVICES LTD,Supplies & Services,Services,63000-PROFESSIONAL FEES AND SERVICES,495.00,Revenue,03/04/2014,Childrens
WC43-0368,REDACTED,Transfer Payments,Transfer Payments,74012-PLACEMENT WITH RELATIVES (REG 1 CHILDRENS ACT 1989),"1,341.94",Revenue,02/04/2014,Childrens
WC43-0369,REDACTED,Third Party Payments,Private Contractor Fees,74006-HOLIDAY/CHRISTMAS ALLOWANCE-FOSTER CARERS-OTH AGENCY PROVISION,"1,676.76",Revenue,14/04/2014,Childrens
WC43-0370,AMEY LG LIMITED,Capital,Capital,01006-SITE WORKS MAIN CONTRACTORS,"30,596.28",Capital,01/04/2014,Regeneration
WC43-0371,AMEY LG LIMITED,Supplies & Services,"Equip,Furniture & Materials",60500-GENERAL MATERIALS,"3,600.00",Revenue,02/04/2014,Neighbourhood Services
WC43-0372,AMEY LG LIMITED,Third Party Payments,Private Contractor Fees,73025-PROFESSIONAL SERVICES-PRIV CONTRACTOR & OTHER AGENCIES,"7,763.39",Revenue,03/04/2014,Neighbourhood Services
WC43-0373,AMEY LG LIMITED,Supplies & Services,Other Supplies & Services,62515-MISCELLANEOUS SUPPLIES,"15,970.56",Revenue,04/04/2014,Neighbourhood Services
WC43-0374,AMEY LG LIMITED,Third Party Payments,Private Contractor Fees,73025-PROFESSIONAL SERVICES-PRIV CONTRACTOR & OTHER AGENCIES,404.70,Revenue,10/04/2014,Neighbourhood Services
WC43-0375,AMEY LG LIMITED,Third Party Payments,Private Contractor Fees,73025-PROFESSIONAL SERVICES-PRIV CONTRACTOR & OTHER AGENCIES,261.75,Revenue,10/04/2014,Neighbourhood Services
WC43-0376,AMEY LG LIMITED,Capital,Capital,01006-SITE WORKS MAIN CONTRACTORS,500.00,Capital,14/04/2014,Regeneration
WC43-0377,AMEY LG LIMITED,Supplies & Services,Other Supplies & Services,62515-MISCELLANEOUS SUPPLIES,"1,497.24",Revenue,15/04/2014,Neighbourhood Services
WC43-0378,AMEY LG LIMITED,Capital,Capital,01009-SITE WORKS - OTHER CONTRACTORS,255.36,Capital,16/04/2014,Regeneration
WC43-0379,AMEY LG LIMITED,Capital,Capital,01009-SITE WORKS - OTHER CONTRACTORS,"10,754.67",Capital,23/04/2014,Regeneration
WC43-0380,AMG NURSING CARE SERVICES,Supplies & Services,Services,63000-PROFESSIONAL FEES AND SERVICES,"1,088.88",Revenue,04/04/2014,Childrens
WC43-0381,AMG NURSING CARE SERVICES,Supplies & Services,Services,63000-PROFESSIONAL FEES AND SERVICES,"2,229.76",Revenue,04/04/2014,Childrens
WC43-0382,AMG NURSING CARE SERVICES,Supplies & Services,Services,63000-PROFESSIONAL FEES AND SERVICES,"2,229.76",Revenue,22/04/2014,Childrens
WC43-0383,AMG NURSING CARE SERVICES,Third Party Payments,Private Contractor Fees,73372-DOMICILIARY CARE,"6,146.46",Revenue,23/04/2014,Social Care & Inclusion
WC43-0384,AMG NURSING CARE SERVICES,Supplies & Services,Services,63000-PROFESSIONAL FEES AND SERVICES,"2,592.72",Revenue,24/04/2014,Childrens
WC43-0385,AMG NURSING CARE SERVICES,Third Party Payments,Private Contractor Fees,73374-SUPPORTED & OTHER ACCOMMODATION,"3,484.80",Revenue,28/04/2014,Social Care & Inclusion
WC43-0386,AMG NURSING CARE SERVICES,Supplies & Services,Services,63000-PROFESSIONAL FEES AND SERVICES,"1,088.88",Revenue,28/04/2014,Childrens
WC43-0387,REDACTED,Transfer Payments,Transfer Payments,76422-DIRECT PAYMENTS TO SOCIAL SERVICES CLIENTS,"1,485.40",Revenue,14/04/2014,Social Care & Inclusion
WC43-0388,REDACTED,Transfer Payments,Transfer Payments,76422-DIRECT PAYMENTS TO SOCIAL SERVICES CLIENTS,891.24,Revenue,14/04/2014,Social Care & Inclusion
WC43-0389,REDACTED,Third Party Payments,Private Contractor Fees,74006-HOLIDAY/CHRISTMAS ALLOWANCE-FOSTER CARERS-OTH AGENCY PROVISION,414.88,Revenue,14/04/2014,Childrens
WC43-0390,REDACTED,Transfer Payments,Transfer Payments,76422-DIRECT PAYMENTS TO SOCIAL SERVICES CLIENTS,569.51,Revenue,14/04/2014,Social Care & Inclusion
WC43-0391,REDACTED,Employees,Agency,34305-AGENCY STAFF-EMPLOYEES,554.47,Revenue,09/04/2014,Neighbourhood Services
WC43-0392,REDACTED,Third Party Payments,Private Contractor Fees,74006-HOLIDAY/CHRISTMAS ALLOWANCE-FOSTER CARERS-OTH AGENCY PROVISION,628.11,Revenue,01/04/2014,Childrens
WC43-0393,REDACTED,Supplies & Services,Other Supplies & Services,62515-MISCELLANEOUS SUPPLIES,"1,186.92",Revenue,28/04/2014,Childrens
WC43-0394,REDACTED,Third Party Payments,Private Contractor Fees,74006-HOLIDAY/CHRISTMAS ALLOWANCE-FOSTER CARERS-OTH AGENCY PROVISION,751.84,Revenue,28/04/2014,Childrens
WC43-0395,REDACTED,Transfer Payments,Transfer Payments,76422-DIRECT PAYMENTS TO SOCIAL SERVICES CLIENTS,378.00,Revenue,14/04/2014,Social Care & Inclusion
WC43-0396,REDACTED,Third Party Payments,Private Contractor Fees,74006-HOLIDAY/CHRISTMAS ALLOWANCE-FOSTER CARERS-OTH AGENCY PROVISION,"1,767.35",Revenue,01/04/2014,Childrens
WC43-0397,REDACTED,Supplies & Services,Other Supplies & Services,62515-MISCELLANEOUS SUPPLIES,"1,428.44",Revenue,28/04/2014,Childrens
WC43-0398,REDACTED,Third Party Payments,Private Contractor Fees,74006-HOLIDAY/CHRISTMAS ALLOWANCE-FOSTER CARERS-OTH AGENCY PROVISION,"1,800.44",Revenue,28/04/2014,Childrens
WC43-0399,ANGEL COURT RESIDENTIAL CARE HOME,Third Party Payments,Private Contractor Fees,73373-RESIDENTIAL & NURSING CARE PLACEMENTS,"1,698.49",Revenue,08/04/2014,Social Care & Inclusion
WC43-0400,ANGEL COURT RESIDENTIAL CARE HOME,Third Party Payments,Private Contractor Fees,73373-RESIDENTIAL & NURSING CARE PLACEMENTS,"1,746.14",Revenue,08/04/2014,Social Care & Inclusion
WC43-0401,ANGEL COURT RESIDENTIAL CARE HOME,Third Party Payments,Private Contractor Fees,73373-RESIDENTIAL & NURSING CARE PLACEMENTS,"1,857.25",Revenue,08/04/2014,Social Care & Inclusion
WC43-0402,ANGEL COURT RESIDENTIAL CARE HOME,Third Party Payments,Private Contractor Fees,73373-RESIDENTIAL & NURSING CARE PLACEMENTS,416.27,Revenue,15/04/2014,Social Care & Inclusion
WC43-0403,ANGEL COURT RESIDENTIAL CARE HOME,Third Party Payments,Private Contractor Fees,73373-RESIDENTIAL & NURSING CARE PLACEMENTS,"1,643.70",Revenue,22/04/2014,Social Care & Inclusion
WC43-0404,ANGEL COURT RESIDENTIAL CARE HOME,Third Party Payments,Private Contractor Fees,73373-RESIDENTIAL & NURSING CARE PLACEMENTS,"1,698.49",Revenue,22/04/2014,Social Care & Inclusion
WC43-0405,ANGEL COURT RESIDENTIAL CARE HOME,Third Party Payments,Private Contractor Fees,73373-RESIDENTIAL & NURSING CARE PLACEMENTS,"1,643.70",Revenue,22/04/2014,Social Care & Inclusion
WC43-0406,ANGEL COURT RESIDENTIAL CARE HOME,Third Party Payments,Private Contractor Fees,73373-RESIDENTIAL & NURSING CARE PLACEMENTS,"1,689.81",Revenue,22/04/2014,Social Care & Inclusion
WC43-0407,ANGEL COURT RESIDENTIAL CARE HOME,Third Party Payments,Private Contractor Fees,73373-RESIDENTIAL & NURSING CARE PLACEMENTS,"1,797.34",Revenue,22/04/2014,Social Care & Inclusion
WC43-0408,REDACTED,Third Party Payments,Private Contractor Fees,74006-HOLIDAY/CHRISTMAS ALLOWANCE-FOSTER CARERS-OTH AGENCY PROVISION,"1,828.30",Revenue,14/04/2014,Childrens
WC43-0409,REDACTED,Third Party Payments,Private Contractor Fees,74006-HOLIDAY/CHRISTMAS ALLOWANCE-FOSTER CARERS-OTH AGENCY PROVISION,"1,047.87",Revenue,14/04/2014,Childrens
WC43-0410,REDACTED,Supplies & Services,Services,63000-PROFESSIONAL FEES AND SERVICES,750.00,Revenue,03/04/2014,Neighbourhood Services
WC43-0411,REDACTED,Transfer Payments,Transfer Payments,76422-DIRECT PAYMENTS TO SOCIAL SERVICES CLIENTS,"1,596.92",Revenue,14/04/2014,Social Care & Inclusion
WC43-0412,ANGLIA DNA SERVICES LIMITED,Third Party Payments,Private Contractor Fees,73014-LEGAL FEES-PRIV CONTRACTOR FEES,260.00,Revenue,09/04/2014,Childrens
WC43-0413,ANGLIA STAIRLIFTS LTD,Capital,Capital,01045-PRIVATE GRANTS,"4,095.00",Capital,01/04/2014,Resources
WC43-0414,ANGLIA STAIRLIFTS LTD,Capital,Capital,01045-PRIVATE GRANTS,"4,115.00",Capital,04/04/2014,Resources
WC43-0415,ANGLIA STAIRLIFTS LTD,Capital,Capital,01045-PRIVATE GRANTS,"4,220.00",Capital,07/04/2014,Resources
WC43-0416,ANGLIA STAIRLIFTS LTD,Capital,Capital,01045-PRIVATE GRANTS,"4,595.00",Capital,08/04/2014,Resources
WC43-0417,ANGLIA STAIRLIFTS LTD,Capital,Capital,01006-SITE WORKS MAIN CONTRACTORS,"4,615.00",Capital,09/04/2014,Resources
WC43-0418,ANGLIA STAIRLIFTS LTD,Capital,Capital,01006-SITE WORKS MAIN CONTRACTORS,"3,815.00",Capital,09/04/2014,Resources
WC43-0419,ANGLIA STAIRLIFTS LTD,Capital,Capital,01045-PRIVATE GRANTS,"4,535.00",Capital,09/04/2014,Resources
WC43-0420,ANIMALMANIA,Supplies & Services,Other Supplies & Services,62515-MISCELLANEOUS SUPPLIES,275.00,Revenue,28/04/2014,Regeneration
WC43-0421,REDACTED,Third Party Payments,Private Contractor Fees,74006-HOLIDAY/CHRISTMAS ALLOWANCE-FOSTER CARERS-OTH AGENCY PROVISION,"1,334.35",Revenue,01/04/2014,Childrens
WC43-0422,REDACTED,Supplies & Services,Other Supplies & Services,62515-MISCELLANEOUS SUPPLIES,459.44,Revenue,28/04/2014,Childrens
WC43-0423,REDACTED,Third Party Payments,Private Contractor Fees,74006-HOLIDAY/CHRISTMAS ALLOWANCE-FOSTER CARERS-OTH AGENCY PROVISION,"1,278.80",Revenue,28/04/2014,Childrens
WC43-0424,REDACTED,Third Party Payments,Private Contractor Fees,73374-SUPPORTED & OTHER ACCOMMODATION,351.16,Revenue,23/04/2014,Social Care & Inclusion
WC43-0425,REDACTED,Supplies & Services,Other Supplies & Services,64008-OUTINGS-EXPENSES,10.45,Revenue,25/04/2014,Social Care & Inclusion
WC43-0426,REDACTED,Third Party Payments,Private Contractor Fees,73374-SUPPORTED & OTHER ACCOMMODATION,353.56,Revenue,25/04/2014,Social Care & Inclusion
WC43-0427,REDACTED,Supplies & Services,Services,63000-PROFESSIONAL FEES AND SERVICES,400.00,Revenue,07/04/2014,Neighbourhood Services
WC43-0428,REDACTED,Transfer Payments,Transfer Payments,76422-DIRECT PAYMENTS TO SOCIAL SERVICES CLIENTS,625.83,Revenue,14/04/2014,Social Care & Inclusion
WC43-0429,REDACTED,Transfer Payments,Transfer Payments,76422-DIRECT PAYMENTS TO SOCIAL SERVICES CLIENTS,"1,782.48",Revenue,14/04/2014,Social Care & Inclusion
WC43-0430,ANSON COURT RESIDENTIAL HOME,Third Party Payments,Private Contractor Fees,73373-RESIDENTIAL & NURSING CARE PLACEMENTS,"1,534.12",Revenue,08/04/2014,Social Care & Inclusion
WC43-0431,ANSON COURT RESIDENTIAL HOME,Third Party Payments,Private Contractor Fees,73373-RESIDENTIAL & NURSING CARE PLACEMENTS,"1,534.12",Revenue,08/04/2014,Social Care & Inclusion
WC43-0432,ANSON COURT RESIDENTIAL HOME,Third Party Payments,Private Contractor Fees,73373-RESIDENTIAL & NURSING CARE PLACEMENTS,"1,612.92",Revenue,08/04/2014,Social Care & Inclusion
WC43-0433,ANSON COURT RESIDENTIAL HOME,Third Party Payments,Private Contractor Fees,73373-RESIDENTIAL & NURSING CARE PLACEMENTS,"1,614.72",Revenue,08/04/2014,Social Care & Inclusion
WC43-0434,ANSON COURT RESIDENTIAL HOME,Third Party Payments,Private Contractor Fees,73373-RESIDENTIAL & NURSING CARE PLACEMENTS,"1,534.12",Revenue,08/04/2014,Social Care & Inclusion
WC43-0435,ANSON COURT RESIDENTIAL HOME,Third Party Payments,Private Contractor Fees,73373-RESIDENTIAL & NURSING CARE PLACEMENTS,"1,534.12",Revenue,08/04/2014,Social Care & Inclusion
WC43-0436,ANSON COURT RESIDENTIAL HOME,Third Party Payments,Private Contractor Fees,73373-RESIDENTIAL & NURSING CARE PLACEMENTS,"1,534.72",Revenue,08/04/2014,Social Care & Inclusion
WC43-0437,ANSON COURT RESIDENTIAL HOME,Third Party Payments,Private Contractor Fees,73373-RESIDENTIAL & NURSING CARE PLACEMENTS,"1,534.12",Revenue,08/04/2014,Social Care & Inclusion
WC43-0438,ANSON COURT RESIDENTIAL HOME,Third Party Payments,Private Contractor Fees,73373-RESIDENTIAL & NURSING CARE PLACEMENTS,"1,532.52",Revenue,08/04/2014,Social Care & Inclusion
WC43-0439,ANSON COURT RESIDENTIAL HOME,Third Party Payments,Private Contractor Fees,73373-RESIDENTIAL & NURSING CARE PLACEMENTS,"1,534.12",Revenue,08/04/2014,Social Care & Inclusion
WC43-0440,ANSON COURT RESIDENTIAL HOME,Third Party Payments,Private Contractor Fees,73373-RESIDENTIAL & NURSING CARE PLACEMENTS,"1,534.12",Revenue,08/04/2014,Social Care & Inclusion
WC43-0441,ANSON COURT RESIDENTIAL HOME,Third Party Payments,Private Contractor Fees,73373-RESIDENTIAL & NURSING CARE PLACEMENTS,"1,534.12",Revenue,08/04/2014,Social Care & Inclusion
WC43-0442,ANSON COURT RESIDENTIAL HOME,Third Party Payments,Private Contractor Fees,73373-RESIDENTIAL & NURSING CARE PLACEMENTS,"1,534.12",Revenue,08/04/2014,Social Care & Inclusion
WC43-0443,ANSON COURT RESIDENTIAL HOME,Third Party Payments,Private Contractor Fees,73373-RESIDENTIAL & NURSING CARE PLACEMENTS,"1,614.12",Revenue,08/04/2014,Social Care & Inclusion
WC43-0444,ANSON COURT RESIDENTIAL HOME,Third Party Payments,Private Contractor Fees,73373-RESIDENTIAL & NURSING CARE PLACEMENTS,"1,614.72",Revenue,08/04/2014,Social Care & Inclusion
WC43-0445,ANSON COURT RESIDENTIAL HOME,Third Party Payments,Private Contractor Fees,73373-RESIDENTIAL & NURSING CARE PLACEMENTS,"1,808.07",Revenue,15/04/2014,Social Care & Inclusion
WC43-0446,ANSON COURT RESIDENTIAL HOME,Third Party Payments,Private Contractor Fees,73373-RESIDENTIAL & NURSING CARE PLACEMENTS,"1,534.12",Revenue,15/04/2014,Social Care & Inclusion
WC43-0447,ANSON COURT RESIDENTIAL HOME,Third Party Payments,Private Contractor Fees,73373-RESIDENTIAL & NURSING CARE PLACEMENTS,383.68,Revenue,15/04/2014,Social Care & Inclusion
WC43-0448,ANSON COURT RESIDENTIAL HOME,Third Party Payments,Private Contractor Fees,73373-RESIDENTIAL & NURSING CARE PLACEMENTS,"1,150.59",Revenue,29/04/2014,Social Care & Inclusion
WC43-0449,ANSON COURT RESIDENTIAL HOME,Third Party Payments,Private Contractor Fees,73373-RESIDENTIAL & NURSING CARE PLACEMENTS,547.90,Revenue,29/04/2014,Social Care & Inclusion
WC43-0450,ANSON COURT RESIDENTIAL HOME,Third Party Payments,Private Contractor Fees,73373-RESIDENTIAL & NURSING CARE PLACEMENTS,"1,534.12",Revenue,29/04/2014,Social Care & Inclusion
WC43-0451,ANTALIS DOCUMENT SUPPLIES,Supplies & Services,"Equip,Furniture & Materials",60500-GENERAL MATERIALS,976.00,Revenue,04/04/2014,Resources
WC43-0452,ANTALIS DOCUMENT SUPPLIES,Supplies & Services,"Equip,Furniture & Materials",60500-GENERAL MATERIALS,976.00,Revenue,04/04/2014,Resources
WC43-0453,ANTALIS DOCUMENT SUPPLIES,Supplies & Services,"Equip,Furniture & Materials",60500-GENERAL MATERIALS,567.20,Revenue,10/04/2014,Resources
WC43-0454,ANTALIS DOCUMENT SUPPLIES,Supplies & Services,"Equip,Furniture & Materials",60500-GENERAL MATERIALS,488.00,Revenue,17/04/2014,Resources
WC43-0455,ANTERIOR VISION LIMITED,Employees,Agency,34305-AGENCY STAFF-EMPLOYEES,"4,200.00",Revenue,02/04/2014,Neighbourhood Services
WC43-0456,ANTERIOR VISION LIMITED,Employees,Agency,34305-AGENCY STAFF-EMPLOYEES,"5,950.00",Revenue,08/04/2014,Neighbourhood Services
WC43-0457,REDACTED,Third Party Payments,Private Contractor Fees,74006-HOLIDAY/CHRISTMAS ALLOWANCE-FOSTER CARERS-OTH AGENCY PROVISION,"1,421.44",Revenue,14/04/2014,Childrens
WC43-0458,APCOA PARKING SERVICES (UK) LTD,Third Party Payments,Private Contractor Fees,73025-PROFESSIONAL SERVICES-PRIV CONTRACTOR & OTHER AGENCIES,"51,005.90",Revenue,24/04/2014,Neighbourhood Services
WC43-0459,APSE 001,Supplies & Services,Subscriptions,64500-PUBLICATIONS/ORGANISATIONS-SUBSCRIPTIONS,"3,384.00",Revenue,22/04/2014,Neighbourhood Services
WC43-0460,AQA 001,Supplies & Services,Other Supplies & Services,63013-EXAMINATIONS-SERVICES,865.65,Revenue,09/04/2014,Neighbourhood Services
WC43-0461,AQA 001,Supplies & Services,Other Supplies & Services,63013-EXAMINATIONS-SERVICES,"1,127.45",Revenue,09/04/2014,Neighbourhood Services
WC43-0462,ARBORETUM NURSING HOME.,Third Party Payments,Private Contractor Fees,73373-RESIDENTIAL & NURSING CARE PLACEMENTS,"2,472.20",Revenue,08/04/2014,Social Care & Inclusion
WC43-0463,ARBORETUM NURSING HOME.,Third Party Payments,Private Contractor Fees,73373-RESIDENTIAL & NURSING CARE PLACEMENTS,"1,977.76",Revenue,08/04/2014,Social Care & Inclusion
WC43-0464,ARBORETUM NURSING HOME.,Third Party Payments,Private Contractor Fees,73373-RESIDENTIAL & NURSING CARE PLACEMENTS,"2,472.20",Revenue,08/04/2014,Social Care & Inclusion
WC43-0465,ARBORETUM NURSING HOME.,Third Party Payments,Private Contractor Fees,73373-RESIDENTIAL & NURSING CARE PLACEMENTS,"1,977.76",Revenue,08/04/2014,Social Care & Inclusion
WC43-0466,ARBORETUM NURSING HOME.,Third Party Payments,Private Contractor Fees,73373-RESIDENTIAL & NURSING CARE PLACEMENTS,"1,977.76",Revenue,08/04/2014,Social Care & Inclusion
WC43-0467,ARBORETUM NURSING HOME.,Third Party Payments,Private Contractor Fees,73373-RESIDENTIAL & NURSING CARE PLACEMENTS,"1,726.04",Revenue,08/04/2014,Social Care & Inclusion
WC43-0468,ARBORETUM NURSING HOME.,Third Party Payments,Private Contractor Fees,73373-RESIDENTIAL & NURSING CARE PLACEMENTS,"2,002.20",Revenue,08/04/2014,Social Care & Inclusion
WC43-0469,ARBORETUM NURSING HOME.,Third Party Payments,Private Contractor Fees,73373-RESIDENTIAL & NURSING CARE PLACEMENTS,"1,919.66",Revenue,08/04/2014,Social Care & Inclusion
WC43-0470,ARBORETUM NURSING HOME.,Third Party Payments,Private Contractor Fees,73373-RESIDENTIAL & NURSING CARE PLACEMENTS,"1,919.66",Revenue,08/04/2014,Social Care & Inclusion
WC43-0471,ARBORETUM NURSING HOME.,Third Party Payments,Private Contractor Fees,73373-RESIDENTIAL & NURSING CARE PLACEMENTS,"1,864.12",Revenue,08/04/2014,Social Care & Inclusion
WC43-0472,ARBORETUM NURSING HOME.,Third Party Payments,Private Contractor Fees,73373-RESIDENTIAL & NURSING CARE PLACEMENTS,"1,933.16",Revenue,08/04/2014,Social Care & Inclusion
WC43-0473,ARBORETUM NURSING HOME.,Third Party Payments,Private Contractor Fees,73373-RESIDENTIAL & NURSING CARE PLACEMENTS,"1,990.76",Revenue,08/04/2014,Social Care & Inclusion
WC43-0474,ARBORETUM NURSING HOME.,Third Party Payments,Private Contractor Fees,73373-RESIDENTIAL & NURSING CARE PLACEMENTS,"1,933.16",Revenue,08/04/2014,Social Care & Inclusion
WC43-0475,ARBORETUM NURSING HOME.,Third Party Payments,Private Contractor Fees,73373-RESIDENTIAL & NURSING CARE PLACEMENTS,"1,695.60",Revenue,08/04/2014,Social Care & Inclusion
WC43-0476,ARBORETUM NURSING HOME.,Third Party Payments,Private Contractor Fees,73373-RESIDENTIAL & NURSING CARE PLACEMENTS,"1,656.99",Revenue,08/04/2014,Social Care & Inclusion
WC43-0477,ARBORETUM NURSING HOME.,Third Party Payments,Private Contractor Fees,73373-RESIDENTIAL & NURSING CARE PLACEMENTS,"1,656.99",Revenue,08/04/2014,Social Care & Inclusion
WC43-0478,ARBORETUM NURSING HOME.,Third Party Payments,Private Contractor Fees,73373-RESIDENTIAL & NURSING CARE PLACEMENTS,"1,656.99",Revenue,08/04/2014,Social Care & Inclusion
WC43-0479,ARBORETUM NURSING HOME.,Third Party Payments,Private Contractor Fees,73373-RESIDENTIAL & NURSING CARE PLACEMENTS,"1,656.99",Revenue,08/04/2014,Social Care & Inclusion
WC43-0480,ARBORETUM NURSING HOME.,Third Party Payments,Private Contractor Fees,73373-RESIDENTIAL & NURSING CARE PLACEMENTS,"1,933.16",Revenue,22/04/2014,Social Care & Inclusion
WC43-0481,ARBORETUM NURSING HOME.,Third Party Payments,Private Contractor Fees,73373-RESIDENTIAL & NURSING CARE PLACEMENTS,"2,132.96",Revenue,22/04/2014,Social Care & Inclusion
WC43-0482,ARBORETUM NURSING HOME.,Third Party Payments,Private Contractor Fees,73373-RESIDENTIAL & NURSING CARE PLACEMENTS,"2,132.96",Revenue,22/04/2014,Social Care & Inclusion
WC43-0483,ARBORETUM NURSING HOME.,Third Party Payments,Private Contractor Fees,73373-RESIDENTIAL & NURSING CARE PLACEMENTS,"2,071.24",Revenue,22/04/2014,Social Care & Inclusion
WC43-0484,ARBORETUM NURSING HOME.,Third Party Payments,Private Contractor Fees,73373-RESIDENTIAL & NURSING CARE PLACEMENTS,"2,071.24",Revenue,22/04/2014,Social Care & Inclusion
WC43-0485,ARBORETUM NURSING HOME.,Third Party Payments,Private Contractor Fees,73373-RESIDENTIAL & NURSING CARE PLACEMENTS,199.26,Revenue,29/04/2014,Social Care & Inclusion
WC43-0486,ARCANE DIRECT MARKETING,Supplies & Services,Other Supplies & Services,62511-DISTRIBUTION,259.60,Revenue,03/04/2014,Resources
WC43-0487,ARCANE DIRECT MARKETING,Supplies & Services,Other Supplies & Services,62511-DISTRIBUTION,252.13,Revenue,22/04/2014,Neighbourhood Services
WC43-0488,ARCANE DIRECT MARKETING,Supplies & Services,Other Supplies & Services,62511-DISTRIBUTION,"1,043.46",Revenue,22/04/2014,Neighbourhood Services
WC43-0489,ARCHWAY TCS LTD,Supplies & Services,"Equip,Furniture & Materials",60537-VEHICLE WASH PLANT-MATERIALS,"1,047.50",Revenue,14/04/2014,Neighbourhood Services
WC43-0490,ARCS N SPARKS CORPORATE CLOTHING LIMITED,Supplies & Services,Other Supplies & Services,62515-MISCELLANEOUS SUPPLIES,801.00,Revenue,01/04/2014,Neighbourhood Services
WC43-0491,ARGOS BUSINESS SOLUTIONS LTD,Supplies & Services,"Equip,Furniture & Materials",60006-NEW-FURNITURE & EQUIPMENT,274.09,Revenue,03/04/2014,Childrens
WC43-0492,ARGOS BUSINESS SOLUTIONS LTD,Transfer Payments,Transfer Payments,76000-TRANSFER PAYMENTS - SOCIAL SERVICES CLIENTS,326.57,Revenue,17/04/2014,Childrens
WC43-0493,ARJOHUNTLEIGH UK,Supplies & Services,"Equip,Furniture & Materials",60006-NEW-FURNITURE & EQUIPMENT,297.95,Revenue,04/04/2014,Social Care & Inclusion
WC43-0494,ARK ENVIRONMENTAL (UK) LTD C/O OCS ENVIRONMENTAL SERVICES LTD,Premises,Premises-Repairs & Maintenance,"40000-REPAIRS,ALTERATIONS & MAINTENANCE-PREM","1,520.00",Revenue,02/04/2014,Regeneration
WC43-0495,ARRIVA MIDLANDS LTD,Transport,Hire,52000-WITH DRIVER-HIRE OF VEHICLES,512.00,Revenue,01/04/2014,Childrens
WC43-0496,ARROW CUTTERS (ACE),Supplies & Services,"Printing, Stationery & Office Exp",62001-STATIONERY & GENERAL SUPPLIES-OFFICE EXP,302.10,Revenue,24/04/2014,Social Care & Inclusion
WC43-0497,ASDAN LIMITED,Supplies & Services,"Equip,Furniture & Materials",60501-LIBRARY BOOKS,426.85,Revenue,09/04/2014,Childrens
WC43-0498,ASH GRANGE CARE HOME,Third Party Payments,Private Contractor Fees,73373-RESIDENTIAL & NURSING CARE PLACEMENTS,"2,242.76",Revenue,01/04/2014,Social Care & Inclusion
WC43-0499,ASH GRANGE CARE HOME,Third Party Payments,Private Contractor Fees,73373-RESIDENTIAL & NURSING CARE PLACEMENTS,442.75,Revenue,08/04/2014,Social Care & Inclusion
WC43-0500,ASH GRANGE CARE HOME,Third Party Payments,Private Contractor Fees,73373-RESIDENTIAL & NURSING CARE PLACEMENTS,"1,623.45",Revenue,08/04/2014,Social Care & Inclusion
WC43-0501,ASH GRANGE CARE HOME,Third Party Payments,Private Contractor Fees,73373-RESIDENTIAL & NURSING CARE PLACEMENTS,414.25,Revenue,08/04/2014,Social Care & Inclusion
WC43-0502,ASH GRANGE CARE HOME,Third Party Payments,Private Contractor Fees,73373-RESIDENTIAL & NURSING CARE PLACEMENTS,"1,518.91",Revenue,08/04/2014,Social Care & Inclusion
WC43-0503,ASH GRANGE CARE HOME,Third Party Payments,Private Contractor Fees,73373-RESIDENTIAL & NURSING CARE PLACEMENTS,414.25,Revenue,08/04/2014,Social Care & Inclusion
WC43-0504,ASH GRANGE CARE HOME,Third Party Payments,Private Contractor Fees,73373-RESIDENTIAL & NURSING CARE PLACEMENTS,"1,518.91",Revenue,08/04/2014,Social Care & Inclusion
WC43-0505,ASH GRANGE CARE HOME,Third Party Payments,Private Contractor Fees,73373-RESIDENTIAL & NURSING CARE PLACEMENTS,414.25,Revenue,08/04/2014,Social Care & Inclusion
WC43-0506,ASH GRANGE CARE HOME,Third Party Payments,Private Contractor Fees,73373-RESIDENTIAL & NURSING CARE PLACEMENTS,"1,518.91",Revenue,08/04/2014,Social Care & Inclusion
WC43-0507,ASH GRANGE CARE HOME,Third Party Payments,Private Contractor Fees,73373-RESIDENTIAL & NURSING CARE PLACEMENTS,414.25,Revenue,08/04/2014,Social Care & Inclusion
WC43-0508,ASH GRANGE CARE HOME,Third Party Payments,Private Contractor Fees,73373-RESIDENTIAL & NURSING CARE PLACEMENTS,"1,518.91",Revenue,08/04/2014,Social Care & Inclusion
WC43-0509,ASH GRANGE CARE HOME,Third Party Payments,Private Contractor Fees,73373-RESIDENTIAL & NURSING CARE PLACEMENTS,414.25,Revenue,08/04/2014,Social Care & Inclusion
WC43-0510,ASH GRANGE CARE HOME,Third Party Payments,Private Contractor Fees,73373-RESIDENTIAL & NURSING CARE PLACEMENTS,"1,518.91",Revenue,08/04/2014,Social Care & Inclusion
WC43-0511,ASH GRANGE CARE HOME,Third Party Payments,Private Contractor Fees,73373-RESIDENTIAL & NURSING CARE PLACEMENTS,430.33,Revenue,08/04/2014,Social Care & Inclusion
WC43-0512,ASH GRANGE CARE HOME,Third Party Payments,Private Contractor Fees,73373-RESIDENTIAL & NURSING CARE PLACEMENTS,"1,577.91",Revenue,08/04/2014,Social Care & Inclusion
WC43-0513,ASH GRANGE CARE HOME,Third Party Payments,Private Contractor Fees,73373-RESIDENTIAL & NURSING CARE PLACEMENTS,430.33,Revenue,08/04/2014,Social Care & Inclusion
WC43-0514,ASH GRANGE CARE HOME,Third Party Payments,Private Contractor Fees,73373-RESIDENTIAL & NURSING CARE PLACEMENTS,"1,577.91",Revenue,08/04/2014,Social Care & Inclusion
WC43-0515,ASH GRANGE CARE HOME,Third Party Payments,Private Contractor Fees,73373-RESIDENTIAL & NURSING CARE PLACEMENTS,442.76,Revenue,08/04/2014,Social Care & Inclusion
WC43-0516,ASH GRANGE CARE HOME,Third Party Payments,Private Contractor Fees,73373-RESIDENTIAL & NURSING CARE PLACEMENTS,"1,623.44",Revenue,08/04/2014,Social Care & Inclusion
WC43-0517,ASH GRANGE CARE HOME,Third Party Payments,Private Contractor Fees,73373-RESIDENTIAL & NURSING CARE PLACEMENTS,442.76,Revenue,08/04/2014,Social Care & Inclusion
WC43-0518,ASH GRANGE CARE HOME,Third Party Payments,Private Contractor Fees,73373-RESIDENTIAL & NURSING CARE PLACEMENTS,"1,623.44",Revenue,08/04/2014,Social Care & Inclusion
WC43-0519,ASH GRANGE CARE HOME,Third Party Payments,Private Contractor Fees,73373-RESIDENTIAL & NURSING CARE PLACEMENTS,414.25,Revenue,08/04/2014,Social Care & Inclusion
WC43-0520,ASH GRANGE CARE HOME,Third Party Payments,Private Contractor Fees,73373-RESIDENTIAL & NURSING CARE PLACEMENTS,"1,518.91",Revenue,08/04/2014,Social Care & Inclusion
WC43-0521,ASH GRANGE CARE HOME,Third Party Payments,Private Contractor Fees,73373-RESIDENTIAL & NURSING CARE PLACEMENTS,414.25,Revenue,08/04/2014,Social Care & Inclusion
WC43-0522,ASH GRANGE CARE HOME,Third Party Payments,Private Contractor Fees,73373-RESIDENTIAL & NURSING CARE PLACEMENTS,"1,518.91",Revenue,08/04/2014,Social Care & Inclusion
WC43-0523,ASH GRANGE CARE HOME,Third Party Payments,Private Contractor Fees,73373-RESIDENTIAL & NURSING CARE PLACEMENTS,414.25,Revenue,08/04/2014,Social Care & Inclusion
WC43-0524,ASH GRANGE CARE HOME,Third Party Payments,Private Contractor Fees,73373-RESIDENTIAL & NURSING CARE PLACEMENTS,"1,518.91",Revenue,08/04/2014,Social Care & Inclusion
WC43-0525,ASH GRANGE CARE HOME,Third Party Payments,Private Contractor Fees,73373-RESIDENTIAL & NURSING CARE PLACEMENTS,"1,147.46",Revenue,08/04/2014,Social Care & Inclusion
WC43-0526,ASH GRANGE CARE HOME,Third Party Payments,Private Contractor Fees,73373-RESIDENTIAL & NURSING CARE PLACEMENTS,414.25,Revenue,08/04/2014,Social Care & Inclusion
WC43-0527,ASH GRANGE CARE HOME,Third Party Payments,Private Contractor Fees,73373-RESIDENTIAL & NURSING CARE PLACEMENTS,"1,518.91",Revenue,08/04/2014,Social Care & Inclusion
WC43-0528,ASH GRANGE CARE HOME,Third Party Payments,Private Contractor Fees,73373-RESIDENTIAL & NURSING CARE PLACEMENTS,"1,518.91",Revenue,08/04/2014,Social Care & Inclusion
WC43-0529,ASH GRANGE CARE HOME,Third Party Payments,Private Contractor Fees,73373-RESIDENTIAL & NURSING CARE PLACEMENTS,414.25,Revenue,08/04/2014,Social Care & Inclusion
WC43-0530,ASH GRANGE CARE HOME,Third Party Payments,Private Contractor Fees,73373-RESIDENTIAL & NURSING CARE PLACEMENTS,"1,518.91",Revenue,08/04/2014,Social Care & Inclusion
WC43-0531,ASH GRANGE CARE HOME,Third Party Payments,Private Contractor Fees,73373-RESIDENTIAL & NURSING CARE PLACEMENTS,414.25,Revenue,08/04/2014,Social Care & Inclusion
WC43-0532,ASH GRANGE CARE HOME,Third Party Payments,Private Contractor Fees,73373-RESIDENTIAL & NURSING CARE PLACEMENTS,"1,518.91",Revenue,08/04/2014,Social Care & Inclusion
WC43-0533,ASH GRANGE CARE HOME,Third Party Payments,Private Contractor Fees,73373-RESIDENTIAL & NURSING CARE PLACEMENTS,414.25,Revenue,08/04/2014,Social Care & Inclusion
WC43-0534,ASH GRANGE CARE HOME,Third Party Payments,Private Contractor Fees,73373-RESIDENTIAL & NURSING CARE PLACEMENTS,"1,518.91",Revenue,08/04/2014,Social Care & Inclusion
WC43-0535,ASH GRANGE CARE HOME,Third Party Payments,Private Contractor Fees,73373-RESIDENTIAL & NURSING CARE PLACEMENTS,-966.58,Revenue,22/04/2014,Social Care & Inclusion
WC43-0536,ASH GRANGE CARE HOME,Third Party Payments,Private Contractor Fees,73373-RESIDENTIAL & NURSING CARE PLACEMENTS,"-1,380.83",Revenue,22/04/2014,Social Care & Inclusion
WC43-0537,ASH GRANGE CARE HOME,Third Party Payments,Private Contractor Fees,73373-RESIDENTIAL & NURSING CARE PLACEMENTS,"1,096.02",Revenue,22/04/2014,Social Care & Inclusion
WC43-0538,ASH GRANGE CARE HOME,Third Party Payments,Private Contractor Fees,73373-RESIDENTIAL & NURSING CARE PLACEMENTS,483.29,Revenue,22/04/2014,Social Care & Inclusion
WC43-0539,ASH GRANGE CARE HOME,Third Party Payments,Private Contractor Fees,73373-RESIDENTIAL & NURSING CARE PLACEMENTS,"2,066.20",Revenue,29/04/2014,Social Care & Inclusion
WC43-0540,ASH GRANGE CARE HOME,Third Party Payments,Private Contractor Fees,73373-RESIDENTIAL & NURSING CARE PLACEMENTS,"1,933.16",Revenue,29/04/2014,Social Care & Inclusion
WC43-0541,ASH GRANGE CARE HOME,Third Party Payments,Private Contractor Fees,73373-RESIDENTIAL & NURSING CARE PLACEMENTS,"1,933.52",Revenue,29/04/2014,Social Care & Inclusion
WC43-0542,ASH GRANGE CARE HOME,Third Party Payments,Private Contractor Fees,73373-RESIDENTIAL & NURSING CARE PLACEMENTS,"1,933.16",Revenue,29/04/2014,Social Care & Inclusion
WC43-0543,ASH GRANGE CARE HOME,Third Party Payments,Private Contractor Fees,73373-RESIDENTIAL & NURSING CARE PLACEMENTS,"1,933.16",Revenue,29/04/2014,Social Care & Inclusion
WC43-0544,ASH GRANGE CARE HOME,Third Party Payments,Private Contractor Fees,73373-RESIDENTIAL & NURSING CARE PLACEMENTS,"2,008.24",Revenue,29/04/2014,Social Care & Inclusion
WC43-0545,ASH GRANGE CARE HOME,Third Party Payments,Private Contractor Fees,73373-RESIDENTIAL & NURSING CARE PLACEMENTS,"2,066.20",Revenue,29/04/2014,Social Care & Inclusion
WC43-0546,ASH GRANGE CARE HOME,Third Party Payments,Private Contractor Fees,73373-RESIDENTIAL & NURSING CARE PLACEMENTS,"1,933.16",Revenue,29/04/2014,Social Care & Inclusion
WC43-0547,ASH GRANGE CARE HOME,Third Party Payments,Private Contractor Fees,73373-RESIDENTIAL & NURSING CARE PLACEMENTS,"1,933.16",Revenue,29/04/2014,Social Care & Inclusion
WC43-0548,ASH GRANGE CARE HOME,Third Party Payments,Private Contractor Fees,73373-RESIDENTIAL & NURSING CARE PLACEMENTS,"1,933.16",Revenue,29/04/2014,Social Care & Inclusion
WC43-0549,ASH GRANGE CARE HOME,Third Party Payments,Private Contractor Fees,73373-RESIDENTIAL & NURSING CARE PLACEMENTS,"1,460.40",Revenue,29/04/2014,Social Care & Inclusion
WC43-0550,ASH GRANGE CARE HOME,Third Party Payments,Private Contractor Fees,73373-RESIDENTIAL & NURSING CARE PLACEMENTS,"1,933.16",Revenue,29/04/2014,Social Care & Inclusion
WC43-0551,ASH GRANGE CARE HOME,Third Party Payments,Private Contractor Fees,73373-RESIDENTIAL & NURSING CARE PLACEMENTS,"1,933.16",Revenue,29/04/2014,Social Care & Inclusion
WC43-0552,ASH GRANGE CARE HOME,Third Party Payments,Private Contractor Fees,73373-RESIDENTIAL & NURSING CARE PLACEMENTS,"1,933.16",Revenue,29/04/2014,Social Care & Inclusion
WC43-0553,ASH GRANGE CARE HOME,Third Party Payments,Private Contractor Fees,73373-RESIDENTIAL & NURSING CARE PLACEMENTS,"1,933.16",Revenue,29/04/2014,Social Care & Inclusion
WC43-0554,ASKEWS AND HOLTS LIBRARY SERVICES LTD,Supplies & Services,"Equip,Furniture & Materials",60501-LIBRARY BOOKS,374.01,Revenue,03/04/2014,Neighbourhood Services
WC43-0555,ASKEWS AND HOLTS LIBRARY SERVICES LTD,Supplies & Services,"Equip,Furniture & Materials",60501-LIBRARY BOOKS,409.66,Revenue,10/04/2014,Neighbourhood Services
WC43-0556,ASKEWS AND HOLTS LIBRARY SERVICES LTD,Supplies & Services,"Equip,Furniture & Materials",60501-LIBRARY BOOKS,273.87,Revenue,17/04/2014,Neighbourhood Services
WC43-0557,ASKEWS AND HOLTS LIBRARY SERVICES LTD,Supplies & Services,"Equip,Furniture & Materials",60501-LIBRARY BOOKS,432.13,Revenue,17/04/2014,Neighbourhood Services
WC43-0558,ASKEWS AND HOLTS LIBRARY SERVICES LTD,Supplies & Services,"Equip,Furniture & Materials",60501-LIBRARY BOOKS,259.61,Revenue,24/04/2014,Neighbourhood Services
WC43-0559,ASKEWS AND HOLTS LIBRARY SERVICES LTD,Supplies & Services,"Equip,Furniture & Materials",60501-LIBRARY BOOKS,"2,790.00",Revenue,28/04/2014,Neighbourhood Services
WC43-0560,REDACTED,Transfer Payments,Transfer Payments,76422-DIRECT PAYMENTS TO SOCIAL SERVICES CLIENTS,493.00,Revenue,14/04/2014,Social Care & Inclusion
WC43-0561,ASN FIRST AID & HYGIENE LTD,Supplies & Services,"Equip,Furniture & Materials",60539-CLEANING MATERIALS,825.00,Revenue,03/04/2014,Social Care & Inclusion
WC43-0562,AURORA GRAPHICS & DISPLAYS LTD,Supplies & Services,"Printing, Stationery & Office Exp",62008-OUTWORK-PRINT ROOM,427.75,Revenue,04/04/2014,Resources
WC43-0563,AUTISM WEST MIDLANDS,Third Party Payments,Private Contractor Fees,70000-SOCIAL SERVICES-FEES TO VOLUNTARY BODIES,"11,250.00",Revenue,01/04/2014,Social Care & Inclusion
WC43-0564,AUTISM WEST MIDLANDS,Third Party Payments,Private Contractor Fees,73373-RESIDENTIAL & NURSING CARE PLACEMENTS,"7,314.45",Revenue,22/04/2014,Social Care & Inclusion
WC43-0565,AUTISM WEST MIDLANDS 001,Third Party Payments,Private Contractor Fees,73373-RESIDENTIAL & NURSING CARE PLACEMENTS,"4,924.75",Revenue,22/04/2014,Social Care & Inclusion
WC43-0566,AVENUES COMMUNITY ASSOCIATION,Third Party Payments,Grants to Other Orgs,66500-GRANTS TO OTHER ORGS,396.25,Revenue,10/04/2014,Childrens
WC43-0567,AWKEYE,Supplies & Services,"Equip,Furniture & Materials",61502-PROTECTIVE CLOTHING & UNIFORM,539.79,Revenue,25/04/2014,Neighbourhood Services
WC43-0568,AWKEYE,Supplies & Services,"Equip,Furniture & Materials",61502-PROTECTIVE CLOTHING & UNIFORM,"3,192.75",Revenue,25/04/2014,Neighbourhood Services
WC43-0569,AXIELL ALM LIMITED,Supplies & Services,Communications & Computing,63820-RECHARGE FOR MAINTENANCE/APPLICATION COSTS-COMPUTER,"3,536.40",Revenue,03/04/2014,Resources
WC43-0570,AXIELL LIMITED,Supplies & Services,Communications & Computing,63820-RECHARGE FOR MAINTENANCE/APPLICATION COSTS-COMPUTER,"16,474.59",Revenue,08/04/2014,Resources
WC43-0571,AXIS EUROPE,Premises,Premises-Repairs & Maintenance,"40000-REPAIRS,ALTERATIONS & MAINTENANCE-PREM",419.20,Revenue,01/04/2014,Resources
WC43-0572,AXIS EUROPE,Capital,Capital,01045-PRIVATE GRANTS,"3,231.56",Capital,08/04/2014,Resources
WC43-0573,REDACTED,Transfer Payments,Transfer Payments,76422-DIRECT PAYMENTS TO SOCIAL SERVICES CLIENTS,"2,024.00",Revenue,14/04/2014,Childrens
WC43-0574,REDACTED,Transfer Payments,Transfer Payments,76422-DIRECT PAYMENTS TO SOCIAL SERVICES CLIENTS,"2,652.00",Revenue,14/04/2014,Social Care & Inclusion
WC43-0575,AZZURRI COMMUNICATIONS LTD,Supplies & Services,Communications & Computing,63601-COSTS (NOT INTERNAL RECHARGES)-TELEPHONES,"4,192.94",Revenue,03/04/2014,Resources
WC43-0576,AZZURRI COMMUNICATIONS LTD,Supplies & Services,Communications & Computing,63601-COSTS (NOT INTERNAL RECHARGES)-TELEPHONES,"4,192.14",Revenue,15/04/2014,Resources
WC43-0577,B & G CLEANING SYSTEMS,Third Party Payments,Private Contractor Fees,73025-PROFESSIONAL SERVICES-PRIV CONTRACTOR & OTHER AGENCIES,919.13,Revenue,09/04/2014,Neighbourhood Services
WC43-0578,REDACTED,Third Party Payments,Private Contractor Fees,74006-HOLIDAY/CHRISTMAS ALLOWANCE-FOSTER CARERS-OTH AGENCY PROVISION,781.95,Revenue,01/04/2014,Childrens
WC43-0579,REDACTED,Supplies & Services,Other Supplies & Services,62515-MISCELLANEOUS SUPPLIES,896.24,Revenue,28/04/2014,Childrens
WC43-0580,REDACTED,Third Party Payments,Private Contractor Fees,74006-HOLIDAY/CHRISTMAS ALLOWANCE-FOSTER CARERS-OTH AGENCY PROVISION,796.00,Revenue,28/04/2014,Childrens
WC43-0581,REDACTED,Third Party Payments,Private Contractor Fees,74006-HOLIDAY/CHRISTMAS ALLOWANCE-FOSTER CARERS-OTH AGENCY PROVISION,"1,733.18",Revenue,01/04/2014,Childrens
WC43-0582,REDACTED,Supplies & Services,Other Supplies & Services,62515-MISCELLANEOUS SUPPLIES,"1,428.44",Revenue,28/04/2014,Childrens
WC43-0583,REDACTED,Third Party Payments,Private Contractor Fees,74006-HOLIDAY/CHRISTMAS ALLOWANCE-FOSTER CARERS-OTH AGENCY PROVISION,"1,764.32",Revenue,28/04/2014,Childrens
WC43-0584,B&Q WAREHOUSE PLC,Premises,Premises-Repairs & Maintenance,"40000-REPAIRS,ALTERATIONS & MAINTENANCE-PREM",996.93,Revenue,02/04/2014,Resources
WC43-0585,BAAF,Employees,Training,30000-INTERNAL TRAINING,"1,500.00",Revenue,02/04/2014,Childrens
WC43-0586,BAAF,Supplies & Services,Services,63000-PROFESSIONAL FEES AND SERVICES,"2,591.00",Revenue,04/04/2014,Childrens
WC43-0587,BAAF,Supplies & Services,Subscriptions,64500-PUBLICATIONS/ORGANISATIONS-SUBSCRIPTIONS,"1,621.50",Revenue,04/04/2014,Childrens
WC43-0588,REDACTED,Transfer Payments,Transfer Payments,76422-DIRECT PAYMENTS TO SOCIAL SERVICES CLIENTS,863.20,Revenue,14/04/2014,Social Care & Inclusion
WC43-0589,BACK CARE SOLUTIONS LTD,Supplies & Services,Communications & Computing,63800-COMPUTER EQUIPMENT AND SUPPLIES,464.00,Revenue,09/04/2014,Resources
WC43-0590,BAKER HALL PARTNERSHIP,Supplies & Services,Services,63248-SURVEYS & PROF SERVICES-PAYMENT TO CONTRACTOR,"1,059.50",Revenue,11/04/2014,Regeneration
WC43-0591,REDACTED,Transfer Payments,Transfer Payments,76422-DIRECT PAYMENTS TO SOCIAL SERVICES CLIENTS,250.00,Revenue,14/04/2014,Social Care & Inclusion
WC43-0592,REDACTED,Transfer Payments,Transfer Payments,76422-DIRECT PAYMENTS TO SOCIAL SERVICES CLIENTS,"2,389.16",Revenue,14/04/2014,Social Care & Inclusion
WC43-0593,REDACTED,Transfer Payments,Transfer Payments,76422-DIRECT PAYMENTS TO SOCIAL SERVICES CLIENTS,620.00,Revenue,14/04/2014,Social Care & Inclusion
WC43-0594,REDACTED,Transfer Payments,Transfer Payments,76422-DIRECT PAYMENTS TO SOCIAL SERVICES CLIENTS,"1,140.04",Revenue,14/04/2014,Social Care & Inclusion
WC43-0595,REDACTED,Transfer Payments,Transfer Payments,76422-DIRECT PAYMENTS TO SOCIAL SERVICES CLIENTS,450.25,Revenue,14/04/2014,Social Care & Inclusion
WC43-0596,REDACTED,Transfer Payments,Transfer Payments,76422-DIRECT PAYMENTS TO SOCIAL SERVICES CLIENTS,"1,314.88",Revenue,14/04/2014,Social Care & Inclusion
WC43-0597,REDACTED,Transfer Payments,Transfer Payments,76422-DIRECT PAYMENTS TO SOCIAL SERVICES CLIENTS,"1,280.00",Revenue,14/04/2014,Social Care & Inclusion
WC43-0598,REDACTED,Transfer Payments,Transfer Payments,76422-DIRECT PAYMENTS TO SOCIAL SERVICES CLIENTS,718.00,Revenue,14/04/2014,Social Care & Inclusion
WC43-0599,REDACTED,Transfer Payments,Transfer Payments,76422-DIRECT PAYMENTS TO SOCIAL SERVICES CLIENTS,632.52,Revenue,14/04/2014,Social Care & Inclusion
WC43-0600,REDACTED,Transfer Payments,Transfer Payments,76422-DIRECT PAYMENTS TO SOCIAL SERVICES CLIENTS,690.56,Revenue,14/04/2014,Social Care & Inclusion
WC43-0601,BARCHAM TREES PLC,Supplies & Services,"Equip,Furniture & Materials",60500-GENERAL MATERIALS,201.60,Revenue,02/04/2014,Neighbourhood Services
WC43-0602,BARCHAM TREES PLC,Third Party Payments,Private Contractor Fees,73025-PROFESSIONAL SERVICES-PRIV CONTRACTOR & OTHER AGENCIES,201.60,Revenue,02/04/2014,Neighbourhood Services
WC43-0603,BARCHESTER HEALTHCARE#1,Third Party Payments,Private Contractor Fees,73373-RESIDENTIAL & NURSING CARE PLACEMENTS,"1,858.33",Revenue,22/04/2014,Social Care & Inclusion
WC43-0604,REDACTED,Supplies & Services,Other Supplies & Services,62522-AUDIENCE DEVELOPMENT,424.00,Revenue,24/04/2014,Neighbourhood Services
WC43-0605,BARNARDOS SERVICES LTD,Third Party Payments,Private Contractor Fees,74037-INDEPENDENT FOSTER CARE-OTH AGENCY PROVISION,"4,478.57",Revenue,08/04/2014,Childrens
WC43-0606,BARNARDOS SERVICES LTD,Third Party Payments,Grants to Other Orgs,66500-GRANTS TO OTHER ORGS,"10,926.00",Revenue,29/04/2014,Childrens
WC43-0607,BARONS COURT HOTEL,Employees,Other Staff Costs,34329-HOTEL ACCOMMODATION-EMPLOYEES,"2,205.00",Revenue,01/04/2014,Childrens
WC43-0608,BARONS COURT HOTEL,Employees,Other Staff Costs,34329-HOTEL ACCOMMODATION-EMPLOYEES,945.00,Revenue,01/04/2014,Childrens
WC43-0609,BARONS COURT HOTEL,Employees,Other Staff Costs,34329-HOTEL ACCOMMODATION-EMPLOYEES,"1,215.00",Revenue,01/04/2014,Childrens
WC43-0610,BARONS COURT HOTEL,Employees,Other Staff Costs,34329-HOTEL ACCOMMODATION-EMPLOYEES,472.50,Revenue,02/04/2014,Childrens
WC43-0611,BARTS HEALTH NHS TRUST,Supplies & Services,Services,63000-PROFESSIONAL FEES AND SERVICES,495.00,Revenue,08/04/2014,Neighbourhood Services
WC43-0612,BEADEN POWERLEC LIMITED,Supplies & Services,"Equip,Furniture & Materials",60008-MAINTENANCE-FURNITURE & EQUIPMENT,525.00,Revenue,25/04/2014,Neighbourhood Services
WC43-0613,REDACTED,Third Party Payments,Private Contractor Fees,74006-HOLIDAY/CHRISTMAS ALLOWANCE-FOSTER CARERS-OTH AGENCY PROVISION,"1,344.12",Revenue,01/04/2014,Childrens
WC43-0614,REDACTED,Supplies & Services,Other Supplies & Services,62515-MISCELLANEOUS SUPPLIES,"1,127.76",Revenue,28/04/2014,Childrens
WC43-0615,REDACTED,Third Party Payments,Private Contractor Fees,74006-HOLIDAY/CHRISTMAS ALLOWANCE-FOSTER CARERS-OTH AGENCY PROVISION,"1,089.19",Revenue,28/04/2014,Childrens
WC43-0616,REDACTED,Transfer Payments,Transfer Payments,76422-DIRECT PAYMENTS TO SOCIAL SERVICES CLIENTS,641.76,Revenue,14/04/2014,Social Care & Inclusion
WC43-0617,BEDFORD FENCING CO LTD,Third Party Payments,Private Contractor Fees,73025-PROFESSIONAL SERVICES-PRIV CONTRACTOR & OTHER AGENCIES,"1,555.55",Revenue,03/04/2014,Neighbourhood Services
WC43-0618,BEDWORTH HEATH NURSERY SCHOOL & CHILDRENS CENTRE,Third Party Payments,Grants to Other Orgs,66505-OTHER-GRANTS TO OTHER ORGS,564.00,Revenue,30/04/2014,Childrens
WC43-0619,BEECHES DAY NURSERY,Employees,Other Staff Costs,32000-MISC FEES AND EXPENSES,"1,530.00",Revenue,03/04/2014,Childrens
WC43-0620,BEECHES DAY NURSERY,Supplies & Services,Other Supplies & Services,63120-CRECHE FACILITIES-SERVICES-FEES,261.00,Revenue,08/04/2014,Neighbourhood Services
WC43-0621,BEECHES DAY NURSERY,Third Party Payments,Grants to Other Orgs,66505-OTHER-GRANTS TO OTHER ORGS,493.50,Revenue,11/04/2014,Childrens
WC43-0622,BEECHES DAY NURSERY,Third Party Payments,Grants to Other Orgs,66505-OTHER-GRANTS TO OTHER ORGS,"13,691.94",Revenue,15/04/2014,Childrens
WC43-0623,BEECHES DAY NURSERY,Supplies & Services,Services,63000-PROFESSIONAL FEES AND SERVICES,570.00,Revenue,17/04/2014,Childrens
WC43-0624,BEECHES DAY NURSERY,Supplies & Services,Services,63000-PROFESSIONAL FEES AND SERVICES,456.00,Revenue,17/04/2014,Childrens
WC43-0625,BEECHES DAY NURSERY,Supplies & Services,Services,63000-PROFESSIONAL FEES AND SERVICES,456.00,Revenue,17/04/2014,Childrens
WC43-0626,BEESWIFT LTD,Supplies & Services,"Equip,Furniture & Materials",61500-CLOTHING & LAUNDRY,384.00,Revenue,01/04/2014,Neighbourhood Services
WC43-0627,BELLEVUE COURT CARE HOME,Third Party Payments,Private Contractor Fees,73373-RESIDENTIAL & NURSING CARE PLACEMENTS,"1,168.33",Revenue,08/04/2014,Social Care & Inclusion
WC43-0628,BELLEVUE COURT CARE HOME,Third Party Payments,Private Contractor Fees,73373-RESIDENTIAL & NURSING CARE PLACEMENTS,327.89,Revenue,08/04/2014,Social Care & Inclusion
WC43-0629,BELLEVUE COURT CARE HOME,Third Party Payments,Private Contractor Fees,73373-RESIDENTIAL & NURSING CARE PLACEMENTS,"1,202.27",Revenue,08/04/2014,Social Care & Inclusion
WC43-0630,BELLEVUE COURT CARE HOME,Third Party Payments,Private Contractor Fees,73373-RESIDENTIAL & NURSING CARE PLACEMENTS,"1,530.16",Revenue,22/04/2014,Social Care & Inclusion
WC43-0631,BELLEVUE COURT CARE HOME,Third Party Payments,Private Contractor Fees,73373-RESIDENTIAL & NURSING CARE PLACEMENTS,"1,530.16",Revenue,22/04/2014,Social Care & Inclusion
WC43-0632,REDACTED,Transfer Payments,Transfer Payments,76422-DIRECT PAYMENTS TO SOCIAL SERVICES CLIENTS,"2,205.00",Revenue,14/04/2014,Social Care & Inclusion
WC43-0633,BENTLEY COURT PRIORY,Third Party Payments,Private Contractor Fees,73373-RESIDENTIAL & NURSING CARE PLACEMENTS,"2,140.28",Revenue,15/04/2014,Social Care & Inclusion
WC43-0634,BENTLEY COURT PRIORY,Third Party Payments,Private Contractor Fees,73373-RESIDENTIAL & NURSING CARE PLACEMENTS,"1,654.07",Revenue,15/04/2014,Social Care & Inclusion
WC43-0635,BENTLEY COURT PRIORY,Third Party Payments,Private Contractor Fees,73373-RESIDENTIAL & NURSING CARE PLACEMENTS,"1,600.71",Revenue,22/04/2014,Social Care & Inclusion
WC43-0636,REDACTED,Transfer Payments,Transfer Payments,76422-DIRECT PAYMENTS TO SOCIAL SERVICES CLIENTS,424.56,Revenue,14/04/2014,Social Care & Inclusion
WC43-0637,REDACTED,Transfer Payments,Transfer Payments,76422-DIRECT PAYMENTS TO SOCIAL SERVICES CLIENTS,912.00,Revenue,14/04/2014,Social Care & Inclusion
WC43-0638,REDACTED,Third Party Payments,Private Contractor Fees,74006-HOLIDAY/CHRISTMAS ALLOWANCE-FOSTER CARERS-OTH AGENCY PROVISION,878.81,Revenue,01/04/2014,Childrens
WC43-0639,REDACTED,Supplies & Services,Other Supplies & Services,62515-MISCELLANEOUS SUPPLIES,"1,428.44",Revenue,28/04/2014,Childrens
WC43-0640,REDACTED,Third Party Payments,Private Contractor Fees,74006-HOLIDAY/CHRISTMAS ALLOWANCE-FOSTER CARERS-OTH AGENCY PROVISION,968.32,Revenue,28/04/2014,Childrens
WC43-0641,REDACTED,Transfer Payments,Transfer Payments,76422-DIRECT PAYMENTS TO SOCIAL SERVICES CLIENTS,"1,198.00",Revenue,14/04/2014,Social Care & Inclusion
WC43-0642,BESCOT LODGE,Third Party Payments,Private Contractor Fees,73373-RESIDENTIAL & NURSING CARE PLACEMENTS,"1,147.52",Revenue,01/04/2014,Social Care & Inclusion
WC43-0643,BESCOT LODGE,Third Party Payments,Private Contractor Fees,73373-RESIDENTIAL & NURSING CARE PLACEMENTS,767.06,Revenue,22/04/2014,Social Care & Inclusion
WC43-0644,BESCOT LODGE,Third Party Payments,Private Contractor Fees,73373-RESIDENTIAL & NURSING CARE PLACEMENTS,"1,588.91",Revenue,22/04/2014,Social Care & Inclusion
WC43-0645,BESCOT LODGE,Third Party Payments,Private Contractor Fees,73373-RESIDENTIAL & NURSING CARE PLACEMENTS,"1,643.70",Revenue,22/04/2014,Social Care & Inclusion
WC43-0646,BESCOT LODGE,Third Party Payments,Private Contractor Fees,73373-RESIDENTIAL & NURSING CARE PLACEMENTS,"1,661.36",Revenue,22/04/2014,Social Care & Inclusion
WC43-0647,BESCOT LODGE,Third Party Payments,Private Contractor Fees,73373-RESIDENTIAL & NURSING CARE PLACEMENTS,"1,661.40",Revenue,22/04/2014,Social Care & Inclusion
WC43-0648,BESCOT LODGE,Third Party Payments,Private Contractor Fees,73373-RESIDENTIAL & NURSING CARE PLACEMENTS,"1,643.66",Revenue,22/04/2014,Social Care & Inclusion
WC43-0649,BESCOT LODGE,Third Party Payments,Private Contractor Fees,73373-RESIDENTIAL & NURSING CARE PLACEMENTS,"1,643.57",Revenue,22/04/2014,Social Care & Inclusion
WC43-0650,BESCOT LODGE,Third Party Payments,Private Contractor Fees,73373-RESIDENTIAL & NURSING CARE PLACEMENTS,"1,643.57",Revenue,22/04/2014,Social Care & Inclusion
WC43-0651,BESCOT LODGE,Third Party Payments,Private Contractor Fees,73373-RESIDENTIAL & NURSING CARE PLACEMENTS,"1,643.61",Revenue,22/04/2014,Social Care & Inclusion
WC43-0652,BESCOT LODGE,Third Party Payments,Private Contractor Fees,73373-RESIDENTIAL & NURSING CARE PLACEMENTS,"1,661.31",Revenue,22/04/2014,Social Care & Inclusion
WC43-0653,BESCOT LODGE,Third Party Payments,Private Contractor Fees,73373-RESIDENTIAL & NURSING CARE PLACEMENTS,"1,643.70",Revenue,22/04/2014,Social Care & Inclusion
WC43-0654,BESCOT LODGE,Third Party Payments,Private Contractor Fees,73373-RESIDENTIAL & NURSING CARE PLACEMENTS,"1,643.57",Revenue,22/04/2014,Social Care & Inclusion
WC43-0655,BESCOT LODGE,Third Party Payments,Private Contractor Fees,73373-RESIDENTIAL & NURSING CARE PLACEMENTS,"1,564.80",Revenue,22/04/2014,Social Care & Inclusion
WC43-0656,BESCOT LODGE,Third Party Payments,Private Contractor Fees,73373-RESIDENTIAL & NURSING CARE PLACEMENTS,"1,460.40",Revenue,29/04/2014,Social Care & Inclusion
WC43-0657,BETHPHAGE.,Third Party Payments,Private Contractor Fees,73374-SUPPORTED & OTHER ACCOMMODATION,"1,885.00",Revenue,23/04/2014,Social Care & Inclusion
WC43-0658,BETHPHAGE.,Third Party Payments,Private Contractor Fees,73374-SUPPORTED & OTHER ACCOMMODATION,"1,650.89",Revenue,23/04/2014,Social Care & Inclusion
WC43-0659,BETHPHAGE.,Third Party Payments,Private Contractor Fees,73374-SUPPORTED & OTHER ACCOMMODATION,"3,831.92",Revenue,23/04/2014,Social Care & Inclusion
WC43-0660,BETHPHAGE.,Third Party Payments,Private Contractor Fees,73374-SUPPORTED & OTHER ACCOMMODATION,818.40,Revenue,23/04/2014,Social Care & Inclusion
WC43-0661,BETHPHAGE.,Third Party Payments,Private Contractor Fees,73374-SUPPORTED & OTHER ACCOMMODATION,"2,031.84",Revenue,23/04/2014,Social Care & Inclusion
WC43-0662,BETHPHAGE.,Third Party Payments,Private Contractor Fees,73374-SUPPORTED & OTHER ACCOMMODATION,"1,721.44",Revenue,23/04/2014,Social Care & Inclusion
WC43-0663,BETHPHAGE.,Third Party Payments,Private Contractor Fees,73374-SUPPORTED & OTHER ACCOMMODATION,"2,031.84",Revenue,23/04/2014,Social Care & Inclusion
WC43-0664,BETHPHAGE.,Third Party Payments,Private Contractor Fees,73374-SUPPORTED & OTHER ACCOMMODATION,"3,831.92",Revenue,23/04/2014,Social Care & Inclusion
WC43-0665,BETHPHAGE.,Third Party Payments,Private Contractor Fees,73374-SUPPORTED & OTHER ACCOMMODATION,818.40,Revenue,23/04/2014,Social Care & Inclusion
WC43-0666,BETHPHAGE.,Third Party Payments,Private Contractor Fees,73374-SUPPORTED & OTHER ACCOMMODATION,818.40,Revenue,28/04/2014,Social Care & Inclusion
WC43-0667,REDACTED,Transfer Payments,Transfer Payments,76422-DIRECT PAYMENTS TO SOCIAL SERVICES CLIENTS,322.00,Revenue,23/04/2014,Social Care & Inclusion
WC43-0668,REDACTED,Transfer Payments,Transfer Payments,76422-DIRECT PAYMENTS TO SOCIAL SERVICES CLIENTS,"3,740.00",Revenue,14/04/2014,Social Care & Inclusion
WC43-0669,REDACTED,Transfer Payments,Transfer Payments,76422-DIRECT PAYMENTS TO SOCIAL SERVICES CLIENTS,949.52,Revenue,14/04/2014,Social Care & Inclusion
WC43-0670,REDACTED,Transfer Payments,Transfer Payments,76422-DIRECT PAYMENTS TO SOCIAL SERVICES CLIENTS,263.04,Revenue,14/04/2014,Social Care & Inclusion
WC43-0671,BEVAN BRITTAN,Supplies & Services,Other Supplies & Services,63116-EXTERNAL BARRISTERS-SERVICES-FEES,"30,000.00",Revenue,01/04/2014,Resources
WC43-0672,BEVAN BRITTAN,Supplies & Services,Other Supplies & Services,63116-EXTERNAL BARRISTERS-SERVICES-FEES,"52,500.00",Revenue,01/04/2014,Resources
WC43-0673,BEVAN BRITTAN,Supplies & Services,Other Supplies & Services,63116-EXTERNAL BARRISTERS-SERVICES-FEES,"91,891.00",Revenue,29/04/2014,Resources
WC43-0674,BFA SAFETY TRAINING,Employees,Training,30030-EXTERNAL TRAINING,295.00,Revenue,02/04/2014,Childrens
WC43-0675,BFA SAFETY TRAINING,Employees,Training,30030-EXTERNAL TRAINING,275.00,Revenue,04/04/2014,Resources
WC43-0676,BIFFA WASTE SERVICES LTD,Third Party Payments,Private Contractor Fees,73005-LANDFILL PTYS-PRIV CONTRACTOR FEES,"3,929.44",Revenue,16/04/2014,Neighbourhood Services
WC43-0677,BIFFA WASTE SERVICES LTD,Third Party Payments,Private Contractor Fees,73022-DISPOSAL & TRANSPORTATION OF CARDBOARD-PRIV CONTRACTOR FEES,48.25,Revenue,16/04/2014,Neighbourhood Services
WC43-0678,BIFFA WASTE SERVICES LTD,Third Party Payments,Private Contractor Fees,73039-LANDFILL TAX-PRIV CONTRACTOR FEES,"22,474.08",Revenue,16/04/2014,Neighbourhood Services
WC43-0679,BIFFA WASTE SERVICES LTD,Third Party Payments,Private Contractor Fees,73005-LANDFILL PTYS-PRIV CONTRACTOR FEES,"3,266.93",Revenue,16/04/2014,Neighbourhood Services
WC43-0680,BIFFA WASTE SERVICES LTD,Third Party Payments,Private Contractor Fees,73022-DISPOSAL & TRANSPORTATION OF CARDBOARD-PRIV CONTRACTOR FEES,48.25,Revenue,16/04/2014,Neighbourhood Services
WC43-0681,BIFFA WASTE SERVICES LTD,Third Party Payments,Private Contractor Fees,73039-LANDFILL TAX-PRIV CONTRACTOR FEES,"18,684.00",Revenue,16/04/2014,Neighbourhood Services
WC43-0682,BIFFA WASTE SERVICES LTD,Third Party Payments,Private Contractor Fees,73005-LANDFILL PTYS-PRIV CONTRACTOR FEES,-927.22,Revenue,16/04/2014,Neighbourhood Services
WC43-0683,BIFFA WASTE SERVICES LTD,Third Party Payments,Private Contractor Fees,73005-LANDFILL PTYS-PRIV CONTRACTOR FEES,"2,572.47",Revenue,24/04/2014,Neighbourhood Services
WC43-0684,BIFFA WASTE SERVICES LTD,Third Party Payments,Private Contractor Fees,73022-DISPOSAL & TRANSPORTATION OF CARDBOARD-PRIV CONTRACTOR FEES,48.25,Revenue,24/04/2014,Neighbourhood Services
WC43-0685,BIFFA WASTE SERVICES LTD,Third Party Payments,Private Contractor Fees,73039-LANDFILL TAX-PRIV CONTRACTOR FEES,"15,678.72",Revenue,24/04/2014,Neighbourhood Services
WC43-0686,BIFFA WASTE SERVICES LTD,Third Party Payments,Private Contractor Fees,73005-LANDFILL PTYS-PRIV CONTRACTOR FEES,"2,647.84",Revenue,24/04/2014,Neighbourhood Services
WC43-0687,BIFFA WASTE SERVICES LTD,Third Party Payments,Private Contractor Fees,73022-DISPOSAL & TRANSPORTATION OF CARDBOARD-PRIV CONTRACTOR FEES,48.25,Revenue,24/04/2014,Neighbourhood Services
WC43-0688,BIFFA WASTE SERVICES LTD,Third Party Payments,Private Contractor Fees,73039-LANDFILL TAX-PRIV CONTRACTOR FEES,"16,422.40",Revenue,24/04/2014,Neighbourhood Services
WC43-0689,REDACTED,Transfer Payments,Transfer Payments,76422-DIRECT PAYMENTS TO SOCIAL SERVICES CLIENTS,339.92,Revenue,14/04/2014,Childrens
WC43-0690,REDACTED,Third Party Payments,Grants to Other Orgs,66505-OTHER-GRANTS TO OTHER ORGS,"33,276.33",Revenue,17/04/2014,Childrens
WC43-0691,BIRMINGHAM BROOK ADVISORY CENTRE,Supplies & Services,Services,63000-PROFESSIONAL FEES AND SERVICES,"19,000.00",Revenue,01/04/2014,Neighbourhood Services
WC43-0692,BIRMINGHAM BROOK ADVISORY CENTRE,Supplies & Services,Services,63000-PROFESSIONAL FEES AND SERVICES,"23,734.00",Revenue,11/04/2014,Neighbourhood Services
WC43-0693,BIRMINGHAM CITY COUNCIL,Employees,Training,30030-EXTERNAL TRAINING,315.00,Revenue,03/04/2014,Childrens
WC43-0694,BIRMINGHAM CITY COUNCIL,Third Party Payments,Grants to Other Orgs,66502-TOP UP FUNDING -GRANTS TO SCHOOLS,"66,655.20",Revenue,09/04/2014,Childrens
WC43-0695,BIRMINGHAM CITY COUNCIL,Employees,Training,30030-EXTERNAL TRAINING,264.00,Revenue,09/04/2014,Resources
WC43-0696,BIRMINGHAM GARAGE AND INDUSTRIAL DOORS LTD,Premises,Premises-Repairs & Maintenance,"40000-REPAIRS,ALTERATIONS & MAINTENANCE-PREM",250.00,Revenue,03/04/2014,Regeneration
WC43-0697,BIRMINGHAM GARAGE AND INDUSTRIAL DOORS LTD,Third Party Payments,Private Contractor Fees,73025-PROFESSIONAL SERVICES-PRIV CONTRACTOR & OTHER AGENCIES,772.80,Revenue,22/04/2014,Regeneration
WC43-0698,BIRMINGHAM MUSEUMS TRADING,Supplies & Services,Provisions,61305-CATERING,374.50,Revenue,02/04/2014,Neighbourhood Services
WC43-0699,BIRMINGHAM WOMENS NHS FOUNDATION TRUST,Third Party Payments,Private Contractor Fees,74000-OTHER AGENCY FEES,850.00,Revenue,15/04/2014,Neighbourhood Services
WC43-0700,BISHOP SPORTS & LEISURE LTD,Supplies & Services,"Equip,Furniture & Materials",60500-GENERAL MATERIALS,940.00,Revenue,17/04/2014,Neighbourhood Services
WC43-0701,BISHOP SPORTS & LEISURE LTD,Supplies & Services,"Equip,Furniture & Materials",60500-GENERAL MATERIALS,"1,125.00",Revenue,23/04/2014,Neighbourhood Services
WC43-0702,BLACK COUNTRY CONSORTIUM LIMITED,Supplies & Services,Services,63000-PROFESSIONAL FEES AND SERVICES,"7,348.66",Revenue,08/04/2014,Regeneration
WC43-0703,BLACK COUNTRY CONSORTIUM LIMITED,Supplies & Services,Services,63000-PROFESSIONAL FEES AND SERVICES,"83,400.46",Revenue,23/04/2014,Regeneration
WC43-0704,BLACK COUNTRY PARTNERSHIP NHS,Third Party Payments,Private Contractor Fees,73373-RESIDENTIAL & NURSING CARE PLACEMENTS,"352,202.00",Revenue,17/04/2014,Social Care & Inclusion
WC43-0705,BLACK COUNTRY PARTNERSHIP NHS,Third Party Payments,Private Contractor Fees,73373-RESIDENTIAL & NURSING CARE PLACEMENTS,"352,202.00",Revenue,17/04/2014,Social Care & Inclusion
WC43-0706,BLACK COUNTRY PARTNERSHIP NHS,Third Party Payments,Private Contractor Fees,73373-RESIDENTIAL & NURSING CARE PLACEMENTS,"352,202.00",Revenue,17/04/2014,Social Care & Inclusion
WC43-0707,BLACK COUNTRY PARTNERSHIP NHS,Third Party Payments,Private Contractor Fees,73373-RESIDENTIAL & NURSING CARE PLACEMENTS,"-352,202.00",Revenue,17/04/2014,Social Care & Inclusion
WC43-0708,BLAKENALL HEATH JMI SCHOOL,Transfer Payments,Transfer Payments,77300-ISB-FORMULA ALLOCATION,"86,631.80",Revenue,17/04/2014,Childrens
WC43-0709,BLAKENALL HEATH JMI SCHOOL,Transfer Payments,Transfer Payments,77300-ISB-FORMULA ALLOCATION,"7,194.00",Revenue,17/04/2014,Childrens
WC43-0710,BLANCHWORTH CARE HOMES LIMITED,Third Party Payments,Private Contractor Fees,73373-RESIDENTIAL & NURSING CARE PLACEMENTS,"1,942.55",Revenue,22/04/2014,Social Care & Inclusion
WC43-0711,BLITHFIELD SAFETY TRAINING,Employees,Training,30030-EXTERNAL TRAINING,299.00,Revenue,02/04/2014,Childrens
WC43-0712,BLOXWICH COMMUNITY PARTNERSHIP.,Supplies & Services,Other Supplies & Services,62515-MISCELLANEOUS SUPPLIES,533.75,Revenue,11/04/2014,Neighbourhood Services
WC43-0713,BLOXWICH COMMUNITY PARTNERSHIP.,Supplies & Services,Other Supplies & Services,63128-HIRE OF ROOM-SERVICES-FEES,"4,400.00",Revenue,22/04/2014,Social Care & Inclusion
WC43-0714,BLOXWICH COMMUNITY PARTNERSHIP.,Third Party Payments,Grants to Other Orgs,66500-GRANTS TO OTHER ORGS,"33,936.75",Revenue,25/04/2014,Childrens
WC43-0715,BLOXWICH HARDWARE & D I Y,Supplies & Services,Other Supplies & Services,62515-MISCELLANEOUS SUPPLIES,"1,000.00",Revenue,04/04/2014,Regeneration
WC43-0716,BLOXWICH RADIO TAXIS,Transport,Hire,52000-WITH DRIVER-HIRE OF VEHICLES,"1,800.00",Revenue,03/04/2014,Childrens
WC43-0717,BLOXWICH RADIO TAXIS,Transport,Hire,52000-WITH DRIVER-HIRE OF VEHICLES,"1,200.00",Revenue,29/04/2014,Childrens
WC43-0718,BLOXWICH RADIO TAXIS,Transport,Hire,52000-WITH DRIVER-HIRE OF VEHICLES,560.00,Revenue,29/04/2014,Childrens
WC43-0719,BLOXWICH RADIO TAXIS,Transport,Hire,52000-WITH DRIVER-HIRE OF VEHICLES,280.00,Revenue,29/04/2014,Childrens
WC43-0720,BLOXWICH RADIO TAXIS,Transport,Hire,52000-WITH DRIVER-HIRE OF VEHICLES,480.00,Revenue,29/04/2014,Childrens
WC43-0721,BLUE COAT CHURCH OF ENGLAND ACADEMY,Supplies & Services,Services,63000-PROFESSIONAL FEES AND SERVICES,500.00,Revenue,02/04/2014,Childrens
WC43-0722,BLUE COAT CHURCH OF ENGLAND ACADEMY,Supplies & Services,Services,63000-PROFESSIONAL FEES AND SERVICES,500.00,Revenue,02/04/2014,Childrens
WC43-0723,BLUE GIRAFFE CHILDCARE,Third Party Payments,Grants to Other Orgs,66505-OTHER-GRANTS TO OTHER ORGS,"11,044.80",Revenue,15/04/2014,Childrens
WC43-0724,BLUE GIRAFFE CHILDCARE,Supplies & Services,Other Supplies & Services,63120-CRECHE FACILITIES-SERVICES-FEES,"1,105.01",Revenue,15/04/2014,Childrens
WC43-0725,BLUESKY INTERNATIONAL LTD,Supplies & Services,"Equip,Furniture & Materials",61500-CLOTHING & LAUNDRY,"1,819.00",Revenue,01/04/2014,Neighbourhood Services
WC43-0726,BME UNITED LTD,Third Party Payments,Private Contractor Fees,73025-PROFESSIONAL SERVICES-PRIV CONTRACTOR & OTHER AGENCIES,"9,801.00",Revenue,04/04/2014,Neighbourhood Services
WC43-0727,BME UNITED LTD,Third Party Payments,Private Contractor Fees,73025-PROFESSIONAL SERVICES-PRIV CONTRACTOR & OTHER AGENCIES,"13,369.00",Revenue,24/04/2014,Neighbourhood Services
WC43-0728,BME UNITED LTD,Third Party Payments,Private Contractor Fees,73025-PROFESSIONAL SERVICES-PRIV CONTRACTOR & OTHER AGENCIES,"4,710.00",Revenue,24/04/2014,Neighbourhood Services
WC43-0729,BME UNITED LTD,Third Party Payments,Private Contractor Fees,73025-PROFESSIONAL SERVICES-PRIV CONTRACTOR & OTHER AGENCIES,"4,491.00",Revenue,24/04/2014,Neighbourhood Services
WC43-0730,BOLDMERE COURT CARE HOME,Third Party Payments,Private Contractor Fees,73373-RESIDENTIAL & NURSING CARE PLACEMENTS,"1,013.79",Revenue,15/04/2014,Social Care & Inclusion
WC43-0731,BOLDMERE COURT CARE HOME,Third Party Payments,Private Contractor Fees,73373-RESIDENTIAL & NURSING CARE PLACEMENTS,"1,440.74",Revenue,15/04/2014,Social Care & Inclusion
WC43-0732,BOURNEMOUTH UNIVERSITY,Employees,Training,30030-EXTERNAL TRAINING,550.00,Revenue,03/04/2014,Childrens
WC43-0733,BOURNEMOUTH UNIVERSITY,Employees,Training,30030-EXTERNAL TRAINING,550.00,Revenue,03/04/2014,Childrens
WC43-0734,BOURNEMOUTH UNIVERSITY,Employees,Training,30030-EXTERNAL TRAINING,550.00,Revenue,04/04/2014,Childrens
WC43-0735,BOURNEMOUTH UNIVERSITY,Employees,Training,30030-EXTERNAL TRAINING,550.00,Revenue,04/04/2014,Childrens
WC43-0736,BOURNEMOUTH UNIVERSITY,Employees,Training,30030-EXTERNAL TRAINING,550.00,Revenue,04/04/2014,Childrens
WC43-0737,BOURNEMOUTH UNIVERSITY,Employees,Training,30030-EXTERNAL TRAINING,550.00,Revenue,04/04/2014,Childrens
WC43-0738,BOURNEMOUTH UNIVERSITY,Employees,Training,30030-EXTERNAL TRAINING,550.00,Revenue,04/04/2014,Childrens
WC43-0739,BOURNEMOUTH UNIVERSITY,Employees,Training,30030-EXTERNAL TRAINING,550.00,Revenue,04/04/2014,Childrens
WC43-0740,BOURNEMOUTH UNIVERSITY,Employees,Training,30030-EXTERNAL TRAINING,550.00,Revenue,04/04/2014,Childrens
WC43-0741,BOURNEMOUTH UNIVERSITY,Employees,Training,30030-EXTERNAL TRAINING,550.00,Revenue,04/04/2014,Childrens
WC43-0742,BOURNEMOUTH UNIVERSITY,Employees,Training,30030-EXTERNAL TRAINING,550.00,Revenue,04/04/2014,Childrens
WC43-0743,BOURNEMOUTH UNIVERSITY,Employees,Training,30030-EXTERNAL TRAINING,550.00,Revenue,04/04/2014,Childrens
WC43-0744,BOURNEMOUTH UNIVERSITY,Employees,Training,30030-EXTERNAL TRAINING,550.00,Revenue,04/04/2014,Childrens
WC43-0745,BOURNEMOUTH UNIVERSITY,Employees,Training,30030-EXTERNAL TRAINING,550.00,Revenue,04/04/2014,Childrens
WC43-0746,BOURNEMOUTH UNIVERSITY,Employees,Training,30030-EXTERNAL TRAINING,550.00,Revenue,04/04/2014,Childrens
WC43-0747,BOURNEMOUTH UNIVERSITY,Employees,Training,30030-EXTERNAL TRAINING,550.00,Revenue,04/04/2014,Childrens
WC43-0748,BOURNEMOUTH UNIVERSITY,Employees,Training,30030-EXTERNAL TRAINING,550.00,Revenue,04/04/2014,Childrens
WC43-0749,BOURNEMOUTH UNIVERSITY,Employees,Training,30030-EXTERNAL TRAINING,550.00,Revenue,04/04/2014,Childrens
WC43-0750,BOURNEMOUTH UNIVERSITY,Employees,Training,30030-EXTERNAL TRAINING,550.00,Revenue,04/04/2014,Childrens
WC43-0751,BRADLEY ENVIRONMENTAL,Capital,Capital,01006-SITE WORKS MAIN CONTRACTORS,495.00,Capital,01/04/2014,Childrens
WC43-0752,BRADLEY ENVIRONMENTAL,Capital,Capital,01006-SITE WORKS MAIN CONTRACTORS,995.00,Capital,01/04/2014,Regeneration
WC43-0753,BRADLEY ENVIRONMENTAL,Capital,Capital,01006-SITE WORKS MAIN CONTRACTORS,250.00,Capital,01/04/2014,Regeneration
WC43-0754,BRADLEY ENVIRONMENTAL,Capital,Capital,01006-SITE WORKS MAIN CONTRACTORS,762.00,Capital,01/04/2014,Regeneration
WC43-0755,BRADLEY ENVIRONMENTAL,Capital,Capital,01006-SITE WORKS MAIN CONTRACTORS,992.00,Capital,02/04/2014,Regeneration
WC43-0756,BRADLEY ENVIRONMENTAL,Capital,Capital,01006-SITE WORKS MAIN CONTRACTORS,"6,600.00",Capital,02/04/2014,Regeneration
WC43-0757,BRADLEY ENVIRONMENTAL,Premises,Premises-Repairs & Maintenance,"40000-REPAIRS,ALTERATIONS & MAINTENANCE-PREM","1,329.00",Revenue,03/04/2014,Regeneration
WC43-0758,BRADLEY ENVIRONMENTAL,Premises,Premises-Repairs & Maintenance,"40000-REPAIRS,ALTERATIONS & MAINTENANCE-PREM",585.00,Revenue,04/04/2014,Regeneration
WC43-0759,BRADLEY ENVIRONMENTAL,Capital,Capital,01006-SITE WORKS MAIN CONTRACTORS,288.00,Capital,07/04/2014,Regeneration
WC43-0760,BRADLEY ENVIRONMENTAL,Third Party Payments,Private Contractor Fees,73025-PROFESSIONAL SERVICES-PRIV CONTRACTOR & OTHER AGENCIES,750.00,Revenue,14/04/2014,Regeneration
WC43-0761,BRADLEY ENVIRONMENTAL,Premises,Premises-Repairs & Maintenance,"40000-REPAIRS,ALTERATIONS & MAINTENANCE-PREM",425.00,Revenue,24/04/2014,Regeneration
WC43-0762,REDACTED,Transfer Payments,Transfer Payments,76422-DIRECT PAYMENTS TO SOCIAL SERVICES CLIENTS,460.32,Revenue,14/04/2014,Social Care & Inclusion
WC43-0763,BRELMAYNE LTD,Supplies & Services,"Equip,Furniture & Materials",60008-MAINTENANCE-FURNITURE & EQUIPMENT,47.83,Revenue,01/04/2014,Neighbourhood Services
WC43-0764,BRELMAYNE LTD,Supplies & Services,"Equip,Furniture & Materials",60008-MAINTENANCE-FURNITURE & EQUIPMENT,49.04,Revenue,01/04/2014,Neighbourhood Services
WC43-0765,BRELMAYNE LTD,Supplies & Services,"Equip,Furniture & Materials",60008-MAINTENANCE-FURNITURE & EQUIPMENT,58.87,Revenue,01/04/2014,Neighbourhood Services
WC43-0766,BRELMAYNE LTD,Supplies & Services,"Equip,Furniture & Materials",60008-MAINTENANCE-FURNITURE & EQUIPMENT,46.74,Revenue,01/04/2014,Neighbourhood Services
WC43-0767,BRELMAYNE LTD,Supplies & Services,"Equip,Furniture & Materials",60008-MAINTENANCE-FURNITURE & EQUIPMENT,304.67,Revenue,01/04/2014,Neighbourhood Services
WC43-0768,BRELMAYNE LTD,Supplies & Services,"Equip,Furniture & Materials",60008-MAINTENANCE-FURNITURE & EQUIPMENT,122.76,Revenue,01/04/2014,Neighbourhood Services
WC43-0769,BRELMAYNE LTD,Supplies & Services,"Equip,Furniture & Materials",60008-MAINTENANCE-FURNITURE & EQUIPMENT,34.47,Revenue,01/04/2014,Neighbourhood Services
WC43-0770,BRELMAYNE LTD,Supplies & Services,"Equip,Furniture & Materials",60008-MAINTENANCE-FURNITURE & EQUIPMENT,22.98,Revenue,01/04/2014,Neighbourhood Services
WC43-0771,BRELMAYNE LTD,Supplies & Services,"Equip,Furniture & Materials",60008-MAINTENANCE-FURNITURE & EQUIPMENT,22.98,Revenue,01/04/2014,Neighbourhood Services
WC43-0772,BRELMAYNE LTD,Supplies & Services,"Equip,Furniture & Materials",60008-MAINTENANCE-FURNITURE & EQUIPMENT,22.98,Revenue,01/04/2014,Neighbourhood Services
WC43-0773,BRELMAYNE LTD,Supplies & Services,"Equip,Furniture & Materials",60008-MAINTENANCE-FURNITURE & EQUIPMENT,268.15,Revenue,01/04/2014,Neighbourhood Services
WC43-0774,BRELMAYNE LTD,Supplies & Services,"Equip,Furniture & Materials",60008-MAINTENANCE-FURNITURE & EQUIPMENT,86.32,Revenue,01/04/2014,Neighbourhood Services
WC43-0775,BRELMAYNE LTD,Supplies & Services,"Equip,Furniture & Materials",60008-MAINTENANCE-FURNITURE & EQUIPMENT,34.47,Revenue,01/04/2014,Neighbourhood Services
WC43-0776,BRELMAYNE LTD,Supplies & Services,"Equip,Furniture & Materials",60008-MAINTENANCE-FURNITURE & EQUIPMENT,138.76,Revenue,01/04/2014,Neighbourhood Services
WC43-0777,BRELMAYNE LTD,Supplies & Services,"Equip,Furniture & Materials",60008-MAINTENANCE-FURNITURE & EQUIPMENT,133.63,Revenue,01/04/2014,Neighbourhood Services
WC43-0778,BRELMAYNE LTD,Supplies & Services,"Equip,Furniture & Materials",60500-GENERAL MATERIALS,"1,028.00",Revenue,01/04/2014,Neighbourhood Services
WC43-0779,BRELMAYNE LTD,Premises,Premises-Repairs & Maintenance,"40000-REPAIRS,ALTERATIONS & MAINTENANCE-PREM",863.54,Revenue,01/04/2014,Regeneration
WC43-0780,BRELMAYNE LTD,Premises,Premises-Repairs & Maintenance,"40000-REPAIRS,ALTERATIONS & MAINTENANCE-PREM",656.62,Revenue,01/04/2014,Regeneration
WC43-0781,BRELMAYNE LTD,Premises,Premises-Repairs & Maintenance,"40000-REPAIRS,ALTERATIONS & MAINTENANCE-PREM",441.44,Revenue,01/04/2014,Regeneration
WC43-0782,BRELMAYNE LTD,Third Party Payments,Private Contractor Fees,73025-PROFESSIONAL SERVICES-PRIV CONTRACTOR & OTHER AGENCIES,260.15,Revenue,01/04/2014,Regeneration
WC43-0783,BRELMAYNE LTD,Premises,Premises-Repairs & Maintenance,"40000-REPAIRS,ALTERATIONS & MAINTENANCE-PREM",799.00,Revenue,02/04/2014,Regeneration
WC43-0784,BRELMAYNE LTD,Third Party Payments,Private Contractor Fees,73025-PROFESSIONAL SERVICES-PRIV CONTRACTOR & OTHER AGENCIES,280.26,Revenue,02/04/2014,Regeneration
WC43-0785,BRELMAYNE LTD,Premises,Premises-Repairs & Maintenance,"40000-REPAIRS,ALTERATIONS & MAINTENANCE-PREM",315.36,Revenue,03/04/2014,Regeneration
WC43-0786,BRELMAYNE LTD,Premises,Premises-Repairs & Maintenance,"40000-REPAIRS,ALTERATIONS & MAINTENANCE-PREM",722.30,Revenue,03/04/2014,Regeneration
WC43-0787,BRELMAYNE LTD,Premises,Premises-Repairs & Maintenance,"40000-REPAIRS,ALTERATIONS & MAINTENANCE-PREM",267.59,Revenue,03/04/2014,Regeneration
WC43-0788,BRELMAYNE LTD,Premises,Premises-Repairs & Maintenance,"40000-REPAIRS,ALTERATIONS & MAINTENANCE-PREM",754.80,Revenue,03/04/2014,Regeneration
WC43-0789,BRELMAYNE LTD,Third Party Payments,Private Contractor Fees,73025-PROFESSIONAL SERVICES-PRIV CONTRACTOR & OTHER AGENCIES,303.04,Revenue,03/04/2014,Regeneration
WC43-0790,BRELMAYNE LTD,Third Party Payments,Private Contractor Fees,73025-PROFESSIONAL SERVICES-PRIV CONTRACTOR & OTHER AGENCIES,967.94,Revenue,03/04/2014,Regeneration
WC43-0791,BRELMAYNE LTD,Premises,Premises-Repairs & Maintenance,"40000-REPAIRS,ALTERATIONS & MAINTENANCE-PREM",369.66,Revenue,25/04/2014,Regeneration
WC43-0792,BRELMAYNE LTD,Premises,Premises-Repairs & Maintenance,"40000-REPAIRS,ALTERATIONS & MAINTENANCE-PREM",296.82,Revenue,25/04/2014,Regeneration
WC43-0793,BRELMAYNE LTD,Third Party Payments,Private Contractor Fees,73025-PROFESSIONAL SERVICES-PRIV CONTRACTOR & OTHER AGENCIES,438.14,Revenue,28/04/2014,Regeneration
WC43-0794,BRELMAYNE LTD,Third Party Payments,Private Contractor Fees,73025-PROFESSIONAL SERVICES-PRIV CONTRACTOR & OTHER AGENCIES,"1,863.35",Revenue,29/04/2014,Regeneration
WC43-0795,REDACTED,Transfer Payments,Transfer Payments,76422-DIRECT PAYMENTS TO SOCIAL SERVICES CLIENTS,680.00,Revenue,14/04/2014,Social Care & Inclusion
WC43-0796,REDACTED,Transfer Payments,Transfer Payments,76422-DIRECT PAYMENTS TO SOCIAL SERVICES CLIENTS,440.00,Revenue,14/04/2014,Social Care & Inclusion
WC43-0797,REDACTED,Third Party Payments,Private Contractor Fees,74006-HOLIDAY/CHRISTMAS ALLOWANCE-FOSTER CARERS-OTH AGENCY PROVISION,"1,256.22",Revenue,01/04/2014,Childrens
WC43-0798,REDACTED,Supplies & Services,Other Supplies & Services,62515-MISCELLANEOUS SUPPLIES,"1,428.44",Revenue,28/04/2014,Childrens
WC43-0799,REDACTED,Third Party Payments,Private Contractor Fees,74006-HOLIDAY/CHRISTMAS ALLOWANCE-FOSTER CARERS-OTH AGENCY PROVISION,"1,278.80",Revenue,28/04/2014,Childrens
WC43-0800,REDACTED,Transfer Payments,Transfer Payments,76422-DIRECT PAYMENTS TO SOCIAL SERVICES CLIENTS,544.00,Revenue,14/04/2014,Social Care & Inclusion
WC43-0801,REDACTED,Third Party Payments,Private Contractor Fees,73374-SUPPORTED & OTHER ACCOMMODATION,"2,935.24",Revenue,17/04/2014,Social Care & Inclusion
WC43-0802,REDACTED,Transfer Payments,Transfer Payments,76422-DIRECT PAYMENTS TO SOCIAL SERVICES CLIENTS,391.52,Revenue,14/04/2014,Social Care & Inclusion
WC43-0803,REDACTED,Transfer Payments,Transfer Payments,76422-DIRECT PAYMENTS TO SOCIAL SERVICES CLIENTS,"1,294.80",Revenue,14/04/2014,Social Care & Inclusion
WC43-0804,REDACTED,Transfer Payments,Transfer Payments,76422-DIRECT PAYMENTS TO SOCIAL SERVICES CLIENTS,517.92,Revenue,14/04/2014,Social Care & Inclusion
WC43-0805,BRIDGEWOOD HEALTH CARE LTD,Third Party Payments,Private Contractor Fees,73373-RESIDENTIAL & NURSING CARE PLACEMENTS,"1,445.27",Revenue,22/04/2014,Social Care & Inclusion
WC43-0806,BRIDGEWOOD HEALTH CARE LTD,Third Party Payments,Private Contractor Fees,73373-RESIDENTIAL & NURSING CARE PLACEMENTS,"3,613.17",Revenue,22/04/2014,Social Care & Inclusion
WC43-0807,REDACTED,Transfer Payments,Transfer Payments,76422-DIRECT PAYMENTS TO SOCIAL SERVICES CLIENTS,"1,039.79",Revenue,14/04/2014,Social Care & Inclusion
WC43-0808,BRITISH GAS BUSINESS,Premises,Utilities,42000-GAS-ENERGY COSTS,337.82,Revenue,01/04/2014,Childrens
WC43-0809,BRITISH GAS BUSINESS,Premises,Utilities,42000-GAS-ENERGY COSTS,"1,618.56",Revenue,03/04/2014,Regeneration
WC43-0810,BRITISH GAS BUSINESS,Premises,Utilities,42000-GAS-ENERGY COSTS,320.05,Revenue,17/04/2014,Childrens
WC43-0811,BRITISH GAS BUSINESS,Premises,Utilities,42000-GAS-ENERGY COSTS,"89,490.02",Revenue,17/04/2014,Regeneration
WC43-0812,BRITISH GAS BUSINESS,Premises,Utilities,42000-GAS-ENERGY COSTS,"4,397.88",Revenue,17/04/2014,Regeneration
WC43-0813,BRITISH GAS BUSINESS,Premises,Utilities,42000-GAS-ENERGY COSTS,"5,174.59",Revenue,17/04/2014,Regeneration
WC43-0814,BRITISH GAS BUSINESS,Premises,Utilities,42000-GAS-ENERGY COSTS,"8,624.12",Revenue,17/04/2014,Regeneration
WC43-0815,BRITISH GAS BUSINESS,Premises,Utilities,42000-GAS-ENERGY COSTS,"1,874.82",Revenue,17/04/2014,Regeneration
WC43-0816,BRITISH GAS BUSINESS,Premises,Utilities,42000-GAS-ENERGY COSTS,327.57,Revenue,24/04/2014,Childrens
WC43-0817,BRITISH GAS BUSINESS,Premises,Utilities,42000-GAS-ENERGY COSTS,320.05,Revenue,24/04/2014,Childrens
WC43-0818,BRITISH GAS BUSINESS,Premises,Utilities,42000-GAS-ENERGY COSTS,363.75,Revenue,29/04/2014,Childrens
WC43-0819,BRITISH PRINTING INDUSTRIES FEDERATION LTD,Supplies & Services,Services,63102-CONSULTANTS FEES - CORPORATE,"2,146.04",Revenue,10/04/2014,Resources
WC43-0820,BRITISH PRINTING INDUSTRIES FEDERATION LTD,Supplies & Services,Services,63102-CONSULTANTS FEES - CORPORATE,375.00,Revenue,10/04/2014,Resources
WC43-0821,BRITISH PRINTING INDUSTRIES FEDERATION LTD,Supplies & Services,Services,63102-CONSULTANTS FEES - CORPORATE,750.00,Revenue,10/04/2014,Resources
WC43-0822,BRITISH PRINTING INDUSTRIES FEDERATION LTD,Supplies & Services,Services,63102-CONSULTANTS FEES - CORPORATE,375.00,Revenue,10/04/2014,Resources
WC43-0823,BROADOAK CARE,Third Party Payments,Private Contractor Fees,73373-RESIDENTIAL & NURSING CARE PLACEMENTS,"1,479.29",Revenue,08/04/2014,Social Care & Inclusion
WC43-0824,BROADOAK CARE,Third Party Payments,Private Contractor Fees,73373-RESIDENTIAL & NURSING CARE PLACEMENTS,"1,479.29",Revenue,08/04/2014,Social Care & Inclusion
WC43-0825,BROADOAK CARE,Third Party Payments,Private Contractor Fees,73373-RESIDENTIAL & NURSING CARE PLACEMENTS,"1,424.54",Revenue,08/04/2014,Social Care & Inclusion
WC43-0826,BROADOAK CARE,Third Party Payments,Private Contractor Fees,73373-RESIDENTIAL & NURSING CARE PLACEMENTS,"1,479.22",Revenue,08/04/2014,Social Care & Inclusion
WC43-0827,BROADOAK CARE,Third Party Payments,Private Contractor Fees,73373-RESIDENTIAL & NURSING CARE PLACEMENTS,"1,479.29",Revenue,08/04/2014,Social Care & Inclusion
WC43-0828,BROADOAK CARE,Third Party Payments,Private Contractor Fees,73373-RESIDENTIAL & NURSING CARE PLACEMENTS,"1,479.33",Revenue,08/04/2014,Social Care & Inclusion
WC43-0829,BROADOAK CARE,Third Party Payments,Private Contractor Fees,73373-RESIDENTIAL & NURSING CARE PLACEMENTS,"1,479.33",Revenue,08/04/2014,Social Care & Inclusion
WC43-0830,BROADOAK CARE,Third Party Payments,Private Contractor Fees,73373-RESIDENTIAL & NURSING CARE PLACEMENTS,"1,479.33",Revenue,08/04/2014,Social Care & Inclusion
WC43-0831,BROADOAK CARE,Third Party Payments,Private Contractor Fees,73373-RESIDENTIAL & NURSING CARE PLACEMENTS,"1,479.29",Revenue,08/04/2014,Social Care & Inclusion
WC43-0832,BROADOAK CARE,Third Party Payments,Private Contractor Fees,73373-RESIDENTIAL & NURSING CARE PLACEMENTS,"1,479.29",Revenue,08/04/2014,Social Care & Inclusion
WC43-0833,BROADOAK CARE,Third Party Payments,Private Contractor Fees,73373-RESIDENTIAL & NURSING CARE PLACEMENTS,"1,479.29",Revenue,08/04/2014,Social Care & Inclusion
WC43-0834,BROADOAK CARE,Third Party Payments,Private Contractor Fees,73373-RESIDENTIAL & NURSING CARE PLACEMENTS,"1,406.08",Revenue,08/04/2014,Social Care & Inclusion
WC43-0835,BROADOAK CARE,Third Party Payments,Private Contractor Fees,73373-RESIDENTIAL & NURSING CARE PLACEMENTS,"1,479.29",Revenue,08/04/2014,Social Care & Inclusion
WC43-0836,BROADOAK CARE,Third Party Payments,Private Contractor Fees,73373-RESIDENTIAL & NURSING CARE PLACEMENTS,"1,406.08",Revenue,08/04/2014,Social Care & Inclusion
WC43-0837,BROADOAK CARE,Third Party Payments,Private Contractor Fees,73373-RESIDENTIAL & NURSING CARE PLACEMENTS,"1,479.29",Revenue,08/04/2014,Social Care & Inclusion
WC43-0838,BROADOAK CARE,Third Party Payments,Private Contractor Fees,73373-RESIDENTIAL & NURSING CARE PLACEMENTS,"1,406.08",Revenue,08/04/2014,Social Care & Inclusion
WC43-0839,BROADOAK CARE,Third Party Payments,Private Contractor Fees,73373-RESIDENTIAL & NURSING CARE PLACEMENTS,"1,479.23",Revenue,08/04/2014,Social Care & Inclusion
WC43-0840,BROADOAK CARE,Third Party Payments,Private Contractor Fees,73373-RESIDENTIAL & NURSING CARE PLACEMENTS,"1,479.29",Revenue,08/04/2014,Social Care & Inclusion
WC43-0841,BROADOAK CARE,Third Party Payments,Private Contractor Fees,73373-RESIDENTIAL & NURSING CARE PLACEMENTS,"1,479.29",Revenue,08/04/2014,Social Care & Inclusion
WC43-0842,BROADOAK CARE,Third Party Payments,Private Contractor Fees,73373-RESIDENTIAL & NURSING CARE PLACEMENTS,"1,479.29",Revenue,08/04/2014,Social Care & Inclusion
WC43-0843,BROADOAK CARE,Third Party Payments,Private Contractor Fees,73373-RESIDENTIAL & NURSING CARE PLACEMENTS,"1,479.29",Revenue,08/04/2014,Social Care & Inclusion
WC43-0844,BROADOAK CARE,Third Party Payments,Private Contractor Fees,73373-RESIDENTIAL & NURSING CARE PLACEMENTS,"1,479.33",Revenue,15/04/2014,Social Care & Inclusion
WC43-0845,BROADWAY LODGE,Supplies & Services,Services,63000-PROFESSIONAL FEES AND SERVICES,"1,250.00",Revenue,01/04/2014,Neighbourhood Services
WC43-0846,BROADWAY TRAVEL CONNECTIONS,Transport,Hire,52000-WITH DRIVER-HIRE OF VEHICLES,950.00,Revenue,02/04/2014,Childrens
WC43-0847,BROADWAY TRAVEL CONNECTIONS,Transport,Hire,52000-WITH DRIVER-HIRE OF VEHICLES,950.00,Revenue,10/04/2014,Childrens
WC43-0848,BROOK DESIGN HARDWARE LTD,Supplies & Services,"Equip,Furniture & Materials",60500-GENERAL MATERIALS,"10,795.27",Revenue,10/04/2014,Social Care & Inclusion
WC43-0849,BROWNHILLS ASPHALT TARMACADAM,Capital,Capital,01006-SITE WORKS MAIN CONTRACTORS,"3,888.00",Capital,01/04/2014,Regeneration
WC43-0850,BROWNHILLS ASPHALT TARMACADAM,Capital,Capital,01006-SITE WORKS MAIN CONTRACTORS,"10,400.00",Capital,01/04/2014,Regeneration
WC43-0851,BROWNHILLS ASPHALT TARMACADAM,Capital,Capital,01006-SITE WORKS MAIN CONTRACTORS,"9,200.00",Capital,01/04/2014,Regeneration
WC43-0852,BROWNHILLS ASPHALT TARMACADAM,Capital,Capital,01006-SITE WORKS MAIN CONTRACTORS,"6,863.00",Capital,01/04/2014,Regeneration
WC43-0853,BROWNHILLS ASPHALT TARMACADAM,Capital,Capital,01006-SITE WORKS MAIN CONTRACTORS,"1,496.00",Capital,01/04/2014,Regeneration
WC43-0854,BROWNHILLS ASPHALT TARMACADAM,Capital,Capital,01006-SITE WORKS MAIN CONTRACTORS,"9,290.00",Capital,01/04/2014,Regeneration
WC43-0855,BROWNHILLS ASPHALT TARMACADAM,Capital,Capital,01006-SITE WORKS MAIN CONTRACTORS,"32,288.00",Capital,01/04/2014,Regeneration
WC43-0856,BROWNHILLS ASPHALT TARMACADAM,Capital,Capital,01006-SITE WORKS MAIN CONTRACTORS,"3,492.00",Capital,01/04/2014,Regeneration
WC43-0857,BROWNHILLS ASPHALT TARMACADAM,Supplies & Services,"Equip,Furniture & Materials",60008-MAINTENANCE-FURNITURE & EQUIPMENT,"2,680.00",Revenue,01/04/2014,Neighbourhood Services
WC43-0858,BROWNHILLS ASPHALT TARMACADAM,Premises,Premises-Repairs & Maintenance,"40000-REPAIRS,ALTERATIONS & MAINTENANCE-PREM",300.00,Revenue,01/04/2014,Neighbourhood Services
WC43-0859,BROWNHILLS ASPHALT TARMACADAM,Premises,Premises-Repairs & Maintenance,"40000-REPAIRS,ALTERATIONS & MAINTENANCE-PREM","1,930.00",Revenue,01/04/2014,Neighbourhood Services
WC43-0860,BROWNHILLS ASPHALT TARMACADAM,Premises,Premises-Repairs & Maintenance,"40000-REPAIRS,ALTERATIONS & MAINTENANCE-PREM","4,586.00",Revenue,01/04/2014,Neighbourhood Services
WC43-0861,BROWNHILLS ASPHALT TARMACADAM,Premises,Premises-Repairs & Maintenance,"40000-REPAIRS,ALTERATIONS & MAINTENANCE-PREM",720.00,Revenue,01/04/2014,Regeneration
WC43-0862,BROWNHILLS ASPHALT TARMACADAM,Premises,Premises-Repairs & Maintenance,"40000-REPAIRS,ALTERATIONS & MAINTENANCE-PREM",780.00,Revenue,01/04/2014,Regeneration
WC43-0863,BROWNHILLS ASPHALT TARMACADAM,Third Party Payments,Private Contractor Fees,73025-PROFESSIONAL SERVICES-PRIV CONTRACTOR & OTHER AGENCIES,"1,500.00",Revenue,01/04/2014,Regeneration
WC43-0864,BROWNHILLS ASPHALT TARMACADAM,Third Party Payments,Private Contractor Fees,73025-PROFESSIONAL SERVICES-PRIV CONTRACTOR & OTHER AGENCIES,"1,600.00",Revenue,01/04/2014,Regeneration
WC43-0865,BROWNHILLS ASPHALT TARMACADAM,Third Party Payments,Private Contractor Fees,73002-SECURITY-PRIV CONTRACTOR FEES,"2,500.00",Revenue,01/04/2014,Regeneration
WC43-0866,BROWNHILLS ASPHALT TARMACADAM,Capital,Capital,01006-SITE WORKS MAIN CONTRACTORS,"10,640.00",Capital,02/04/2014,Regeneration
WC43-0867,BROWNHILLS ASPHALT TARMACADAM,Capital,Capital,01006-SITE WORKS MAIN CONTRACTORS,"14,000.00",Capital,03/04/2014,Neighbourhood Services
WC43-0868,BROWNHILLS ASPHALT TARMACADAM,Premises,Premises-Repairs & Maintenance,"40000-REPAIRS,ALTERATIONS & MAINTENANCE-PREM",700.00,Revenue,03/04/2014,Neighbourhood Services
WC43-0869,BROWNHILLS ASPHALT TARMACADAM,Premises,Premises-Repairs & Maintenance,"40000-REPAIRS,ALTERATIONS & MAINTENANCE-PREM",350.00,Revenue,03/04/2014,Regeneration
WC43-0870,BROWNHILLS ASPHALT TARMACADAM,Third Party Payments,Private Contractor Fees,63239-EXTERNAL WORKS-PAYMENT TO CONTRACTOR,"8,750.00",Revenue,03/04/2014,Neighbourhood Services
WC43-0871,BROWNHILLS ASPHALT TARMACADAM,Third Party Payments,Private Contractor Fees,73025-PROFESSIONAL SERVICES-PRIV CONTRACTOR & OTHER AGENCIES,350.00,Revenue,04/04/2014,Neighbourhood Services
WC43-0872,BROWNHILLS ASPHALT TARMACADAM,Capital,Capital,01006-SITE WORKS MAIN CONTRACTORS,"14,000.00",Capital,07/04/2014,Neighbourhood Services
WC43-0873,BROWNHILLS ASPHALT TARMACADAM,Premises,Premises-Repairs & Maintenance,"40000-REPAIRS,ALTERATIONS & MAINTENANCE-PREM","1,090.00",Revenue,07/04/2014,Neighbourhood Services
WC43-0874,BROWNHILLS ASPHALT TARMACADAM,Premises,Premises-Repairs & Maintenance,"40000-REPAIRS,ALTERATIONS & MAINTENANCE-PREM","5,775.00",Revenue,08/04/2014,Neighbourhood Services
WC43-0875,BROWNHILLS ASPHALT TARMACADAM,Premises,Premises-Repairs & Maintenance,"40000-REPAIRS,ALTERATIONS & MAINTENANCE-PREM","11,420.00",Revenue,11/04/2014,Neighbourhood Services
WC43-0876,BROWNHILLS ASPHALT TARMACADAM,Premises,Premises-Repairs & Maintenance,"40000-REPAIRS,ALTERATIONS & MAINTENANCE-PREM",500.00,Revenue,14/04/2014,Regeneration
WC43-0877,BROWNHILLS ASPHALT TARMACADAM,Premises,Premises-Repairs & Maintenance,"40000-REPAIRS,ALTERATIONS & MAINTENANCE-PREM",300.00,Revenue,14/04/2014,Regeneration
WC43-0878,BROWNHILLS ASPHALT TARMACADAM,Third Party Payments,Private Contractor Fees,73025-PROFESSIONAL SERVICES-PRIV CONTRACTOR & OTHER AGENCIES,"1,250.00",Revenue,14/04/2014,Regeneration
WC43-0879,BROWNHILLS ASPHALT TARMACADAM,Premises,Premises-Repairs & Maintenance,"40000-REPAIRS,ALTERATIONS & MAINTENANCE-PREM",325.00,Revenue,16/04/2014,Regeneration
WC43-0880,BROWNHILLS ASPHALT TARMACADAM,Premises,Premises-Repairs & Maintenance,40001-FENCING & GATES-OP MTCE,"6,973.00",Revenue,25/04/2014,Neighbourhood Services
WC43-0881,BROWNHILLS ASPHALT TARMACADAM,Supplies & Services,"Equip,Furniture & Materials",60008-MAINTENANCE-FURNITURE & EQUIPMENT,"1,880.00",Revenue,28/04/2014,Neighbourhood Services
WC43-0882,BROWNHILLS CARS,Transport,Hire,52000-WITH DRIVER-HIRE OF VEHICLES,"1,974.00",Revenue,28/04/2014,Childrens
WC43-0883,BROWNHILLS CARS,Transport,Hire,52000-WITH DRIVER-HIRE OF VEHICLES,462.00,Revenue,28/04/2014,Childrens
WC43-0884,BROWNHILLS CHILDRENS CENTRE,Supplies & Services,Other Supplies & Services,63115-HIRE OF ROOM (duplicate please use 63128)-SERVICES-FEES,90.00,Revenue,10/04/2014,Neighbourhood Services
WC43-0885,BROWNHILLS CHILDRENS CENTRE,Supplies & Services,Other Supplies & Services,63120-CRECHE FACILITIES-SERVICES-FEES,240.00,Revenue,10/04/2014,Neighbourhood Services
WC43-0886,BROWNHILLS COMMUNITY ASSOCIATION,Third Party Payments,Grants to Other Orgs,66505-OTHER-GRANTS TO OTHER ORGS,550.54,Revenue,02/04/2014,Childrens
WC43-0887,BROWNHILLS COMMUNITY ASSOCIATION,Third Party Payments,Grants to Other Orgs,66505-OTHER-GRANTS TO OTHER ORGS,634.50,Revenue,11/04/2014,Childrens
WC43-0888,BROWNHILLS COMMUNITY ASSOCIATION,Third Party Payments,Grants to Other Orgs,66505-OTHER-GRANTS TO OTHER ORGS,"7,015.75",Revenue,15/04/2014,Childrens
WC43-0889,BROWNHILLS COMMUNITY ASSOCIATION,Third Party Payments,Grants to Other Orgs,66505-OTHER-GRANTS TO OTHER ORGS,"3,799.53",Revenue,30/04/2014,Childrens
WC43-0890,BROWNHILLS LOCAL COMMITTEE,Supplies & Services,Other Supplies & Services,63128-HIRE OF ROOM-SERVICES-FEES,598.00,Revenue,17/04/2014,Neighbourhood Services
WC43-0891,REDACTED,Transfer Payments,Transfer Payments,76422-DIRECT PAYMENTS TO SOCIAL SERVICES CLIENTS,"1,445.00",Revenue,14/04/2014,Social Care & Inclusion
WC43-0892,BRUNSWICK HOUSE,Third Party Payments,Private Contractor Fees,73373-RESIDENTIAL & NURSING CARE PLACEMENTS,"6,761.66",Revenue,29/04/2014,Social Care & Inclusion
WC43-0893,BRUNSWICK LODGE,Third Party Payments,Private Contractor Fees,73373-RESIDENTIAL & NURSING CARE PLACEMENTS,"3,600.00",Revenue,15/04/2014,Social Care & Inclusion
WC43-0894,BRUNSWICK LODGE,Third Party Payments,Private Contractor Fees,73373-RESIDENTIAL & NURSING CARE PLACEMENTS,"9,229.29",Revenue,22/04/2014,Social Care & Inclusion
WC43-0895,B-SURE SECURITY SERVICES LTD,Premises,Premises-Repairs & Maintenance,"40000-REPAIRS,ALTERATIONS & MAINTENANCE-PREM","2,365.00",Revenue,03/04/2014,Regeneration
WC43-0896,B-SURE SECURITY SERVICES LTD,Premises,Premises-Repairs & Maintenance,"40000-REPAIRS,ALTERATIONS & MAINTENANCE-PREM",350.00,Revenue,03/04/2014,Regeneration
WC43-0897,BT,Supplies & Services,Communications & Computing,63603-COST OF CALLS-TELEPHONES,870.56,Revenue,01/04/2014,Childrens
WC43-0898,BT,Premises,Utilities,42003-ELECTRICITY-ENERGY COSTS,"-2,949.52",Revenue,24/04/2014,Neighbourhood Services
WC43-0899,BT,Premises,Utilities,42003-ELECTRICITY-ENERGY COSTS,"7,912.17",Revenue,24/04/2014,Neighbourhood Services
WC43-0900,BT PLC,Supplies & Services,Communications & Computing,63601-COSTS (NOT INTERNAL RECHARGES)-TELEPHONES,"19,025.24",Revenue,10/04/2014,Resources
WC43-0901,BT PLC,Supplies & Services,Communications & Computing,63601-COSTS (NOT INTERNAL RECHARGES)-TELEPHONES,"1,951.57",Revenue,11/04/2014,Resources
WC43-0902,BT PLC,Supplies & Services,Communications & Computing,63800-COMPUTER EQUIPMENT AND SUPPLIES,"2,574.00",Revenue,15/04/2014,Resources
WC43-0903,BT REDCARE,Third Party Payments,Private Contractor Fees,73025-PROFESSIONAL SERVICES-PRIV CONTRACTOR & OTHER AGENCIES,"4,656.11",Revenue,22/04/2014,Neighbourhood Services
WC43-0904,BUFFET EXPRESS LTD,Supplies & Services,Provisions,61305-CATERING,"1,425.70",Revenue,08/04/2014,Neighbourhood Services
WC43-0905,BUILT ENVIRONMENT HUB LIMITED,Supplies & Services,Services,63248-SURVEYS & PROF SERVICES-PAYMENT TO CONTRACTOR,"1,050.00",Revenue,01/04/2014,Regeneration
WC43-0906,BUILT ENVIRONMENT HUB LIMITED,Supplies & Services,Services,63248-SURVEYS & PROF SERVICES-PAYMENT TO CONTRACTOR,420.00,Revenue,01/04/2014,Regeneration
WC43-0907,BUPA CARE HOMES (CFHCARE) LTD,Third Party Payments,Private Contractor Fees,73373-RESIDENTIAL & NURSING CARE PLACEMENTS,"2,108.00",Revenue,01/04/2014,Social Care & Inclusion
WC43-0908,BUPA CARE HOMES (CFHCARE) LTD,Third Party Payments,Private Contractor Fees,73373-RESIDENTIAL & NURSING CARE PLACEMENTS,-439.16,Revenue,01/04/2014,Social Care & Inclusion
WC43-0909,BUPA CARE HOMES (CFHCARE) LTD,Third Party Payments,Private Contractor Fees,73373-RESIDENTIAL & NURSING CARE PLACEMENTS,572.79,Revenue,22/04/2014,Social Care & Inclusion
WC43-0910,BUPA CARE HOMES (CFHCARE) LTD,Third Party Payments,Private Contractor Fees,73373-RESIDENTIAL & NURSING CARE PLACEMENTS,885.21,Revenue,22/04/2014,Social Care & Inclusion
WC43-0911,BUPA CARE HOMES (CFHCARE) LTD,Third Party Payments,Private Contractor Fees,73373-RESIDENTIAL & NURSING CARE PLACEMENTS,586.93,Revenue,22/04/2014,Social Care & Inclusion
WC43-0912,BUPA CARE HOMES (CFHCARE) LTD,Third Party Payments,Private Contractor Fees,73373-RESIDENTIAL & NURSING CARE PLACEMENTS,907.07,Revenue,22/04/2014,Social Care & Inclusion
WC43-0913,BUPA CARE HOMES (CFHCARE) LTD,Third Party Payments,Private Contractor Fees,73373-RESIDENTIAL & NURSING CARE PLACEMENTS,"1,202.50",Revenue,29/04/2014,Social Care & Inclusion
WC43-0914,BUPA CARE HOMES (CFHCARE) LTD,Third Party Payments,Private Contractor Fees,73373-RESIDENTIAL & NURSING CARE PLACEMENTS,"1,858.42",Revenue,29/04/2014,Social Care & Inclusion
WC43-0915,BUPA CARE HOMES (CFHCARE) LTD,Third Party Payments,Private Contractor Fees,73373-RESIDENTIAL & NURSING CARE PLACEMENTS,655.62,Revenue,29/04/2014,Social Care & Inclusion
WC43-0916,BUPA CARE HOMES (CFHCARE) LTD,Third Party Payments,Private Contractor Fees,73373-RESIDENTIAL & NURSING CARE PLACEMENTS,"1,013.22",Revenue,29/04/2014,Social Care & Inclusion
WC43-0917,BUPA HOME HEALTHCARE,Supplies & Services,Services,63000-PROFESSIONAL FEES AND SERVICES,772.16,Revenue,07/04/2014,Childrens
WC43-0918,BUPA HOME HEALTHCARE,Supplies & Services,Services,63000-PROFESSIONAL FEES AND SERVICES,"1,920.24",Revenue,10/04/2014,Childrens
WC43-0919,BUPA HOME HEALTHCARE,Supplies & Services,Services,63000-PROFESSIONAL FEES AND SERVICES,"2,133.60",Revenue,10/04/2014,Childrens
WC43-0920,BUPA HOME HEALTHCARE,Supplies & Services,Services,63000-PROFESSIONAL FEES AND SERVICES,"1,838.96",Revenue,10/04/2014,Childrens
WC43-0921,BUPA HOME HEALTHCARE,Supplies & Services,Services,63000-PROFESSIONAL FEES AND SERVICES,"1,798.32",Revenue,10/04/2014,Childrens
WC43-0922,BUPA HOME HEALTHCARE,Supplies & Services,Services,63000-PROFESSIONAL FEES AND SERVICES,934.72,Revenue,10/04/2014,Childrens
WC43-0923,BURROWS GM LTD,Supplies & Services,"Equip,Furniture & Materials",60500-GENERAL MATERIALS,333.45,Revenue,09/04/2014,Neighbourhood Services
WC43-0924,BURROWS GM LTD,Supplies & Services,"Equip,Furniture & Materials",60514-MATERIALS TO STORES,350.98,Revenue,11/04/2014,Neighbourhood Services
WC43-0925,BURROWS GM LTD,Supplies & Services,"Equip,Furniture & Materials",60500-GENERAL MATERIALS,283.22,Revenue,28/04/2014,Neighbourhood Services
WC43-0926,BUSH HOME LTD,Third Party Payments,Private Contractor Fees,73373-RESIDENTIAL & NURSING CARE PLACEMENTS,"1,513.68",Revenue,01/04/2014,Social Care & Inclusion
WC43-0927,BUSH HOME LTD,Third Party Payments,Private Contractor Fees,73373-RESIDENTIAL & NURSING CARE PLACEMENTS,"1,534.12",Revenue,01/04/2014,Social Care & Inclusion
WC43-0928,BUSH HOME LTD,Third Party Payments,Private Contractor Fees,73373-RESIDENTIAL & NURSING CARE PLACEMENTS,"1,534.12",Revenue,01/04/2014,Social Care & Inclusion
WC43-0929,BUSH HOME LTD,Third Party Payments,Private Contractor Fees,73373-RESIDENTIAL & NURSING CARE PLACEMENTS,"1,458.16",Revenue,08/04/2014,Social Care & Inclusion
WC43-0930,BUSH HOME LTD,Third Party Payments,Private Contractor Fees,73373-RESIDENTIAL & NURSING CARE PLACEMENTS,"1,513.68",Revenue,08/04/2014,Social Care & Inclusion
WC43-0931,BUSH HOME LTD,Third Party Payments,Private Contractor Fees,73373-RESIDENTIAL & NURSING CARE PLACEMENTS,"1,534.12",Revenue,08/04/2014,Social Care & Inclusion
WC43-0932,BUSH HOME LTD,Third Party Payments,Private Contractor Fees,73373-RESIDENTIAL & NURSING CARE PLACEMENTS,"1,460.40",Revenue,08/04/2014,Social Care & Inclusion
WC43-0933,BUSH HOME LTD,Third Party Payments,Private Contractor Fees,73373-RESIDENTIAL & NURSING CARE PLACEMENTS,"1,534.12",Revenue,08/04/2014,Social Care & Inclusion
WC43-0934,BUSH HOME LTD,Third Party Payments,Private Contractor Fees,73373-RESIDENTIAL & NURSING CARE PLACEMENTS,"1,534.12",Revenue,08/04/2014,Social Care & Inclusion
WC43-0935,BUSH HOME LTD,Third Party Payments,Private Contractor Fees,73373-RESIDENTIAL & NURSING CARE PLACEMENTS,"1,557.60",Revenue,08/04/2014,Social Care & Inclusion
WC43-0936,BUSH HOME LTD,Third Party Payments,Private Contractor Fees,73373-RESIDENTIAL & NURSING CARE PLACEMENTS,"1,534.12",Revenue,08/04/2014,Social Care & Inclusion
WC43-0937,BUSH HOME LTD,Third Party Payments,Private Contractor Fees,73373-RESIDENTIAL & NURSING CARE PLACEMENTS,"1,534.12",Revenue,08/04/2014,Social Care & Inclusion
WC43-0938,BUSH HOME LTD,Third Party Payments,Private Contractor Fees,73373-RESIDENTIAL & NURSING CARE PLACEMENTS,"1,513.64",Revenue,08/04/2014,Social Care & Inclusion
WC43-0939,BUSH HOME LTD,Third Party Payments,Private Contractor Fees,73373-RESIDENTIAL & NURSING CARE PLACEMENTS,"1,534.12",Revenue,08/04/2014,Social Care & Inclusion
WC43-0940,BUSH HOME LTD,Third Party Payments,Private Contractor Fees,73373-RESIDENTIAL & NURSING CARE PLACEMENTS,"1,424.54",Revenue,15/04/2014,Social Care & Inclusion
WC43-0941,BUSH HOME LTD,Third Party Payments,Private Contractor Fees,73373-RESIDENTIAL & NURSING CARE PLACEMENTS,"1,479.33",Revenue,15/04/2014,Social Care & Inclusion
WC43-0942,BUSH HOME LTD,Third Party Payments,Private Contractor Fees,73373-RESIDENTIAL & NURSING CARE PLACEMENTS,469.41,Revenue,29/04/2014,Social Care & Inclusion
WC43-0943,BUSY BEES CHILDCARE LTD,Third Party Payments,Grants to Other Orgs,66505-OTHER-GRANTS TO OTHER ORGS,"6,345.80",Revenue,15/04/2014,Childrens
WC43-0944,BUSY BEES CHILDCARE LTD,Third Party Payments,Grants to Other Orgs,66505-OTHER-GRANTS TO OTHER ORGS,821.52,Revenue,30/04/2014,Childrens
WC43-0945,BW ASSOCIATES,Supplies & Services,Services,63102-CONSULTANTS FEES - CORPORATE,"1,000.00",Revenue,04/04/2014,Neighbourhood Services
WC43-0946,BY THE BRIDGE,Third Party Payments,Private Contractor Fees,74037-INDEPENDENT FOSTER CARE-OTH AGENCY PROVISION,"4,157.14",Revenue,08/04/2014,Childrens
WC43-0947,C & D BUSINESS SOLUTIONS LTD,Supplies & Services,Services,63000-PROFESSIONAL FEES AND SERVICES,720.00,Revenue,11/04/2014,Childrens
WC43-0948,C & V ORCHARD MANOR LTD,Third Party Payments,Private Contractor Fees,73373-RESIDENTIAL & NURSING CARE PLACEMENTS,"1,444.50",Revenue,08/04/2014,Social Care & Inclusion
WC43-0949,C & V ORCHARD MANOR LTD,Third Party Payments,Private Contractor Fees,73373-RESIDENTIAL & NURSING CARE PLACEMENTS,"4,843.17",Revenue,15/04/2014,Social Care & Inclusion
WC43-0950,C & V ORCHARD MANOR LTD,Third Party Payments,Private Contractor Fees,73373-RESIDENTIAL & NURSING CARE PLACEMENTS,"1,439.80",Revenue,15/04/2014,Social Care & Inclusion
WC43-0951,C & V ORCHARD MANOR LTD,Third Party Payments,Private Contractor Fees,73373-RESIDENTIAL & NURSING CARE PLACEMENTS,"1,439.80",Revenue,15/04/2014,Social Care & Inclusion
WC43-0952,C & V ORCHARD MANOR LTD,Third Party Payments,Private Contractor Fees,73373-RESIDENTIAL & NURSING CARE PLACEMENTS,"1,531.76",Revenue,15/04/2014,Social Care & Inclusion
WC43-0953,C & V ORCHARD MANOR LTD,Third Party Payments,Private Contractor Fees,73373-RESIDENTIAL & NURSING CARE PLACEMENTS,"1,531.76",Revenue,15/04/2014,Social Care & Inclusion
WC43-0954,C & V ORCHARD MANOR LTD,Third Party Payments,Private Contractor Fees,73373-RESIDENTIAL & NURSING CARE PLACEMENTS,"1,439.81",Revenue,15/04/2014,Social Care & Inclusion
WC43-0955,C & V ORCHARD MANOR LTD,Third Party Payments,Private Contractor Fees,73373-RESIDENTIAL & NURSING CARE PLACEMENTS,"1,460.40",Revenue,15/04/2014,Social Care & Inclusion
WC43-0956,C & V ORCHARD RESIDENTIAL LTD,Third Party Payments,Private Contractor Fees,73373-RESIDENTIAL & NURSING CARE PLACEMENTS,"1,534.12",Revenue,15/04/2014,Social Care & Inclusion
WC43-0957,C & V ORCHARD RESIDENTIAL LTD,Third Party Payments,Private Contractor Fees,73373-RESIDENTIAL & NURSING CARE PLACEMENTS,"1,534.12",Revenue,15/04/2014,Social Care & Inclusion
WC43-0958,C & V ORCHARD RESIDENTIAL LTD,Third Party Payments,Private Contractor Fees,73373-RESIDENTIAL & NURSING CARE PLACEMENTS,"1,460.40",Revenue,15/04/2014,Social Care & Inclusion
WC43-0959,C & V ORCHARD RESIDENTIAL LTD,Third Party Payments,Private Contractor Fees,73373-RESIDENTIAL & NURSING CARE PLACEMENTS,"1,531.76",Revenue,15/04/2014,Social Care & Inclusion
WC43-0960,C & V ORCHARD RESIDENTIAL LTD,Third Party Payments,Private Contractor Fees,73373-RESIDENTIAL & NURSING CARE PLACEMENTS,"1,534.12",Revenue,15/04/2014,Social Care & Inclusion
WC43-0961,C & V ORCHARD RESIDENTIAL LTD,Third Party Payments,Private Contractor Fees,73373-RESIDENTIAL & NURSING CARE PLACEMENTS,"1,531.76",Revenue,15/04/2014,Social Care & Inclusion
WC43-0962,C & V ORCHARD RESIDENTIAL LTD,Third Party Payments,Private Contractor Fees,73373-RESIDENTIAL & NURSING CARE PLACEMENTS,"1,531.76",Revenue,15/04/2014,Social Care & Inclusion
WC43-0963,C & V ORCHARD RESIDENTIAL LTD,Third Party Payments,Private Contractor Fees,73373-RESIDENTIAL & NURSING CARE PLACEMENTS,"1,458.16",Revenue,15/04/2014,Social Care & Inclusion
WC43-0964,C & V ORCHARD RESIDENTIAL LTD,Third Party Payments,Private Contractor Fees,73373-RESIDENTIAL & NURSING CARE PLACEMENTS,"1,458.16",Revenue,15/04/2014,Social Care & Inclusion
WC43-0965,C & V ORCHARD RESIDENTIAL LTD,Third Party Payments,Private Contractor Fees,73373-RESIDENTIAL & NURSING CARE PLACEMENTS,"1,534.12",Revenue,15/04/2014,Social Care & Inclusion
WC43-0966,C & V ORCHARD RESIDENTIAL LTD,Third Party Payments,Private Contractor Fees,73373-RESIDENTIAL & NURSING CARE PLACEMENTS,"1,531.76",Revenue,15/04/2014,Social Care & Inclusion
WC43-0967,C & V ORCHARD RESIDENTIAL LTD,Third Party Payments,Private Contractor Fees,73373-RESIDENTIAL & NURSING CARE PLACEMENTS,"1,531.76",Revenue,15/04/2014,Social Care & Inclusion
WC43-0968,C ART ART TRANSPORT LTD,Third Party Payments,Private Contractor Fees,73032-TRANSPORTATION-PRIV CONTRACTOR FEES,"3,000.00",Revenue,03/04/2014,Neighbourhood Services
WC43-0969,C ART ART TRANSPORT LTD,Third Party Payments,Private Contractor Fees,73032-TRANSPORTATION-PRIV CONTRACTOR FEES,250.00,Revenue,04/04/2014,Neighbourhood Services
WC43-0970,C ART ART TRANSPORT LTD,Third Party Payments,Private Contractor Fees,73032-TRANSPORTATION-PRIV CONTRACTOR FEES,375.00,Revenue,08/04/2014,Neighbourhood Services
WC43-0971,REDACTED,Third Party Payments,Private Contractor Fees,73374-SUPPORTED & OTHER ACCOMMODATION,"4,912.20",Revenue,16/04/2014,Social Care & Inclusion
WC43-0972,REDACTED,Third Party Payments,Private Contractor Fees,74006-HOLIDAY/CHRISTMAS ALLOWANCE-FOSTER CARERS-OTH AGENCY PROVISION,"8,750.18",Revenue,01/04/2014,Childrens
WC43-0973,REDACTED,Supplies & Services,Other Supplies & Services,62515-MISCELLANEOUS SUPPLIES,"4,267.08",Revenue,28/04/2014,Childrens
WC43-0974,REDACTED,Third Party Payments,Private Contractor Fees,74006-HOLIDAY/CHRISTMAS ALLOWANCE-FOSTER CARERS-OTH AGENCY PROVISION,"4,306.20",Revenue,28/04/2014,Childrens
WC43-0975,REDACTED,Third Party Payments,Private Contractor Fees,74006-HOLIDAY/CHRISTMAS ALLOWANCE-FOSTER CARERS-OTH AGENCY PROVISION,"1,585.46",Revenue,01/04/2014,Childrens
WC43-0976,REDACTED,Supplies & Services,Other Supplies & Services,62515-MISCELLANEOUS SUPPLIES,"1,428.44",Revenue,28/04/2014,Childrens
WC43-0977,REDACTED,Third Party Payments,Private Contractor Fees,74006-HOLIDAY/CHRISTMAS ALLOWANCE-FOSTER CARERS-OTH AGENCY PROVISION,"1,435.40",Revenue,28/04/2014,Childrens
WC43-0978,C P DAVIDSON & SONS LTD,Supplies & Services,"Equip,Furniture & Materials",60500-GENERAL MATERIALS,636.15,Revenue,01/04/2014,Neighbourhood Services
WC43-0979,C P DAVIDSON & SONS LTD,Supplies & Services,"Equip,Furniture & Materials",60500-GENERAL MATERIALS,497.21,Revenue,11/04/2014,Neighbourhood Services
WC43-0980,C P DAVIDSON & SONS LTD,Supplies & Services,"Equip,Furniture & Materials",60514-MATERIALS TO STORES,419.32,Revenue,11/04/2014,Neighbourhood Services
WC43-0981,C P DAVIDSON & SONS LTD,Supplies & Services,"Equip,Furniture & Materials",60500-GENERAL MATERIALS,811.27,Revenue,23/04/2014,Neighbourhood Services
WC43-0982,C P DAVIDSON & SONS LTD,Supplies & Services,"Equip,Furniture & Materials",60500-GENERAL MATERIALS,"1,669.78",Revenue,25/04/2014,Neighbourhood Services
WC43-0983,C P DAVIDSON & SONS LTD,Supplies & Services,"Equip,Furniture & Materials",60500-GENERAL MATERIALS,511.23,Revenue,28/04/2014,Neighbourhood Services
WC43-0984,C S S (UK) LTD,Supplies & Services,"Equip,Furniture & Materials",60539-CLEANING MATERIALS,733.20,Revenue,10/04/2014,Regeneration
WC43-0985,C&S CARE SERVICES,Employees,Agency,34305-AGENCY STAFF-EMPLOYEES,578.50,Revenue,02/04/2014,Social Care & Inclusion
WC43-0986,C&S CARE SERVICES,Employees,Agency,34305-AGENCY STAFF-EMPLOYEES,604.50,Revenue,02/04/2014,Social Care & Inclusion
WC43-0987,C&S CARE SERVICES,Employees,Agency,34305-AGENCY STAFF-EMPLOYEES,292.50,Revenue,02/04/2014,Social Care & Inclusion
WC43-0988,C&S CARE SERVICES,Employees,Agency,34305-AGENCY STAFF-EMPLOYEES,299.00,Revenue,25/04/2014,Social Care & Inclusion
WC43-0989,REDACTED,Supplies & Services,Services,63000-PROFESSIONAL FEES AND SERVICES,516.00,Revenue,28/04/2014,Neighbourhood Services
WC43-0990,CALDMORE AREA HOUSING ASS LTD,Third Party Payments,Private Contractor Fees,70000-SOCIAL SERVICES-FEES TO VOLUNTARY BODIES,"15,000.00",Revenue,01/04/2014,Social Care & Inclusion
WC43-0991,CALDMORE AREA HOUSING ASS LTD,Premises,Rent,43000-RENTS,814.75,Revenue,02/04/2014,Childrens
WC43-0992,CALDMORE AREA HOUSING ASS LTD,Third Party Payments,Private Contractor Fees,73373-RESIDENTIAL & NURSING CARE PLACEMENTS,530.85,Revenue,08/04/2014,Social Care & Inclusion
WC43-0993,CALDMORE AREA HOUSING ASS LTD,Third Party Payments,Private Contractor Fees,73373-RESIDENTIAL & NURSING CARE PLACEMENTS,"1,238.66",Revenue,08/04/2014,Social Care & Inclusion
WC43-0994,CALDMORE AREA HOUSING ASS LTD,Third Party Payments,Private Contractor Fees,73365-BLOCK GROSS-SUPPORTING PEOPLE,"30,663.09",Revenue,10/04/2014,Social Care & Inclusion
WC43-0995,CALDMORE AREA HOUSING ASS LTD,Third Party Payments,Private Contractor Fees,73373-RESIDENTIAL & NURSING CARE PLACEMENTS,265.43,Revenue,15/04/2014,Social Care & Inclusion
WC43-0996,CALDMORE AREA HOUSING ASS LTD,Third Party Payments,Private Contractor Fees,73373-RESIDENTIAL & NURSING CARE PLACEMENTS,"2,477.32",Revenue,15/04/2014,Social Care & Inclusion
WC43-0997,CALDMORE AREA HOUSING ASS LTD,Third Party Payments,Private Contractor Fees,73373-RESIDENTIAL & NURSING CARE PLACEMENTS,"2,477.32",Revenue,15/04/2014,Social Care & Inclusion
WC43-0998,CALDMORE AREA HOUSING ASS LTD,Third Party Payments,Private Contractor Fees,73373-RESIDENTIAL & NURSING CARE PLACEMENTS,"2,477.32",Revenue,15/04/2014,Social Care & Inclusion
WC43-0999,CALDMORE AREA HOUSING ASS LTD,Third Party Payments,Private Contractor Fees,73373-RESIDENTIAL & NURSING CARE PLACEMENTS,"2,477.32",Revenue,15/04/2014,Social Care & Inclusion
WC43-1000,CALDMORE AREA HOUSING ASS LTD,Third Party Payments,Private Contractor Fees,73373-RESIDENTIAL & NURSING CARE PLACEMENTS,"2,477.32",Revenue,15/04/2014,Social Care & Inclusion
WC43-1001,CALDMORE AREA HOUSING ASS LTD,Third Party Payments,Private Contractor Fees,73373-RESIDENTIAL & NURSING CARE PLACEMENTS,"2,477.32",Revenue,15/04/2014,Social Care & Inclusion
WC43-1002,CALDMORE AREA HOUSING ASS LTD,Third Party Payments,Private Contractor Fees,73373-RESIDENTIAL & NURSING CARE PLACEMENTS,"1,769.51",Revenue,15/04/2014,Social Care & Inclusion
WC43-1003,CALDMORE AREA HOUSING ASS LTD,Third Party Payments,Private Contractor Fees,73373-RESIDENTIAL & NURSING CARE PLACEMENTS,"1,150.18",Revenue,15/04/2014,Social Care & Inclusion
WC43-1004,CALDMORE AREA HOUSING ASS LTD,Third Party Payments,Private Contractor Fees,73373-RESIDENTIAL & NURSING CARE PLACEMENTS,"2,477.36",Revenue,15/04/2014,Social Care & Inclusion
WC43-1005,CALDMORE AREA HOUSING ASS LTD,Third Party Payments,Private Contractor Fees,73373-RESIDENTIAL & NURSING CARE PLACEMENTS,353.90,Revenue,22/04/2014,Social Care & Inclusion
WC43-1006,CALDMORE AREA HOUSING ASS LTD,Third Party Payments,Private Contractor Fees,73373-RESIDENTIAL & NURSING CARE PLACEMENTS,"2,477.32",Revenue,22/04/2014,Social Care & Inclusion
WC43-1007,CALDMORE AREA HOUSING ASS LTD,Third Party Payments,Private Contractor Fees,73373-RESIDENTIAL & NURSING CARE PLACEMENTS,353.90,Revenue,22/04/2014,Social Care & Inclusion
WC43-1008,CALDMORE AREA HOUSING ASS LTD,Third Party Payments,Private Contractor Fees,73373-RESIDENTIAL & NURSING CARE PLACEMENTS,"3,185.13",Revenue,22/04/2014,Social Care & Inclusion
WC43-1009,CALDMORE AREA HOUSING ASS LTD,Third Party Payments,Private Contractor Fees,73373-RESIDENTIAL & NURSING CARE PLACEMENTS,"3,185.13",Revenue,22/04/2014,Social Care & Inclusion
WC43-1010,CALDMORE AREA HOUSING ASS LTD,Third Party Payments,Private Contractor Fees,73373-RESIDENTIAL & NURSING CARE PLACEMENTS,973.23,Revenue,22/04/2014,Social Care & Inclusion
WC43-1011,CALDMORE AREA HOUSING ASS LTD,Third Party Payments,Private Contractor Fees,73373-RESIDENTIAL & NURSING CARE PLACEMENTS,"3,185.13",Revenue,22/04/2014,Social Care & Inclusion
WC43-1012,CALDMORE AREA HOUSING ASS LTD,Third Party Payments,Private Contractor Fees,73373-RESIDENTIAL & NURSING CARE PLACEMENTS,"3,185.13",Revenue,22/04/2014,Social Care & Inclusion
WC43-1013,CALDMORE AREA HOUSING ASS LTD,Third Party Payments,Private Contractor Fees,73373-RESIDENTIAL & NURSING CARE PLACEMENTS,"3,185.13",Revenue,22/04/2014,Social Care & Inclusion
WC43-1014,CALDMORE AREA HOUSING ASS LTD,Third Party Payments,Private Contractor Fees,73373-RESIDENTIAL & NURSING CARE PLACEMENTS,"3,185.33",Revenue,22/04/2014,Social Care & Inclusion
WC43-1015,CALDMORE AREA HOUSING ASS LTD,Third Party Payments,Private Contractor Fees,73373-RESIDENTIAL & NURSING CARE PLACEMENTS,"2,211.89",Revenue,22/04/2014,Social Care & Inclusion
WC43-1016,CALDMORE AREA HOUSING ASS LTD,Third Party Payments,Private Contractor Fees,73373-RESIDENTIAL & NURSING CARE PLACEMENTS,"3,185.13",Revenue,22/04/2014,Social Care & Inclusion
WC43-1017,CALDMORE AREA HOUSING ASS LTD,Third Party Payments,Private Contractor Fees,73373-RESIDENTIAL & NURSING CARE PLACEMENTS,619.33,Revenue,22/04/2014,Social Care & Inclusion
WC43-1018,CALDMORE AREA HOUSING ASS LTD,Third Party Payments,Private Contractor Fees,73374-SUPPORTED & OTHER ACCOMMODATION,741.60,Revenue,23/04/2014,Social Care & Inclusion
WC43-1019,CALDMORE AREA HOUSING ASS LTD,Third Party Payments,Private Contractor Fees,73374-SUPPORTED & OTHER ACCOMMODATION,741.60,Revenue,23/04/2014,Social Care & Inclusion
WC43-1020,CALDMORE AREA HOUSING ASS LTD,Third Party Payments,Private Contractor Fees,73374-SUPPORTED & OTHER ACCOMMODATION,741.60,Revenue,23/04/2014,Social Care & Inclusion
WC43-1021,CALDMORE AREA HOUSING ASS LTD,Third Party Payments,Private Contractor Fees,73374-SUPPORTED & OTHER ACCOMMODATION,741.60,Revenue,23/04/2014,Social Care & Inclusion
WC43-1022,CALDMORE AREA HOUSING ASS LTD,Third Party Payments,Private Contractor Fees,73374-SUPPORTED & OTHER ACCOMMODATION,741.60,Revenue,23/04/2014,Social Care & Inclusion
WC43-1023,CALDMORE AREA HOUSING ASS LTD,Third Party Payments,Private Contractor Fees,73374-SUPPORTED & OTHER ACCOMMODATION,741.60,Revenue,23/04/2014,Social Care & Inclusion
WC43-1024,CALDMORE AREA HOUSING ASS LTD,Third Party Payments,Private Contractor Fees,73374-SUPPORTED & OTHER ACCOMMODATION,741.60,Revenue,23/04/2014,Social Care & Inclusion
WC43-1025,CALDMORE AREA HOUSING ASS LTD,Third Party Payments,Private Contractor Fees,73374-SUPPORTED & OTHER ACCOMMODATION,741.60,Revenue,23/04/2014,Social Care & Inclusion
WC43-1026,CALDMORE AREA HOUSING ASS LTD,Third Party Payments,Private Contractor Fees,73374-SUPPORTED & OTHER ACCOMMODATION,741.60,Revenue,23/04/2014,Social Care & Inclusion
WC43-1027,CALDMORE AREA HOUSING ASS LTD,Third Party Payments,Private Contractor Fees,73374-SUPPORTED & OTHER ACCOMMODATION,741.60,Revenue,23/04/2014,Social Care & Inclusion
WC43-1028,CALDMORE AREA HOUSING ASS LTD,Third Party Payments,Private Contractor Fees,73374-SUPPORTED & OTHER ACCOMMODATION,741.60,Revenue,23/04/2014,Social Care & Inclusion
WC43-1029,CALDMORE AREA HOUSING ASS LTD,Third Party Payments,Private Contractor Fees,73374-SUPPORTED & OTHER ACCOMMODATION,741.60,Revenue,23/04/2014,Social Care & Inclusion
WC43-1030,CALDMORE AREA HOUSING ASS LTD,Third Party Payments,Private Contractor Fees,73374-SUPPORTED & OTHER ACCOMMODATION,741.60,Revenue,23/04/2014,Social Care & Inclusion
WC43-1031,CALDMORE AREA HOUSING ASS LTD,Third Party Payments,Private Contractor Fees,73373-RESIDENTIAL & NURSING CARE PLACEMENTS,530.85,Revenue,29/04/2014,Social Care & Inclusion
WC43-1032,CALDMORE AREA HOUSING ASS LTD,Third Party Payments,Private Contractor Fees,73374-SUPPORTED & OTHER ACCOMMODATION,507.91,Revenue,29/04/2014,Social Care & Inclusion
WC43-1033,CALDMORE AREA HOUSING ASS LTD,Third Party Payments,Private Contractor Fees,73373-RESIDENTIAL & NURSING CARE PLACEMENTS,353.90,Revenue,30/04/2014,Social Care & Inclusion
WC43-1034,REDACTED,Third Party Payments,Private Contractor Fees,74006-HOLIDAY/CHRISTMAS ALLOWANCE-FOSTER CARERS-OTH AGENCY PROVISION,291.02,Revenue,14/04/2014,Childrens
WC43-1035,REDACTED,Transfer Payments,Transfer Payments,76422-DIRECT PAYMENTS TO SOCIAL SERVICES CLIENTS,287.71,Revenue,14/04/2014,Childrens
WC43-1036,CALOO LTD,Capital,Capital,01028-OTHER PURCHASE COSTS,"15,049.50",Capital,07/04/2014,Neighbourhood Services
WC43-1037,CALOO LTD,Capital,Capital,01028-OTHER PURCHASE COSTS,"8,000.00",Capital,07/04/2014,Neighbourhood Services
WC43-1038,CALOO LTD,Third Party Payments,Private Contractor Fees,73025-PROFESSIONAL SERVICES-PRIV CONTRACTOR & OTHER AGENCIES,"23,750.00",Revenue,09/04/2014,Regeneration
WC43-1039,CAMBIAN LEARNING DISABILITES MIDLANDS LIMITED,Transfer Payments,Transfer Payments,76010-ACCOMMODATION AND RELATED COSTS-ASSISTANCE TO S/S CLIENTS,"10,695.00",Revenue,01/04/2014,Social Care & Inclusion
WC43-1040,CAMERON FORECOURT LTD,Third Party Payments,Private Contractor Fees,73025-PROFESSIONAL SERVICES-PRIV CONTRACTOR & OTHER AGENCIES,"2,543.00",Revenue,08/04/2014,Neighbourhood Services
WC43-1041,CANAL & RIVER TRUST,Capital,Capital,01001-OTHER CONSULTANTS FEES,"2,773.52",Capital,09/04/2014,Neighbourhood Services
WC43-1042,CANFORD AUDIO,Supplies & Services,"Equip,Furniture & Materials",60500-GENERAL MATERIALS,392.00,Revenue,03/04/2014,Resources
WC43-1043,CANNOCK TACHOGRAPH CENTRE LTD,Third Party Payments,Private Contractor Fees,73025-PROFESSIONAL SERVICES-PRIV CONTRACTOR & OTHER AGENCIES,420.00,Revenue,25/04/2014,Neighbourhood Services
WC43-1044,CAPITA BUSINESS SERVICES LTD 001,Supplies & Services,Services,63000-PROFESSIONAL FEES AND SERVICES,"12,000.00",Revenue,01/04/2014,Resources
WC43-1045,CAPITA BUSINESS SERVICES LTD 001,Supplies & Services,Communications & Computing,63800-COMPUTER EQUIPMENT AND SUPPLIES,"147,666.68",Revenue,17/04/2014,Childrens
WC43-1046,CAPITA EDUCATION RESOURCING,Supplies & Services,Communications & Computing,63800-COMPUTER EQUIPMENT AND SUPPLIES,270.00,Revenue,09/04/2014,Resources
WC43-1047,CAPITA EDUCATION RESOURCING,Supplies & Services,Services,63000-PROFESSIONAL FEES AND SERVICES,840.35,Revenue,17/04/2014,Resources
WC43-1048,CAPITAL HAIR & BEAUTY LTD,Supplies & Services,"Equip,Furniture & Materials",60500-GENERAL MATERIALS,513.19,Revenue,08/04/2014,Neighbourhood Services
WC43-1049,CAPSTONE FOSTER CARE (SOUTH EAST) LIMITED,Third Party Payments,Private Contractor Fees,74037-INDEPENDENT FOSTER CARE-OTH AGENCY PROVISION,"2,856.43",Revenue,08/04/2014,Childrens
WC43-1050,CAPSTONE FOSTER CARE (SOUTH EAST) LIMITED,Third Party Payments,Private Contractor Fees,74037-INDEPENDENT FOSTER CARE-OTH AGENCY PROVISION,"2,856.43",Revenue,08/04/2014,Childrens
WC43-1051,CAPSTONE FOSTER CARE (SOUTH EAST) LIMITED,Third Party Payments,Private Contractor Fees,74037-INDEPENDENT FOSTER CARE-OTH AGENCY PROVISION,"2,856.43",Revenue,08/04/2014,Childrens
WC43-1052,CAPSTONE FOSTER CARE (SOUTH EAST) LIMITED,Third Party Payments,Private Contractor Fees,74037-INDEPENDENT FOSTER CARE-OTH AGENCY PROVISION,"2,856.43",Revenue,08/04/2014,Childrens
WC43-1053,CAPSTONE FOSTER CARE (SOUTH EAST) LIMITED,Third Party Payments,Private Contractor Fees,74037-INDEPENDENT FOSTER CARE-OTH AGENCY PROVISION,"2,580.00",Revenue,08/04/2014,Childrens
WC43-1054,CAPSTONE FOSTER CARE (SOUTH EAST) LIMITED,Third Party Payments,Private Contractor Fees,74037-INDEPENDENT FOSTER CARE-OTH AGENCY PROVISION,"2,580.00",Revenue,08/04/2014,Childrens
WC43-1055,CAPSTONE FOSTER CARE (SOUTH EAST) LIMITED,Third Party Payments,Private Contractor Fees,74037-INDEPENDENT FOSTER CARE-OTH AGENCY PROVISION,"2,856.43",Revenue,08/04/2014,Childrens
WC43-1056,CAPSTONE FOSTER CARE (SOUTH EAST) LIMITED,Third Party Payments,Private Contractor Fees,74037-INDEPENDENT FOSTER CARE-OTH AGENCY PROVISION,"2,856.43",Revenue,08/04/2014,Childrens
WC43-1057,CAPSTONE FOSTER CARE (SOUTH EAST) LIMITED,Third Party Payments,Private Contractor Fees,74037-INDEPENDENT FOSTER CARE-OTH AGENCY PROVISION,"3,777.74",Revenue,08/04/2014,Childrens
WC43-1058,CAPSTONE FOSTER CARE (SOUTH EAST) LIMITED,Third Party Payments,Private Contractor Fees,74037-INDEPENDENT FOSTER CARE-OTH AGENCY PROVISION,"3,777.74",Revenue,08/04/2014,Childrens
WC43-1059,CAPSTONE FOSTER CARE (SOUTH EAST) LIMITED,Third Party Payments,Private Contractor Fees,74037-INDEPENDENT FOSTER CARE-OTH AGENCY PROVISION,"2,764.20",Revenue,15/04/2014,Childrens
WC43-1060,CAPSTONE FOSTER CARE (SOUTH EAST) LIMITED,Third Party Payments,Private Contractor Fees,74037-INDEPENDENT FOSTER CARE-OTH AGENCY PROVISION,"2,764.20",Revenue,15/04/2014,Childrens
WC43-1061,CAPSTONE FOSTER CARE (SOUTH EAST) LIMITED,Third Party Payments,Private Contractor Fees,74037-INDEPENDENT FOSTER CARE-OTH AGENCY PROVISION,"3,771.30",Revenue,15/04/2014,Childrens
WC43-1062,CAPSTONE FOSTER CARE (SOUTH EAST) LIMITED,Third Party Payments,Private Contractor Fees,74037-INDEPENDENT FOSTER CARE-OTH AGENCY PROVISION,"2,972.27",Revenue,15/04/2014,Childrens
WC43-1063,CAPSTONE FOSTER CARE (SOUTH EAST) LIMITED,Third Party Payments,Private Contractor Fees,74037-INDEPENDENT FOSTER CARE-OTH AGENCY PROVISION,"2,972.27",Revenue,15/04/2014,Childrens
WC43-1064,CAPSTONE FOSTER CARE (SOUTH EAST) LIMITED,Third Party Payments,Private Contractor Fees,74037-INDEPENDENT FOSTER CARE-OTH AGENCY PROVISION,"2,998.38",Revenue,15/04/2014,Childrens
WC43-1065,CAPSTONE FOSTER CARE (SOUTH EAST) LIMITED,Third Party Payments,Private Contractor Fees,74037-INDEPENDENT FOSTER CARE-OTH AGENCY PROVISION,"2,912.82",Revenue,15/04/2014,Childrens
WC43-1066,CARE 2 U LIMITED,Third Party Payments,Private Contractor Fees,73372-DOMICILIARY CARE,"10,817.35",Revenue,02/04/2014,Social Care & Inclusion
WC43-1067,CARE 2 U LIMITED,Third Party Payments,Private Contractor Fees,73372-DOMICILIARY CARE,"20,771.23",Revenue,02/04/2014,Social Care & Inclusion
WC43-1068,CARE 2 U LIMITED,Third Party Payments,Private Contractor Fees,73372-DOMICILIARY CARE,"11,385.53",Revenue,28/04/2014,Social Care & Inclusion
WC43-1069,CARE 2 U LIMITED,Third Party Payments,Private Contractor Fees,73372-DOMICILIARY CARE,"24,017.21",Revenue,28/04/2014,Social Care & Inclusion
WC43-1070,CARE ASSIST LIMITED,Third Party Payments,Private Contractor Fees,73372-DOMICILIARY CARE,"2,957.14",Revenue,01/04/2014,Social Care & Inclusion
WC43-1071,CARE ASSIST LIMITED,Third Party Payments,Private Contractor Fees,73372-DOMICILIARY CARE,"3,055.71",Revenue,01/04/2014,Social Care & Inclusion
WC43-1072,CARE AVENUES LTD,Third Party Payments,Private Contractor Fees,73372-DOMICILIARY CARE,"5,559.64",Revenue,28/04/2014,Social Care & Inclusion
WC43-1073,CARE AVENUES LTD,Third Party Payments,Private Contractor Fees,73372-DOMICILIARY CARE,"5,644.52",Revenue,28/04/2014,Social Care & Inclusion
WC43-1074,CARE FIRST CARE HOMES LTD,Third Party Payments,Private Contractor Fees,73373-RESIDENTIAL & NURSING CARE PLACEMENTS,"1,173.86",Revenue,15/04/2014,Social Care & Inclusion
WC43-1075,CARE FIRST CARE HOMES LTD,Third Party Payments,Private Contractor Fees,73373-RESIDENTIAL & NURSING CARE PLACEMENTS,266.79,Revenue,15/04/2014,Social Care & Inclusion
WC43-1076,CARE FIRST MANAGEMENT SERVICES LTD,Third Party Payments,Private Contractor Fees,73372-DOMICILIARY CARE,780.00,Revenue,23/04/2014,Social Care & Inclusion
WC43-1077,CARE FIRST MANAGEMENT SERVICES LTD,Third Party Payments,Private Contractor Fees,73374-SUPPORTED & OTHER ACCOMMODATION,"5,500.00",Revenue,25/04/2014,Social Care & Inclusion
WC43-1078,CARE LEAVERS,Third Party Payments,Private Contractor Fees,74500-CARE LEAVERS MTCE PAYMENTS,"14,388.10",Revenue,02/04/2014,Childrens
WC43-1079,CARE LEAVERS,Third Party Payments,Private Contractor Fees,74500-CARE LEAVERS MTCE PAYMENTS,"12,998.77",Revenue,02/04/2014,Childrens
WC43-1080,CARE LEAVERS,Transport,Car Allowances,53000-OFFICERS/STAFF-CAR ALLOWANCES,"1,247.00",Revenue,09/04/2014,Childrens
WC43-1081,CARE LEAVERS,Third Party Payments,Private Contractor Fees,74500-CARE LEAVERS MTCE PAYMENTS,"13,083.52",Revenue,09/04/2014,Childrens
WC43-1082,CARE LEAVERS,Third Party Payments,Private Contractor Fees,74500-CARE LEAVERS MTCE PAYMENTS,"13,167.23",Revenue,17/04/2014,Childrens
WC43-1083,CARE LEAVERS,Third Party Payments,Private Contractor Fees,74500-CARE LEAVERS MTCE PAYMENTS,"15,336.54",Revenue,30/04/2014,Childrens
WC43-1084,CARE MONITORING 2000 LTD,Supplies & Services,Communications & Computing,63800-COMPUTER EQUIPMENT AND SUPPLIES,"35,026.50",Revenue,22/04/2014,Resources
WC43-1085,CARE QUALITY COMMISSION,Supplies & Services,Subscriptions,64500-PUBLICATIONS/ORGANISATIONS-SUBSCRIPTIONS,"10,250.00",Revenue,10/04/2014,Social Care & Inclusion
WC43-1086,CARE TODAY CHILDRENS SERVICES,Third Party Payments,Private Contractor Fees,74036-EXTERNAL RESIDENTIAL CARE-OTH AGENCY PROVISION,"10,500.32",Revenue,07/04/2014,Childrens
WC43-1087,CARETECH COMMUNITY SERVICE,Third Party Payments,Private Contractor Fees,73374-SUPPORTED & OTHER ACCOMMODATION,"3,188.00",Revenue,23/04/2014,Social Care & Inclusion
WC43-1088,CARETECH COMMUNITY SERVICE,Third Party Payments,Private Contractor Fees,73374-SUPPORTED & OTHER ACCOMMODATION,"1,210.42",Revenue,23/04/2014,Social Care & Inclusion
WC43-1089,CARETECH COMMUNITY SERVICE,Third Party Payments,Private Contractor Fees,73374-SUPPORTED & OTHER ACCOMMODATION,"3,085.16",Revenue,28/04/2014,Social Care & Inclusion
WC43-1090,CARETECH COMMUNITY SERVICE,Third Party Payments,Private Contractor Fees,73374-SUPPORTED & OTHER ACCOMMODATION,"1,171.37",Revenue,28/04/2014,Social Care & Inclusion
WC43-1091,CAREVIEW SERVICES LTD,Third Party Payments,Private Contractor Fees,73373-RESIDENTIAL & NURSING CARE PLACEMENTS,"6,438.51",Revenue,22/04/2014,Social Care & Inclusion
WC43-1092,CAREWATCH CARE SERVICES,Employees,Agency,34305-AGENCY STAFF-EMPLOYEES,423.78,Revenue,16/04/2014,Social Care & Inclusion
WC43-1093,CAREWATCH CARE SERVICES,Third Party Payments,Private Contractor Fees,73372-DOMICILIARY CARE,816.99,Revenue,23/04/2014,Social Care & Inclusion
WC43-1094,CARING CARE LIMITED,Employees,Agency,34305-AGENCY STAFF-EMPLOYEES,552.00,Revenue,04/04/2014,Social Care & Inclusion
WC43-1095,CARING CARE LIMITED,Employees,Agency,34305-AGENCY STAFF-EMPLOYEES,408.25,Revenue,04/04/2014,Social Care & Inclusion
WC43-1096,CARING CARE LIMITED,Third Party Payments,Private Contractor Fees,73372-DOMICILIARY CARE,"45,084.55",Revenue,08/04/2014,Social Care & Inclusion
WC43-1097,CARING CARE LIMITED,Employees,Agency,34305-AGENCY STAFF-EMPLOYEES,"1,006.25",Revenue,25/04/2014,Social Care & Inclusion
WC43-1098,CARING CARE LIMITED,Third Party Payments,Private Contractor Fees,73372-DOMICILIARY CARE,"42,520.24",Revenue,28/04/2014,Social Care & Inclusion
WC43-1099,CARING HANDS LIMITED,Third Party Payments,Private Contractor Fees,73372-DOMICILIARY CARE,"12,933.37",Revenue,02/04/2014,Social Care & Inclusion
WC43-1100,CARING HANDS LIMITED,Third Party Payments,Private Contractor Fees,73372-DOMICILIARY CARE,606.00,Revenue,17/04/2014,Social Care & Inclusion
WC43-1101,CARING HANDS LIMITED,Third Party Payments,Private Contractor Fees,73372-DOMICILIARY CARE,"1,071.38",Revenue,17/04/2014,Social Care & Inclusion
WC43-1102,CARING HANDS LIMITED,Third Party Payments,Private Contractor Fees,73372-DOMICILIARY CARE,"1,400.00",Revenue,17/04/2014,Social Care & Inclusion
WC43-1103,CARING HANDS LIMITED,Third Party Payments,Private Contractor Fees,73372-DOMICILIARY CARE,"1,969.50",Revenue,17/04/2014,Social Care & Inclusion
WC43-1104,CARING HANDS LIMITED,Third Party Payments,Private Contractor Fees,73372-DOMICILIARY CARE,"1,996.00",Revenue,17/04/2014,Social Care & Inclusion
WC43-1105,CARING HANDS LIMITED,Third Party Payments,Private Contractor Fees,73372-DOMICILIARY CARE,"1,456.00",Revenue,17/04/2014,Social Care & Inclusion
WC43-1106,CARING HANDS LIMITED,Third Party Payments,Private Contractor Fees,73372-DOMICILIARY CARE,574.00,Revenue,17/04/2014,Social Care & Inclusion
WC43-1107,CARING HANDS LIMITED,Third Party Payments,Private Contractor Fees,73372-DOMICILIARY CARE,812.00,Revenue,17/04/2014,Social Care & Inclusion
WC43-1108,CARING HANDS LIMITED,Third Party Payments,Private Contractor Fees,73372-DOMICILIARY CARE,989.00,Revenue,17/04/2014,Social Care & Inclusion
WC43-1109,CARING HANDS LIMITED,Third Party Payments,Private Contractor Fees,73372-DOMICILIARY CARE,"2,124.00",Revenue,17/04/2014,Social Care & Inclusion
WC43-1110,CARING HANDS LIMITED,Third Party Payments,Private Contractor Fees,73372-DOMICILIARY CARE,870.00,Revenue,17/04/2014,Social Care & Inclusion
WC43-1111,CARING HANDS LIMITED,Third Party Payments,Private Contractor Fees,73372-DOMICILIARY CARE,"1,453.50",Revenue,17/04/2014,Social Care & Inclusion
WC43-1112,CARING HANDS LIMITED,Third Party Payments,Private Contractor Fees,73372-DOMICILIARY CARE,439.00,Revenue,22/04/2014,Social Care & Inclusion
WC43-1113,CARING HANDS LIMITED,Third Party Payments,Private Contractor Fees,73372-DOMICILIARY CARE,"1,484.00",Revenue,22/04/2014,Social Care & Inclusion
WC43-1114,CARING HANDS LIMITED,Third Party Payments,Private Contractor Fees,73372-DOMICILIARY CARE,"1,020.50",Revenue,22/04/2014,Social Care & Inclusion
WC43-1115,CARING HANDS LIMITED,Third Party Payments,Private Contractor Fees,73372-DOMICILIARY CARE,702.00,Revenue,22/04/2014,Social Care & Inclusion
WC43-1116,CARING HANDS LIMITED,Third Party Payments,Private Contractor Fees,73372-DOMICILIARY CARE,"1,146.00",Revenue,22/04/2014,Social Care & Inclusion
WC43-1117,CARING HANDS LIMITED,Third Party Payments,Private Contractor Fees,73372-DOMICILIARY CARE,"1,792.00",Revenue,22/04/2014,Social Care & Inclusion
WC43-1118,CARING HANDS LIMITED,Third Party Payments,Private Contractor Fees,73372-DOMICILIARY CARE,700.00,Revenue,22/04/2014,Social Care & Inclusion
WC43-1119,CARING HANDS LIMITED,Third Party Payments,Private Contractor Fees,73372-DOMICILIARY CARE,900.00,Revenue,22/04/2014,Social Care & Inclusion
WC43-1120,CARING HANDS LIMITED,Third Party Payments,Private Contractor Fees,73372-DOMICILIARY CARE,763.50,Revenue,22/04/2014,Social Care & Inclusion
WC43-1121,CARING HANDS LIMITED,Third Party Payments,Private Contractor Fees,73372-DOMICILIARY CARE,"1,120.00",Revenue,22/04/2014,Social Care & Inclusion
WC43-1122,CARING HANDS LIMITED,Third Party Payments,Private Contractor Fees,73372-DOMICILIARY CARE,357.50,Revenue,22/04/2014,Social Care & Inclusion
WC43-1123,CARING HANDS LIMITED,Third Party Payments,Private Contractor Fees,73372-DOMICILIARY CARE,"1,260.00",Revenue,22/04/2014,Social Care & Inclusion
WC43-1124,CARING HANDS LIMITED,Third Party Payments,Private Contractor Fees,73372-DOMICILIARY CARE,754.50,Revenue,22/04/2014,Social Care & Inclusion
WC43-1125,CARING HANDS LIMITED,Third Party Payments,Private Contractor Fees,73372-DOMICILIARY CARE,763.00,Revenue,22/04/2014,Social Care & Inclusion
WC43-1126,CARING HANDS LIMITED,Third Party Payments,Private Contractor Fees,73372-DOMICILIARY CARE,862.00,Revenue,22/04/2014,Social Care & Inclusion
WC43-1127,CARING HANDS LIMITED,Third Party Payments,Private Contractor Fees,73372-DOMICILIARY CARE,"1,618.00",Revenue,22/04/2014,Social Care & Inclusion
WC43-1128,CARING HANDS LIMITED,Third Party Payments,Private Contractor Fees,73372-DOMICILIARY CARE,"1,799.00",Revenue,22/04/2014,Social Care & Inclusion
WC43-1129,CARING HANDS LIMITED,Third Party Payments,Private Contractor Fees,73372-DOMICILIARY CARE,"1,996.00",Revenue,22/04/2014,Social Care & Inclusion
WC43-1130,CARING HANDS LIMITED,Third Party Payments,Private Contractor Fees,73372-DOMICILIARY CARE,338.00,Revenue,22/04/2014,Social Care & Inclusion
WC43-1131,CARING HANDS LIMITED,Third Party Payments,Private Contractor Fees,73372-DOMICILIARY CARE,642.00,Revenue,22/04/2014,Social Care & Inclusion
WC43-1132,CARING HANDS LIMITED,Third Party Payments,Private Contractor Fees,73372-DOMICILIARY CARE,546.00,Revenue,22/04/2014,Social Care & Inclusion
WC43-1133,CARING HANDS LIMITED,Third Party Payments,Private Contractor Fees,73372-DOMICILIARY CARE,266.00,Revenue,22/04/2014,Social Care & Inclusion
WC43-1134,CARING HANDS LIMITED,Third Party Payments,Private Contractor Fees,73372-DOMICILIARY CARE,574.00,Revenue,22/04/2014,Social Care & Inclusion
WC43-1135,CARING HANDS LIMITED,Third Party Payments,Private Contractor Fees,73372-DOMICILIARY CARE,806.00,Revenue,22/04/2014,Social Care & Inclusion
WC43-1136,CARING HANDS LIMITED,Third Party Payments,Private Contractor Fees,73372-DOMICILIARY CARE,448.00,Revenue,22/04/2014,Social Care & Inclusion
WC43-1137,CARING HANDS LIMITED,Third Party Payments,Private Contractor Fees,73372-DOMICILIARY CARE,520.00,Revenue,22/04/2014,Social Care & Inclusion
WC43-1138,CARING HANDS LIMITED,Third Party Payments,Private Contractor Fees,73372-DOMICILIARY CARE,"1,792.00",Revenue,22/04/2014,Social Care & Inclusion
WC43-1139,CARING HANDS LIMITED,Third Party Payments,Private Contractor Fees,73372-DOMICILIARY CARE,"1,624.00",Revenue,22/04/2014,Social Care & Inclusion
WC43-1140,CARING HANDS LIMITED,Third Party Payments,Private Contractor Fees,73372-DOMICILIARY CARE,266.00,Revenue,22/04/2014,Social Care & Inclusion
WC43-1141,CARING HANDS LIMITED,Third Party Payments,Private Contractor Fees,73372-DOMICILIARY CARE,"1,193.25",Revenue,23/04/2014,Social Care & Inclusion
WC43-1142,CARING HANDS LIMITED,Third Party Payments,Private Contractor Fees,73372-DOMICILIARY CARE,642.00,Revenue,23/04/2014,Social Care & Inclusion
WC43-1143,CARING HANDS LIMITED,Third Party Payments,Private Contractor Fees,73372-DOMICILIARY CARE,"1,490.00",Revenue,23/04/2014,Social Care & Inclusion
WC43-1144,CARING HANDS LIMITED,Third Party Payments,Private Contractor Fees,73372-DOMICILIARY CARE,"1,158.00",Revenue,23/04/2014,Social Care & Inclusion
WC43-1145,CARING HANDS LIMITED,Third Party Payments,Private Contractor Fees,73372-DOMICILIARY CARE,270.50,Revenue,23/04/2014,Social Care & Inclusion
WC43-1146,CARING HANDS LIMITED,Third Party Payments,Private Contractor Fees,73372-DOMICILIARY CARE,548.00,Revenue,23/04/2014,Social Care & Inclusion
WC43-1147,CARING HANDS LIMITED,Third Party Payments,Private Contractor Fees,73372-DOMICILIARY CARE,"1,344.00",Revenue,23/04/2014,Social Care & Inclusion
WC43-1148,CARING HANDS LIMITED,Third Party Payments,Private Contractor Fees,73372-DOMICILIARY CARE,"1,146.00",Revenue,23/04/2014,Social Care & Inclusion
WC43-1149,CARING HANDS LIMITED,Third Party Payments,Private Contractor Fees,73372-DOMICILIARY CARE,350.00,Revenue,23/04/2014,Social Care & Inclusion
WC43-1150,CARING HANDS LIMITED,Third Party Payments,Private Contractor Fees,73372-DOMICILIARY CARE,909.00,Revenue,23/04/2014,Social Care & Inclusion
WC43-1151,CARING HANDS LIMITED,Third Party Payments,Private Contractor Fees,73372-DOMICILIARY CARE,880.00,Revenue,23/04/2014,Social Care & Inclusion
WC43-1152,CARING HANDS LIMITED,Third Party Payments,Private Contractor Fees,73372-DOMICILIARY CARE,"1,351.00",Revenue,23/04/2014,Social Care & Inclusion
WC43-1153,CARING HANDS LIMITED,Third Party Payments,Private Contractor Fees,73372-DOMICILIARY CARE,806.50,Revenue,23/04/2014,Social Care & Inclusion
WC43-1154,CARING HANDS LIMITED,Third Party Payments,Private Contractor Fees,73372-DOMICILIARY CARE,700.00,Revenue,23/04/2014,Social Care & Inclusion
WC43-1155,CARING HANDS LIMITED,Third Party Payments,Private Contractor Fees,73372-DOMICILIARY CARE,757.50,Revenue,23/04/2014,Social Care & Inclusion
WC43-1156,CARING HANDS LIMITED,Third Party Payments,Private Contractor Fees,73372-DOMICILIARY CARE,"1,120.00",Revenue,23/04/2014,Social Care & Inclusion
WC43-1157,CARING HANDS LIMITED,Third Party Payments,Private Contractor Fees,73372-DOMICILIARY CARE,357.50,Revenue,23/04/2014,Social Care & Inclusion
WC43-1158,CARING HANDS LIMITED,Third Party Payments,Private Contractor Fees,73372-DOMICILIARY CARE,753.00,Revenue,23/04/2014,Social Care & Inclusion
WC43-1159,CARING HANDS LIMITED,Third Party Payments,Private Contractor Fees,73372-DOMICILIARY CARE,"11,364.72",Revenue,28/04/2014,Social Care & Inclusion
WC43-1160,CARING HANDS LIMITED,Third Party Payments,Private Contractor Fees,73372-DOMICILIARY CARE,"1,120.00",Revenue,29/04/2014,Social Care & Inclusion
WC43-1161,CARITAS RECRUITMENT,Third Party Payments,Grants to Other Orgs,66502-TOP UP FUNDING -GRANTS TO SCHOOLS,405.91,Revenue,08/04/2014,Childrens
WC43-1162,REDACTED,Transfer Payments,Transfer Payments,76422-DIRECT PAYMENTS TO SOCIAL SERVICES CLIENTS,450.00,Revenue,14/04/2014,Social Care & Inclusion
WC43-1163,REDACTED,Third Party Payments,Private Contractor Fees,74006-HOLIDAY/CHRISTMAS ALLOWANCE-FOSTER CARERS-OTH AGENCY PROVISION,628.11,Revenue,01/04/2014,Childrens
WC43-1164,REDACTED,Supplies & Services,Other Supplies & Services,62515-MISCELLANEOUS SUPPLIES,533.96,Revenue,28/04/2014,Childrens
WC43-1165,REDACTED,Third Party Payments,Private Contractor Fees,74006-HOLIDAY/CHRISTMAS ALLOWANCE-FOSTER CARERS-OTH AGENCY PROVISION,639.40,Revenue,28/04/2014,Childrens
WC43-1166,REDACTED,Third Party Payments,Private Contractor Fees,74006-HOLIDAY/CHRISTMAS ALLOWANCE-FOSTER CARERS-OTH AGENCY PROVISION,"1,049.63",Revenue,14/04/2014,Childrens
WC43-1167,REDACTED,Third Party Payments,Private Contractor Fees,73014-LEGAL FEES-PRIV CONTRACTOR FEES,"1,500.00",Revenue,01/04/2014,Childrens
WC43-1168,CARTER BROWN LTD T/A CARTER BROWN ASSOCIATES,Third Party Payments,Private Contractor Fees,73014-LEGAL FEES-PRIV CONTRACTOR FEES,832.30,Revenue,01/04/2014,Childrens
WC43-1169,CARTER SYNERGY LTD,Premises,Premises-Repairs & Maintenance,"40000-REPAIRS,ALTERATIONS & MAINTENANCE-PREM","2,437.10",Revenue,02/04/2014,Neighbourhood Services
WC43-1170,CARTER SYNERGY LTD,Premises,Premises-Repairs & Maintenance,40012-FIRE SYSTEM-OP MTCE,"13,644.56",Revenue,04/04/2014,Neighbourhood Services
WC43-1171,CARTER SYNERGY LTD,Premises,Premises-Repairs & Maintenance,"40000-REPAIRS,ALTERATIONS & MAINTENANCE-PREM",396.00,Revenue,04/04/2014,Neighbourhood Services
WC43-1172,CARTER SYNERGY LTD,Premises,Premises-Repairs & Maintenance,40024-IRONMONGERY & SIGNS-OP MTCE,270.00,Revenue,04/04/2014,Neighbourhood Services
WC43-1173,CARTER SYNERGY LTD,Premises,Premises-Repairs & Maintenance,40013-LIFTS-OP MTCE,"7,669.20",Revenue,10/04/2014,Neighbourhood Services
WC43-1174,CARTER SYNERGY LTD,Premises,Premises-Repairs & Maintenance,"40000-REPAIRS,ALTERATIONS & MAINTENANCE-PREM",405.50,Revenue,10/04/2014,Neighbourhood Services
WC43-1175,CARTER SYNERGY LTD,Premises,Premises-Repairs & Maintenance,"40000-REPAIRS,ALTERATIONS & MAINTENANCE-PREM","1,015.30",Revenue,10/04/2014,Neighbourhood Services
WC43-1176,CARTER SYNERGY LTD,Premises,Premises-Repairs & Maintenance,40216-OTHER-PLAN MTCE,"9,754.09",Revenue,22/04/2014,Neighbourhood Services
WC43-1177,CASHFRIDAY,Third Party Payments,Private Contractor Fees,73372-DOMICILIARY CARE,420.00,Revenue,15/04/2014,Social Care & Inclusion
WC43-1178,CASHFRIDAY,Third Party Payments,Private Contractor Fees,73372-DOMICILIARY CARE,395.50,Revenue,15/04/2014,Social Care & Inclusion
WC43-1179,CASHFRIDAY,Third Party Payments,Private Contractor Fees,73372-DOMICILIARY CARE,434.00,Revenue,15/04/2014,Social Care & Inclusion
WC43-1180,CASHFRIDAY,Third Party Payments,Private Contractor Fees,73372-DOMICILIARY CARE,462.00,Revenue,15/04/2014,Social Care & Inclusion
WC43-1181,CASHFRIDAY,Third Party Payments,Private Contractor Fees,73372-DOMICILIARY CARE,889.00,Revenue,15/04/2014,Social Care & Inclusion
WC43-1182,CASHFRIDAY,Third Party Payments,Private Contractor Fees,73372-DOMICILIARY CARE,294.00,Revenue,15/04/2014,Social Care & Inclusion
WC43-1183,CASHFRIDAY,Third Party Payments,Private Contractor Fees,73372-DOMICILIARY CARE,294.00,Revenue,15/04/2014,Social Care & Inclusion
WC43-1184,CASHFRIDAY,Third Party Payments,Private Contractor Fees,73372-DOMICILIARY CARE,476.00,Revenue,15/04/2014,Social Care & Inclusion
WC43-1185,CASHFRIDAY,Third Party Payments,Private Contractor Fees,73372-DOMICILIARY CARE,479.00,Revenue,15/04/2014,Social Care & Inclusion
WC43-1186,CASHFRIDAY,Third Party Payments,Private Contractor Fees,73372-DOMICILIARY CARE,889.00,Revenue,15/04/2014,Social Care & Inclusion
WC43-1187,CASHFRIDAY,Third Party Payments,Private Contractor Fees,73372-DOMICILIARY CARE,337.00,Revenue,15/04/2014,Social Care & Inclusion
WC43-1188,CASHFRIDAY,Third Party Payments,Private Contractor Fees,73372-DOMICILIARY CARE,803.38,Revenue,15/04/2014,Social Care & Inclusion
WC43-1189,CASHFRIDAY,Third Party Payments,Private Contractor Fees,73372-DOMICILIARY CARE,250.88,Revenue,15/04/2014,Social Care & Inclusion
WC43-1190,CASHFRIDAY,Third Party Payments,Private Contractor Fees,73372-DOMICILIARY CARE,336.00,Revenue,23/04/2014,Social Care & Inclusion
WC43-1191,CASHFRIDAY,Third Party Payments,Private Contractor Fees,73372-DOMICILIARY CARE,476.00,Revenue,23/04/2014,Social Care & Inclusion
WC43-1192,CASHFRIDAY,Third Party Payments,Private Contractor Fees,73372-DOMICILIARY CARE,784.00,Revenue,23/04/2014,Social Care & Inclusion
WC43-1193,CASHFRIDAY,Third Party Payments,Private Contractor Fees,73372-DOMICILIARY CARE,395.50,Revenue,23/04/2014,Social Care & Inclusion
WC43-1194,CASHFRIDAY,Third Party Payments,Private Contractor Fees,73372-DOMICILIARY CARE,434.00,Revenue,23/04/2014,Social Care & Inclusion
WC43-1195,CASHFRIDAY,Third Party Payments,Private Contractor Fees,73372-DOMICILIARY CARE,490.00,Revenue,23/04/2014,Social Care & Inclusion
WC43-1196,CASHFRIDAY,Third Party Payments,Private Contractor Fees,73372-DOMICILIARY CARE,476.00,Revenue,23/04/2014,Social Care & Inclusion
WC43-1197,CASHFRIDAY,Third Party Payments,Private Contractor Fees,73372-DOMICILIARY CARE,889.00,Revenue,23/04/2014,Social Care & Inclusion
WC43-1198,CASHFRIDAY,Employees,Agency,34305-AGENCY STAFF-EMPLOYEES,350.00,Revenue,25/04/2014,Social Care & Inclusion
WC43-1199,CASHFRIDAY,Third Party Payments,Private Contractor Fees,73372-DOMICILIARY CARE,294.00,Revenue,25/04/2014,Social Care & Inclusion
WC43-1200,CASHFRIDAY,Third Party Payments,Private Contractor Fees,73372-DOMICILIARY CARE,476.00,Revenue,25/04/2014,Social Care & Inclusion
WC43-1201,CASHFRIDAY,Third Party Payments,Private Contractor Fees,73372-DOMICILIARY CARE,479.00,Revenue,25/04/2014,Social Care & Inclusion
WC43-1202,CASHFRIDAY,Third Party Payments,Private Contractor Fees,73372-DOMICILIARY CARE,280.00,Revenue,25/04/2014,Social Care & Inclusion
WC43-1203,CASHFRIDAY,Third Party Payments,Private Contractor Fees,73372-DOMICILIARY CARE,889.00,Revenue,25/04/2014,Social Care & Inclusion
WC43-1204,CASHFRIDAY,Third Party Payments,Private Contractor Fees,73372-DOMICILIARY CARE,715.00,Revenue,25/04/2014,Social Care & Inclusion
WC43-1205,CASHFRIDAY,Third Party Payments,Private Contractor Fees,73372-DOMICILIARY CARE,434.00,Revenue,25/04/2014,Social Care & Inclusion
WC43-1206,CASHFRIDAY,Third Party Payments,Private Contractor Fees,73372-DOMICILIARY CARE,337.00,Revenue,25/04/2014,Social Care & Inclusion
WC43-1207,CASHFRIDAY,Third Party Payments,Private Contractor Fees,73372-DOMICILIARY CARE,496.00,Revenue,25/04/2014,Social Care & Inclusion
WC43-1208,CASHFRIDAY,Third Party Payments,Private Contractor Fees,73372-DOMICILIARY CARE,784.00,Revenue,25/04/2014,Social Care & Inclusion
WC43-1209,CASHFRIDAY,Third Party Payments,Private Contractor Fees,73372-DOMICILIARY CARE,395.50,Revenue,25/04/2014,Social Care & Inclusion
WC43-1210,CASHFRIDAY,Third Party Payments,Private Contractor Fees,73372-DOMICILIARY CARE,476.00,Revenue,25/04/2014,Social Care & Inclusion
WC43-1211,CASHFRIDAY,Third Party Payments,Private Contractor Fees,73372-DOMICILIARY CARE,889.00,Revenue,25/04/2014,Social Care & Inclusion
WC43-1212,CASHFRIDAY,Third Party Payments,Private Contractor Fees,73372-DOMICILIARY CARE,294.00,Revenue,25/04/2014,Social Care & Inclusion
WC43-1213,CASHFRIDAY,Third Party Payments,Private Contractor Fees,73372-DOMICILIARY CARE,294.00,Revenue,25/04/2014,Social Care & Inclusion
WC43-1214,CASHFRIDAY,Third Party Payments,Private Contractor Fees,73372-DOMICILIARY CARE,476.00,Revenue,25/04/2014,Social Care & Inclusion
WC43-1215,CASHFRIDAY,Third Party Payments,Private Contractor Fees,73372-DOMICILIARY CARE,479.00,Revenue,25/04/2014,Social Care & Inclusion
WC43-1216,CASHFRIDAY,Third Party Payments,Private Contractor Fees,73372-DOMICILIARY CARE,889.00,Revenue,25/04/2014,Social Care & Inclusion
WC43-1217,CASHFRIDAY,Third Party Payments,Private Contractor Fees,73372-DOMICILIARY CARE,258.00,Revenue,25/04/2014,Social Care & Inclusion
WC43-1218,CASHFRIDAY,Third Party Payments,Private Contractor Fees,73372-DOMICILIARY CARE,337.00,Revenue,25/04/2014,Social Care & Inclusion
WC43-1219,CASHFRIDAY,Third Party Payments,Private Contractor Fees,73372-DOMICILIARY CARE,307.50,Revenue,25/04/2014,Social Care & Inclusion
WC43-1220,CASHFRIDAY,Third Party Payments,Private Contractor Fees,73372-DOMICILIARY CARE,489.00,Revenue,25/04/2014,Social Care & Inclusion
WC43-1221,CASHFRIDAY,Third Party Payments,Private Contractor Fees,73372-DOMICILIARY CARE,"1,171.00",Revenue,25/04/2014,Social Care & Inclusion
WC43-1222,CATALYST ENVIRONMENTAL LIMITED,Supplies & Services,"Equip,Furniture & Materials",60006-NEW-FURNITURE & EQUIPMENT,495.00,Revenue,04/04/2014,Neighbourhood Services
WC43-1223,CATCH 22 CHARITY LTD,Supplies & Services,Services,63102-CONSULTANTS FEES - CORPORATE,"6,900.00",Revenue,04/04/2014,Childrens
WC43-1224,CATCH 22 CHARITY LTD,Supplies & Services,Subscriptions,64500-PUBLICATIONS/ORGANISATIONS-SUBSCRIPTIONS,"2,995.00",Revenue,15/04/2014,Childrens
WC43-1225,REDACTED,Transfer Payments,Transfer Payments,76422-DIRECT PAYMENTS TO SOCIAL SERVICES CLIENTS,622.68,Revenue,14/04/2014,Social Care & Inclusion
WC43-1226,REDACTED,Transfer Payments,Transfer Payments,76422-DIRECT PAYMENTS TO SOCIAL SERVICES CLIENTS,690.48,Revenue,14/04/2014,Social Care & Inclusion
WC43-1227,REDACTED,Third Party Payments,Private Contractor Fees,74006-HOLIDAY/CHRISTMAS ALLOWANCE-FOSTER CARERS-OTH AGENCY PROVISION,414.88,Revenue,14/04/2014,Childrens
WC43-1228,REDACTED,Transfer Payments,Transfer Payments,76422-DIRECT PAYMENTS TO SOCIAL SERVICES CLIENTS,388.40,Revenue,14/04/2014,Social Care & Inclusion
WC43-1229,REDACTED,Third Party Payments,Private Contractor Fees,74006-HOLIDAY/CHRISTMAS ALLOWANCE-FOSTER CARERS-OTH AGENCY PROVISION,414.88,Revenue,14/04/2014,Childrens
WC43-1230,CATS LIMITED,Supplies & Services,Other Supplies & Services,67001-MISC INSURANCES - PAYMENT OF CLAIMS,405.00,Revenue,11/04/2014,Holding Accounts
WC43-1231,CAUSEWAY TECHNOLOGIES LIMITED,Supplies & Services,Services,63000-PROFESSIONAL FEES AND SERVICES,"2,774.13",Revenue,23/04/2014,Neighbourhood Services
WC43-1232,CCS MEDIA LTD,Supplies & Services,Communications & Computing,63800-COMPUTER EQUIPMENT AND SUPPLIES,348.70,Revenue,08/04/2014,Resources
WC43-1233,CEDAR LEWISOHN,Supplies & Services,Services,63000-PROFESSIONAL FEES AND SERVICES,250.00,Revenue,03/04/2014,Neighbourhood Services
WC43-1234,CENTRAL CONSTRUCTION TRAINING LTD,Third Party Payments,Grants to Other Orgs,66500-GRANTS TO OTHER ORGS,750.00,Revenue,01/04/2014,Regeneration
WC43-1235,CENTRAL INSULATION & ENVIRONM,Capital,Capital,01006-SITE WORKS MAIN CONTRACTORS,"2,350.00",Capital,01/04/2014,Regeneration
WC43-1236,CENTRAL INSULATION & ENVIRONM,Capital,Capital,01006-SITE WORKS MAIN CONTRACTORS,"7,350.00",Capital,01/04/2014,Regeneration
WC43-1237,CENTRAL INSULATION & ENVIRONM,Capital,Capital,01006-SITE WORKS MAIN CONTRACTORS,"2,250.00",Capital,01/04/2014,Regeneration
WC43-1238,CENTRAL INSULATION & ENVIRONM,Capital,Capital,01006-SITE WORKS MAIN CONTRACTORS,"1,500.00",Capital,01/04/2014,Regeneration
WC43-1239,CENTRAL INSULATION & ENVIRONM,Capital,Capital,01006-SITE WORKS MAIN CONTRACTORS,"6,100.00",Capital,07/04/2014,Regeneration
WC43-1240,CENTRAL INSULATION & ENVIRONM,Premises,Premises-Repairs & Maintenance,"40000-REPAIRS,ALTERATIONS & MAINTENANCE-PREM","2,495.00",Revenue,07/04/2014,Regeneration
WC43-1241,CENTRAL MAILING SERVICES,Supplies & Services,"Printing, Stationery & Office Exp",63500-POSTAGES AND COURIER SERVICES,"3,162.76",Revenue,03/04/2014,Resources
WC43-1242,CENTRAL MAILING SERVICES,Supplies & Services,"Printing, Stationery & Office Exp",63500-POSTAGES AND COURIER SERVICES,701.99,Revenue,03/04/2014,Resources
WC43-1243,CENTRO WMPTA,Capital,Capital,01001-OTHER CONSULTANTS FEES,"7,500.00",Capital,01/04/2014,Regeneration
WC43-1244,CENTRO WMPTA,Transfer Payments,Transfer Payments,76000-TRANSFER PAYMENTS - SOCIAL SERVICES CLIENTS,532.50,Revenue,23/04/2014,Social Care & Inclusion
WC43-1245,CENTRO WMPTA,Third Party Payments,Grants to Other Orgs,66500-GRANTS TO OTHER ORGS,"5,595.25",Revenue,24/04/2014,Regeneration
WC43-1246,CERTAS ENERGY UK LIMITED,Transport,Other Transport,50301-FUEL-TRANSPORT RUN COSTS,"20,533.55",Revenue,01/04/2014,Neighbourhood Services
WC43-1247,CERTAS ENERGY UK LIMITED,Transport,Other Transport,50301-FUEL-TRANSPORT RUN COSTS,"1,830.90",Revenue,01/04/2014,Neighbourhood Services
WC43-1248,CERTAS ENERGY UK LIMITED,Transport,Other Transport,50301-FUEL-TRANSPORT RUN COSTS,"21,375.86",Revenue,08/04/2014,Neighbourhood Services
WC43-1249,CERTAS ENERGY UK LIMITED,Transport,Other Transport,50301-FUEL-TRANSPORT RUN COSTS,618.70,Revenue,15/04/2014,Neighbourhood Services
WC43-1250,CERTAS ENERGY UK LIMITED,Transport,Other Transport,50301-FUEL-TRANSPORT RUN COSTS,"21,426.50",Revenue,25/04/2014,Neighbourhood Services
WC43-1251,CERTAS ENERGY UK LIMITED,Transport,Other Transport,50301-FUEL-TRANSPORT RUN COSTS,"1,830.90",Revenue,25/04/2014,Neighbourhood Services
WC43-1252,CERTAS ENERGY UK LIMITED,Transport,Other Transport,50301-FUEL-TRANSPORT RUN COSTS,"20,325.42",Revenue,28/04/2014,Neighbourhood Services
WC43-1253,CERTAS ENERGY UK LIMITED,Transport,Other Transport,50301-FUEL-TRANSPORT RUN COSTS,"1,017.67",Revenue,28/04/2014,Neighbourhood Services
WC43-1254,CETUS SOLUTIONS LIMITED,Supplies & Services,Communications & Computing,63800-COMPUTER EQUIPMENT AND SUPPLIES,"28,437.48",Revenue,03/04/2014,Resources
WC43-1255,CF ASSET FINANCE LIMITED,Premises,Rent,43000-RENTS,-613.01,Revenue,01/04/2014,Childrens
WC43-1256,CF ASSET FINANCE LIMITED,Premises,Rent,43000-RENTS,613.01,Revenue,08/04/2014,Childrens
WC43-1257,CF ASSET FINANCE LIMITED,Supplies & Services,"Equip,Furniture & Materials",60009-LEASING/HIRE/RENTAL-EQUIPMENT,254.64,Revenue,22/04/2014,Resources
WC43-1258,CF ASSET FINANCE LIMITED,Supplies & Services,"Equip,Furniture & Materials",60009-LEASING/HIRE/RENTAL-EQUIPMENT,334.12,Revenue,22/04/2014,Resources
WC43-1259,CF ASSET FINANCE LIMITED,Supplies & Services,"Equip,Furniture & Materials",60004-PHOTOGRAPHIC DEVELOPMENT/PRINTING-EQUIPMENT,284.35,Revenue,25/04/2014,Social Care & Inclusion
WC43-1260,CFAB,Supplies & Services,Services,63000-PROFESSIONAL FEES AND SERVICES,"4,500.00",Revenue,01/04/2014,Childrens
WC43-1261,CFT FOSTERING LIMITED,Third Party Payments,Private Contractor Fees,74037-INDEPENDENT FOSTER CARE-OTH AGENCY PROVISION,"5,850.32",Revenue,01/04/2014,Childrens
WC43-1262,CFT FOSTERING LIMITED,Third Party Payments,Private Contractor Fees,74037-INDEPENDENT FOSTER CARE-OTH AGENCY PROVISION,"5,661.60",Revenue,08/04/2014,Childrens
WC43-1263,REDACTED,Transfer Payments,Transfer Payments,76422-DIRECT PAYMENTS TO SOCIAL SERVICES CLIENTS,748.00,Revenue,14/04/2014,Social Care & Inclusion
WC43-1264,REDACTED,Third Party Payments,Private Contractor Fees,74006-HOLIDAY/CHRISTMAS ALLOWANCE-FOSTER CARERS-OTH AGENCY PROVISION,635.29,Revenue,14/04/2014,Childrens
WC43-1265,CHARLES CODDY WALKER ACADEMY,Third Party Payments,Grants to Other Orgs,66505-OTHER-GRANTS TO OTHER ORGS,"5,588.00",Revenue,01/04/2014,Childrens
WC43-1266,CHARLES CODDY WALKER ACADEMY,Third Party Payments,Grants to Other Orgs,66505-OTHER-GRANTS TO OTHER ORGS,"30,773.21",Revenue,17/04/2014,Childrens
WC43-1267,CHARLIE CATERPILLAR'S DAY NURSERY,Employees,Agency,34305-AGENCY STAFF-EMPLOYEES,"1,680.00",Revenue,04/04/2014,Childrens
WC43-1268,CHARLIE CATERPILLAR'S DAY NURSERY,Employees,Agency,34305-AGENCY STAFF-EMPLOYEES,336.00,Revenue,04/04/2014,Childrens
WC43-1269,CHARLIE CATERPILLAR'S DAY NURSERY,Third Party Payments,Grants to Other Orgs,66505-OTHER-GRANTS TO OTHER ORGS,"27,115.67",Revenue,15/04/2014,Childrens
WC43-1270,CHARLIE CATERPILLAR'S DAY NURSERY,Supplies & Services,Other Supplies & Services,63120-CRECHE FACILITIES-SERVICES-FEES,546.00,Revenue,16/04/2014,Childrens
WC43-1271,CHARMEND LTD,Third Party Payments,Private Contractor Fees,73373-RESIDENTIAL & NURSING CARE PLACEMENTS,690.41,Revenue,15/04/2014,Social Care & Inclusion
WC43-1272,CHARMEND LTD,Third Party Payments,Private Contractor Fees,73373-RESIDENTIAL & NURSING CARE PLACEMENTS,"2,071.25",Revenue,29/04/2014,Social Care & Inclusion
WC43-1273,CHARTER CARE,Third Party Payments,Private Contractor Fees,73372-DOMICILIARY CARE,"36,705.61",Revenue,02/04/2014,Social Care & Inclusion
WC43-1274,CHARTER CARE,Employees,Agency,34305-AGENCY STAFF-EMPLOYEES,795.75,Revenue,16/04/2014,Social Care & Inclusion
WC43-1275,CHARTER CARE,Third Party Payments,Private Contractor Fees,73372-DOMICILIARY CARE,912.46,Revenue,23/04/2014,Social Care & Inclusion
WC43-1276,CHARTER CARE,Third Party Payments,Private Contractor Fees,73372-DOMICILIARY CARE,"1,138.24",Revenue,23/04/2014,Social Care & Inclusion
WC43-1277,CHARTER CARE,Third Party Payments,Private Contractor Fees,73372-DOMICILIARY CARE,413.79,Revenue,23/04/2014,Social Care & Inclusion
WC43-1278,CHARTER CARE,Third Party Payments,Private Contractor Fees,73372-DOMICILIARY CARE,"1,527.84",Revenue,23/04/2014,Social Care & Inclusion
